Workbook

Sheet HeroPowerUpConfig
A1: ID | B1: HeroLevel | C1: jingjie1 | D1: jingjie2 | E1: jingjie3 | F1: jingjieLanIDs | M1: levelUpExp | N1: DujieLevelbattleID | O1: DujieRateviaBattle | P1: DujieMustItemIDs | Q1: DujieMustItemValues | R1: DujieItemIDs | S1: DujieItemValues | T1: LeijieDamages | U1: HPFactor | V1: ATKFactor | W1: DEFFactor | X1: HudunFactor | Y1: defK | Z1: ShenshiMax | AA1: AutoXiuwei | AB1: FailureExpReduce | AC1: MaxActiveGongfaNum | AD1: MaxPassiveGongfaNum | AE1: MaxFabaoNum | AJ1: MPFactor | AK1: DaoyouCount
A2: int | B2: int | C2: int | D2: int | E2: int | F2: int[] | M2: int | N2: int | O2: int | P2: int[] | Q2: int[] | R2: int[] | S2: int[] | T2: int[] | U2: float | V2: float | W2: float | X2: float | Y2: int | Z2: int | AA2: float | AB2: int | AC2: int | AD2: int | AE2: int | AJ2: float | AK2: int
AF3: =SUM(AF5:AF304) -> 1229974 | AG3: =AF3/60 -> 20499.56667 | AH3: =AG3/60 -> 341.6594444 | AI3: =AH3/12 -> 28.47162037
A4: ID | B4: 玩家修为境界（等级） | C4: 大境界ID | D4: 中境界ID | E4: 小境界ID | F4: 境界语言表ID | G4: 境界名称1 | H4: 境界名称2 | I4: 境界名称3 | M4: 升级所需修为值 （-1代表最大等级) | N4: 渡劫必须战斗ID | O4: 战斗增加渡劫几率 | P4: 渡劫必需道具ID | Q4: 渡劫必需道具数量 | R4: 渡劫选有道具IDs | S4: 渡劫选有道具数量 | T4: 雷劫伤害 要填下限和上限 | U4: 生命倍率 | V4: 攻击倍率 | W4: 防御倍率 | X4: 护盾倍率 | Y4: 防御系数K | Z4: 神识上限 | AA4: 每秒获得的修为值 | AB4: 雷劫失败扣除的当前等级修为百分比 | AC4: 主动功法可配置上限 | AD4: 被动功法可配置上限 | AE4: 法宝可配置上限 | AF4: 吐纳时长(s) | AG4: 分钟 | AH4: 小时 | AI4: 天（每天12小时） | AJ4: 法力倍率 | AK4: 允许出现的最大挂机道友数量
A5: 1 | B5: 1 | C5: 1 | D5: 1 | E5: =I5 -> 1 | F5: =_xlfn.TEXTJOIN(";",1,J5:L5) -> 225;235;238 | G5: 练气期 | H5: 前 | I5: 1 | J5: 225 | K5: 235 | L5: 238 | M5: =[1]ResourceLevelConfig!$E5*10 -> 1000 | N5: =IF(I5=10,100004,-1) -> -1 | O5: =IF(N5=-1,-1,20) -> -1 | P5: =IF(I5=10,1002,-1) -> -1 | Q5: =IF(P5=-1,-1,100) -> -1 | R5: =IF(I5=10,"1001;1002;1004",-1) -> -1 | S5: =IF(R5=-1,-1,"100;200;300") -> -1 | T5: =IF(G5=G6,0,CONCATENATE(80*ROUND(VLOOKUP(B5,[2]MonsterPowerUpConfig!$A:$I,9,FALSE),0),";",120*ROUND(VLOOKUP(B5,[2]MonsterPowerUpConfig!$A:$I,9,FALSE),0))) -> 0 | U5: =[3]主表!K3 -> 10.08333333 | V5: =[3]主表!L3 -> 1 | W5: =[3]主表!M3 -> 1 | X5: =[3]主表!N3 -> 0 | Y5: =[3]主表!$G3 -> 263 | Z5: =[3]升级!$H3 -> 1000 | AA5: =MAX(1,ROUND(100/(24*3600)*VLOOKUP(B5,[1]ResourceLevelConfig!$A:$E,5,FALSE),2)) -> 1 | AB5: -1 | AC5: 2 | AD5: 1 | AE5: 1 | AF5: =ROUND(10^(B5*0.01+2.07),0) -> 120 | AH5: =50*W5 -> 50 | AJ5: 1 | AK5: 1 | AL5: 1
A6: 2 | B6: 2 | C6: 1 | D6: 1 | E6: =I6 -> 2 | F6: =_xlfn.TEXTJOIN(";",1,J6:L6) -> 225;235;239 | G6: 练气期 | H6: 前 | I6: 2 | J6: 225 | K6: 235 | L6: 239 | M6: =[1]ResourceLevelConfig!$E6*10 -> 1100 | N6: =IF(I6=10,100004,-1) -> -1 | O6: =IF(N6=-1,-1,20) -> -1 | P6: =IF(I6=10,1002,-1) -> -1 | Q6: =IF(P6=-1,-1,100) -> -1 | R6: =IF(I6=10,"1001;1002;1004",-1) -> -1 | S6: =IF(R6=-1,-1,"100;200;300") -> -1 | T6: =IF(G6=G7,0,CONCATENATE(80*ROUND(VLOOKUP(B6,[2]MonsterPowerUpConfig!$A:$I,9,FALSE),0),";",120*ROUND(VLOOKUP(B6,[2]MonsterPowerUpConfig!$A:$I,9,FALSE),0))) -> 0 | U6: =[3]主表!K4 -> 10.31916667 | V6: =[3]主表!L4 -> 1.015 | W6: =[3]主表!M4 -> 1.015 | X6: =[3]主表!N4 -> 0 | Y6: =[3]主表!$G4 -> 266 | Z6: =[3]升级!$H4 -> 1000 | AA6: =MAX(1,ROUND(100/(24*3600)*VLOOKUP(B6,[1]ResourceLevelConfig!$A:$E,5,FALSE),2)) -> 1 | AB6: -1 | AC6: =AC5 -> 2 | AD6: =AD5 -> 1 | AE6: 1 | AF6: =MAX(AF5+10,ROUND(10^(B6*0.01+1.405),0)) -> 130 | AH6: 50.75 | AJ6: 1 | AK6: 1 | AL6: 2
A7: 3 | B7: 3 | C7: 1 | D7: 1 | E7: 3 | F7: 225;235;240 | G7: 练气期 | H7: 前 | I7: 3 | J7: 225 | K7: 235 | L7: 240 | M7: =[1]ResourceLevelConfig!$E7*10 -> 1200 | N7: -1 | O7: -1 | P7: -1 | Q7: -1 | R7: -1 | S7: -1 | T7: =IF(G7=G8,0,CONCATENATE(80*ROUND(VLOOKUP(B7,[2]MonsterPowerUpConfig!$A:$I,9,FALSE),0),";",120*ROUND(VLOOKUP(B7,[2]MonsterPowerUpConfig!$A:$I,9,FALSE),0))) -> 0 | U7: =[3]主表!K5 -> 10.55980625 | V7: =[3]主表!L5 -> 1.030225 | W7: =[3]主表!M5 -> 1.030225 | X7: =[3]主表!N5 -> 0 | Y7: =[3]主表!$G5 -> 270 | Z7: =[3]升级!$H5 -> 1000 | AA7: =MAX(1,ROUND(100/(24*3600)*VLOOKUP(B7,[1]ResourceLevelConfig!$A:$E,5,FALSE),2)) -> 1 | AB7: -1 | AC7: =AC6 -> 2 | AD7: =AD6 -> 1 | AE7: =AE6 -> 1 | AF7: 140 | AH7: 51.51125 | AJ7: 1 | AK7: 1 | AL7: 3
A8: 4 | B8: 4 | C8: 1 | D8: 1 | E8: 4 | F8: 225;235;241 | G8: 练气期 | H8: 前 | I8: 4 | J8: 225 | K8: 235 | L8: 241 | M8: =[1]ResourceLevelConfig!$E8*10 -> 1300 | N8: -1 | O8: -1 | P8: -1 | Q8: -1 | R8: -1 | S8: -1 | T8: =IF(G8=G9,0,CONCATENATE(80*ROUND(VLOOKUP(B8,[2]MonsterPowerUpConfig!$A:$I,9,FALSE),0),";",120*ROUND(VLOOKUP(B8,[2]MonsterPowerUpConfig!$A:$I,9,FALSE),0))) -> 0 | U8: =[3]主表!K6 -> 10.80534321 | V8: =[3]主表!L6 -> 1.045678375 | W8: =[3]主表!M6 -> 1.045678375 | X8: =[3]主表!N6 -> 0 | Y8: =[3]主表!$G6 -> 274 | Z8: =[3]升级!$H6 -> 1000 | AA8: =MAX(1,ROUND(100/(24*3600)*VLOOKUP(B8,[1]ResourceLevelConfig!$A:$E,5,FALSE),2)) -> 1 | AB8: -1 | AC8: 2 | AD8: 1 | AE8: 1 | AF8: 150 | AH8: 52.28391875 | AJ8: 1 | AK8: 1 | AL8: 4
A9: 5 | B9: 5 | C9: 1 | D9: 1 | E9: 5 | F9: 225;235;242 | G9: 练气期 | H9: 前 | I9: 5 | J9: 225 | K9: 235 | L9: 242 | M9: =[1]ResourceLevelConfig!$E9*10 -> 1400 | N9: -1 | O9: -1 | P9: -1 | Q9: -1 | R9: -1 | S9: -1 | T9: =IF(G9=G10,0,CONCATENATE(80*ROUND(VLOOKUP(B9,[2]MonsterPowerUpConfig!$A:$I,9,FALSE),0),";",120*ROUND(VLOOKUP(B9,[2]MonsterPowerUpConfig!$A:$I,9,FALSE),0))) -> 0 | U9: =[3]主表!K7 -> 11.05587032 | V9: =[3]主表!L7 -> 1.061363551 | W9: =[3]主表!M7 -> 1.061363551 | X9: =[3]主表!N7 -> 0 | Y9: =[3]主表!$G7 -> 278 | Z9: =[3]升级!$H7 -> 1000 | AA9: =MAX(1,ROUND(100/(24*3600)*VLOOKUP(B9,[1]ResourceLevelConfig!$A:$E,5,FALSE),2)) -> 1 | AB9: -1 | AC9: 2 | AD9: 1 | AE9: 1 | AF9: 160 | AH9: 53.06817753 | AJ9: 1 | AK9: 1 | AL9: 5
A10: 6 | B10: 6 | C10: 1 | D10: 1 | E10: 6 | F10: 225;235;243 | G10: 练气期 | H10: 前 | I10: 6 | J10: 225 | K10: 235 | L10: 243 | M10: =[1]ResourceLevelConfig!$E10*10 -> 1500 | N10: -1 | O10: -1 | P10: -1 | Q10: -1 | R10: -1 | S10: -1 | T10: =IF(G10=G11,0,CONCATENATE(80*ROUND(VLOOKUP(B10,[2]MonsterPowerUpConfig!$A:$I,9,FALSE),0),";",120*ROUND(VLOOKUP(B10,[2]MonsterPowerUpConfig!$A:$I,9,FALSE),0))) -> 0 | U10: =[3]主表!K8 -> 11.31148204 | V10: =[3]主表!L8 -> 1.077284004 | W10: =[3]主表!M8 -> 1.077284004 | X10: =[3]主表!N8 -> 0 | Y10: =[3]主表!$G8 -> 282 | Z10: =[3]升级!$H8 -> 1000 | AA10: =MAX(1,ROUND(100/(24*3600)*VLOOKUP(B10,[1]ResourceLevelConfig!$A:$E,5,FALSE),2)) -> 1 | AB10: -1 | AC10: 2 | AD10: 1 | AE10: 1 | AF10: 170 | AH10: 53.86420019 | AJ10: 1 | AK10: 1 | AL10: 6
A11: 7 | B11: 7 | C11: 1 | D11: 1 | E11: 7 | F11: 225;235;244 | G11: 练气期 | H11: 前 | I11: 7 | J11: 225 | K11: 235 | L11: 244 | M11: =[1]ResourceLevelConfig!$E11*10 -> 1600 | N11: -1 | O11: -1 | P11: -1 | Q11: -1 | R11: -1 | S11: -1 | T11: =IF(G11=G12,0,CONCATENATE(80*ROUND(VLOOKUP(B11,[2]MonsterPowerUpConfig!$A:$I,9,FALSE),0),";",120*ROUND(VLOOKUP(B11,[2]MonsterPowerUpConfig!$A:$I,9,FALSE),0))) -> 0 | U11: =[3]主表!K9 -> 11.57227454 | V11: =[3]主表!L9 -> 1.093443264 | W11: =[3]主表!M9 -> 1.093443264 | X11: =[3]主表!N9 -> 0 | Y11: =[3]主表!$G9 -> 286 | Z11: =[3]升级!$H9 -> 1000 | AA11: =MAX(1,ROUND(100/(24*3600)*VLOOKUP(B11,[1]ResourceLevelConfig!$A:$E,5,FALSE),2)) -> 1 | AB11: -1 | AC11: 2 | AD11: 1 | AE11: 1 | AF11: 180 | AH11: 54.6721632 | AJ11: 1 | AK11: 1 | AL11: 7
A12: 8 | B12: 8 | C12: 1 | D12: 1 | E12: 8 | F12: 225;235;245 | G12: 练气期 | H12: 前 | I12: 8 | J12: 225 | K12: 235 | L12: 245 | M12: =[1]ResourceLevelConfig!$E12*10 -> 1700 | N12: -1 | O12: -1 | P12: -1 | Q12: -1 | R12: -1 | S12: -1 | T12: =IF(G12=G13,0,CONCATENATE(80*ROUND(VLOOKUP(B12,[2]MonsterPowerUpConfig!$A:$I,9,FALSE),0),";",120*ROUND(VLOOKUP(B12,[2]MonsterPowerUpConfig!$A:$I,9,FALSE),0))) -> 0 | U12: =[3]主表!K10 -> 11.83834574 | V12: =[3]主表!L10 -> 1.109844913 | W12: =[3]主表!M10 -> 1.109844913 | X12: =[3]主表!N10 -> 0 | Y12: =[3]主表!$G10 -> 290 | Z12: =[3]升级!$H10 -> 1000 | AA12: =MAX(1,ROUND(100/(24*3600)*VLOOKUP(B12,[1]ResourceLevelConfig!$A:$E,5,FALSE),2)) -> 1 | AB12: -1 | AC12: 2 | AD12: 1 | AE12: 1 | AF12: 190 | AH12: 55.49224565 | AJ12: 1 | AK12: 1 | AL12: 8
A13: 9 | B13: 9 | C13: 1 | D13: 1 | E13: 9 | F13: 225;235;246 | G13: 练气期 | H13: 前 | I13: 9 | J13: 225 | K13: 235 | L13: 246 | M13: =[1]ResourceLevelConfig!$E13*10 -> 1800 | N13: -1 | O13: -1 | P13: -1 | Q13: -1 | R13: -1 | S13: -1 | T13: =IF(G13=G14,0,CONCATENATE(80*ROUND(VLOOKUP(B13,[2]MonsterPowerUpConfig!$A:$I,9,FALSE),0),";",120*ROUND(VLOOKUP(B13,[2]MonsterPowerUpConfig!$A:$I,9,FALSE),0))) -> 0 | U13: =[3]主表!K11 -> 12.10979531 | V13: =[3]主表!L11 -> 1.126492587 | W13: =[3]主表!M11 -> 1.126492587 | X13: =[3]主表!N11 -> 0 | Y13: =[3]主表!$G11 -> 295 | Z13: =[3]升级!$H11 -> 1000 | AA13: =MAX(1,ROUND(100/(24*3600)*VLOOKUP(B13,[1]ResourceLevelConfig!$A:$E,5,FALSE),2)) -> 1 | AB13: -1 | AC13: 2 | AD13: 1 | AE13: 1 | AF13: 200 | AH13: 56.32462933 | AJ13: 1 | AK13: 1 | AL13: 9
A14: 10 | B14: 10 | C14: 1 | D14: 1 | E14: 10 | F14: 225;235;247 | G14: 练气期 | H14: 前 | I14: 10 | J14: 225 | K14: 235 | L14: 247 | M14: =[1]ResourceLevelConfig!$E14*10 -> 1900 | N14: 100004 | O14: 20 | P14: 1301 | Q14: 1 | R14: 1301 | S14: 1 | T14: =IF(G14=G15,0,CONCATENATE(80*ROUND(VLOOKUP(B14,[2]MonsterPowerUpConfig!$A:$I,9,FALSE),0),";",120*ROUND(VLOOKUP(B14,[2]MonsterPowerUpConfig!$A:$I,9,FALSE),0))) -> 0 | U14: =[3]主表!K12 -> 12.38672473 | V14: =[3]主表!L12 -> 1.143389975 | W14: =[3]主表!M12 -> 1.143389975 | X14: =[3]主表!N12 -> 0 | Y14: =[3]主表!$G12 -> 299 | Z14: =[3]升级!$H12 -> 1000 | AA14: =MAX(1,ROUND(100/(24*3600)*VLOOKUP(B14,[1]ResourceLevelConfig!$A:$E,5,FALSE),2)) -> 1 | AB14: 20 | AC14: 2 | AD14: 1 | AE14: 1 | AF14: 210 | AH14: 57.16949877 | AJ14: 1 | AK14: 1 | AL14: 10
A15: 11 | B15: 11 | C15: 1 | D15: 2 | E15: 1 | F15: 225;236;238 | G15: 练气期 | H15: 中 | I15: 1 | J15: 225 | K15: 236 | L15: 238 | M15: =[1]ResourceLevelConfig!$E15*10 -> 2000 | N15: -1 | O15: -1 | P15: -1 | Q15: -1 | R15: -1 | S15: -1 | T15: =IF(G15=G16,0,CONCATENATE(80*ROUND(VLOOKUP(B15,[2]MonsterPowerUpConfig!$A:$I,9,FALSE),0),";",120*ROUND(VLOOKUP(B15,[2]MonsterPowerUpConfig!$A:$I,9,FALSE),0))) -> 0 | U15: =[3]主表!K13 -> 13.73020795 | V15: =[3]主表!L13 -> 1.257728973 | W15: =[3]主表!M13 -> 1.257728973 | X15: =[3]主表!N13 -> 0 | Y15: =[3]主表!$G13 -> 331 | Z15: =[3]升级!$H13 -> 1000 | AA15: =MAX(1,ROUND(100/(24*3600)*VLOOKUP(B15,[1]ResourceLevelConfig!$A:$E,5,FALSE),2)) -> 1 | AB15: -1 | AC15: 2 | AD15: 1 | AE15: 1 | AF15: 220 | AJ15: 1 | AK15: 1 | AL15: 11
A16: 12 | B16: 12 | C16: 1 | D16: 2 | E16: 2 | F16: 225;236;239 | G16: 练气期 | H16: 中 | I16: 2 | J16: 225 | K16: 236 | L16: 239 | M16: =[1]ResourceLevelConfig!$E16*10 -> 2100 | N16: -1 | O16: -1 | P16: -1 | Q16: -1 | R16: -1 | S16: -1 | T16: =IF(G16=G17,0,CONCATENATE(80*ROUND(VLOOKUP(B16,[2]MonsterPowerUpConfig!$A:$I,9,FALSE),0),";",120*ROUND(VLOOKUP(B16,[2]MonsterPowerUpConfig!$A:$I,9,FALSE),0))) -> 0 | U16: =[3]主表!K14 -> 14.04254398 | V16: =[3]主表!L14 -> 1.276594908 | W16: =[3]主表!M14 -> 1.276594908 | X16: =[3]主表!N14 -> 0 | Y16: =[3]主表!$G14 -> 337 | Z16: =[3]升级!$H14 -> 1000 | AA16: =MAX(1,ROUND(100/(24*3600)*VLOOKUP(B16,[1]ResourceLevelConfig!$A:$E,5,FALSE),2)) -> 1 | AB16: -1 | AC16: =AC15 -> 2 | AD16: =AD15 -> 1 | AE16: 1 | AF16: 230 | AJ16: 1 | AK16: 1 | AL16: 12
A17: 13 | B17: 13 | C17: 1 | D17: 2 | E17: 3 | F17: 225;236;240 | G17: 练气期 | H17: 中 | I17: 3 | J17: 225 | K17: 236 | L17: 240 | M17: =[1]ResourceLevelConfig!$E17*10 -> 2200 | N17: -1 | O17: -1 | P17: -1 | Q17: -1 | R17: -1 | S17: -1 | T17: =IF(G17=G18,0,CONCATENATE(80*ROUND(VLOOKUP(B17,[2]MonsterPowerUpConfig!$A:$I,9,FALSE),0),";",120*ROUND(VLOOKUP(B17,[2]MonsterPowerUpConfig!$A:$I,9,FALSE),0))) -> 0 | U17: =[3]主表!K15 -> 14.3611608 | V17: =[3]主表!L15 -> 1.295743831 | W17: =[3]主表!M15 -> 1.295743831 | X17: =[3]主表!N15 -> 0 | Y17: =[3]主表!$G15 -> 342 | Z17: =[3]升级!$H15 -> 1000 | AA17: =MAX(1,ROUND(100/(24*3600)*VLOOKUP(B17,[1]ResourceLevelConfig!$A:$E,5,FALSE),2)) -> 1 | AB17: -1 | AC17: =AC16 -> 2 | AD17: =AD16 -> 1 | AE17: =AE16 -> 1 | AF17: 240 | AJ17: 1 | AK17: 1 | AL17: 13
A18: 14 | B18: 14 | C18: 1 | D18: 2 | E18: 4 | F18: 225;236;241 | G18: 练气期 | H18: 中 | I18: 4 | J18: 225 | K18: 236 | L18: 241 | M18: =[1]ResourceLevelConfig!$E18*10 -> 2300 | N18: -1 | O18: -1 | P18: -1 | Q18: -1 | R18: -1 | S18: -1 | T18: =IF(G18=G19,0,CONCATENATE(80*ROUND(VLOOKUP(B18,[2]MonsterPowerUpConfig!$A:$I,9,FALSE),0),";",120*ROUND(VLOOKUP(B18,[2]MonsterPowerUpConfig!$A:$I,9,FALSE),0))) -> 0 | U18: =[3]主表!K16 -> 14.68617654 | V18: =[3]主表!L16 -> 1.315179989 | W18: =[3]主表!M16 -> 1.315179989 | X18: =[3]主表!N16 -> 0 | Y18: =[3]主表!$G16 -> 347 | Z18: =[3]升级!$H16 -> 1000 | AA18: =MAX(1,ROUND(100/(24*3600)*VLOOKUP(B18,[1]ResourceLevelConfig!$A:$E,5,FALSE),2)) -> 1 | AB18: -1 | AC18: 2 | AD18: 1 | AE18: 1 | AF18: 250 | AJ18: 1 | AK18: 1 | AL18: 14
A19: 15 | B19: 15 | C19: 1 | D19: 2 | E19: 5 | F19: 225;236;242 | G19: 练气期 | H19: 中 | I19: 5 | J19: 225 | K19: 236 | L19: 242 | M19: =[1]ResourceLevelConfig!$E19*10 -> 2400 | N19: -1 | O19: -1 | P19: -1 | Q19: -1 | R19: -1 | S19: -1 | T19: =IF(G19=G20,0,CONCATENATE(80*ROUND(VLOOKUP(B19,[2]MonsterPowerUpConfig!$A:$I,9,FALSE),0),";",120*ROUND(VLOOKUP(B19,[2]MonsterPowerUpConfig!$A:$I,9,FALSE),0))) -> 0 | U19: =[3]主表!K17 -> 15.01771149 | V19: =[3]主表!L17 -> 1.334907688 | W19: =[3]主表!M17 -> 1.334907688 | X19: =[3]主表!N17 -> 0 | Y19: =[3]主表!$G17 -> 353 | Z19: =[3]升级!$H17 -> 1000 | AA19: =MAX(1,ROUND(100/(24*3600)*VLOOKUP(B19,[1]ResourceLevelConfig!$A:$E,5,FALSE),2)) -> 1 | AB19: -1 | AC19: 2 | AD19: 1 | AE19: 1 | AF19: 260 | AJ19: 1 | AK19: 1 | AL19: 15
A20: 16 | B20: 16 | C20: 1 | D20: 2 | E20: 6 | F20: 225;236;243 | G20: 练气期 | H20: 中 | I20: 6 | J20: 225 | K20: 236 | L20: 243 | M20: =[1]ResourceLevelConfig!$E20*10 -> 2500 | N20: -1 | O20: -1 | P20: -1 | Q20: -1 | R20: -1 | S20: -1 | T20: =IF(G20=G21,0,CONCATENATE(80*ROUND(VLOOKUP(B20,[2]MonsterPowerUpConfig!$A:$I,9,FALSE),0),";",120*ROUND(VLOOKUP(B20,[2]MonsterPowerUpConfig!$A:$I,9,FALSE),0))) -> 0 | U20: =[3]主表!K18 -> 15.35588811 | V20: =[3]主表!L18 -> 1.354931304 | W20: =[3]主表!M18 -> 1.354931304 | X20: =[3]主表!N18 -> 0 | Y20: =[3]主表!$G18 -> 358 | Z20: =[3]升级!$H18 -> 1000 | AA20: =MAX(1,ROUND(100/(24*3600)*VLOOKUP(B20,[1]ResourceLevelConfig!$A:$E,5,FALSE),2)) -> 1 | AB20: -1 | AC20: 2 | AD20: 1 | AE20: 1 | AF20: 270 | AJ20: 1 | AK20: 1 | AL20: 16
A21: 17 | B21: 17 | C21: 1 | D21: 2 | E21: 7 | F21: 225;236;244 | G21: 练气期 | H21: 中 | I21: 7 | J21: 225 | K21: 236 | L21: 244 | M21: =[1]ResourceLevelConfig!$E21*10 -> 2600 | N21: -1 | O21: -1 | P21: -1 | Q21: -1 | R21: -1 | S21: -1 | T21: =IF(G21=G22,0,CONCATENATE(80*ROUND(VLOOKUP(B21,[2]MonsterPowerUpConfig!$A:$I,9,FALSE),0),";",120*ROUND(VLOOKUP(B21,[2]MonsterPowerUpConfig!$A:$I,9,FALSE),0))) -> 0 | U21: =[3]主表!K19 -> 15.70083104 | V21: =[3]主表!L19 -> 1.375255273 | W21: =[3]主表!M19 -> 1.375255273 | X21: =[3]主表!N19 -> 0 | Y21: =[3]主表!$G19 -> 364 | Z21: =[3]升级!$H19 -> 1000 | AA21: =MAX(1,ROUND(100/(24*3600)*VLOOKUP(B21,[1]ResourceLevelConfig!$A:$E,5,FALSE),2)) -> 1 | AB21: -1 | AC21: 2 | AD21: 1 | AE21: 1 | AF21: 280 | AJ21: 1 | AK21: 1 | AL21: 17
A22: 18 | B22: 18 | C22: 1 | D22: 2 | E22: 8 | F22: 225;236;245 | G22: 练气期 | H22: 中 | I22: 8 | J22: 225 | K22: 236 | L22: 245 | M22: =[1]ResourceLevelConfig!$E22*10 -> 2700 | N22: -1 | O22: -1 | P22: -1 | Q22: -1 | R22: -1 | S22: -1 | T22: =IF(G22=G23,0,CONCATENATE(80*ROUND(VLOOKUP(B22,[2]MonsterPowerUpConfig!$A:$I,9,FALSE),0),";",120*ROUND(VLOOKUP(B22,[2]MonsterPowerUpConfig!$A:$I,9,FALSE),0))) -> 0 | U22: =[3]主表!K20 -> 16.05266718 | V22: =[3]主表!L20 -> 1.395884102 | W22: =[3]主表!M20 -> 1.395884102 | X22: =[3]主表!N20 -> 0 | Y22: =[3]主表!$G20 -> 370 | Z22: =[3]升级!$H20 -> 1000 | AA22: =MAX(1,ROUND(100/(24*3600)*VLOOKUP(B22,[1]ResourceLevelConfig!$A:$E,5,FALSE),2)) -> 1 | AB22: -1 | AC22: 2 | AD22: 1 | AE22: 1 | AF22: 290 | AJ22: 1 | AK22: 1 | AL22: 18
A23: 19 | B23: 19 | C23: 1 | D23: 2 | E23: 9 | F23: 225;236;246 | G23: 练气期 | H23: 中 | I23: 9 | J23: 225 | K23: 236 | L23: 246 | M23: =[1]ResourceLevelConfig!$E23*10 -> 2800 | N23: -1 | O23: -1 | P23: -1 | Q23: -1 | R23: -1 | S23: -1 | T23: =IF(G23=G24,0,CONCATENATE(80*ROUND(VLOOKUP(B23,[2]MonsterPowerUpConfig!$A:$I,9,FALSE),0),";",120*ROUND(VLOOKUP(B23,[2]MonsterPowerUpConfig!$A:$I,9,FALSE),0))) -> 0 | U23: =[3]主表!K21 -> 16.41152572 | V23: =[3]主表!L21 -> 1.416822364 | W23: =[3]主表!M21 -> 1.416822364 | X23: =[3]主表!N21 -> 0 | Y23: =[3]主表!$G21 -> 376 | Z23: =[3]升级!$H21 -> 1000 | AA23: =MAX(1,ROUND(100/(24*3600)*VLOOKUP(B23,[1]ResourceLevelConfig!$A:$E,5,FALSE),2)) -> 1 | AB23: -1 | AC23: 2 | AD23: 1 | AE23: 1 | AF23: 300 | AJ23: 1 | AK23: 1 | AL23: 19
A24: 20 | B24: 20 | C24: 1 | D24: 2 | E24: 10 | F24: 225;236;247 | G24: 练气期 | H24: 中 | I24: 10 | J24: 225 | K24: 236 | L24: 247 | M24: =[1]ResourceLevelConfig!$E24*10 -> 2900 | N24: 100004 | O24: 20 | P24: 1301 | Q24: 1 | R24: 1301;1302 | S24: 1;1 | T24: =IF(G24=G25,0,CONCATENATE(80*ROUND(VLOOKUP(B24,[2]MonsterPowerUpConfig!$A:$I,9,FALSE),0),";",120*ROUND(VLOOKUP(B24,[2]MonsterPowerUpConfig!$A:$I,9,FALSE),0))) -> 0 | U24: =[3]主表!K22 -> 16.77753816 | V24: =[3]主表!L22 -> 1.438074699 | W24: =[3]主表!M22 -> 1.438074699 | X24: =[3]主表!N22 -> 0 | Y24: =[3]主表!$G22 -> 382 | Z24: =[3]升级!$H22 -> 1000 | AA24: =MAX(1,ROUND(100/(24*3600)*VLOOKUP(B24,[1]ResourceLevelConfig!$A:$E,5,FALSE),2)) -> 1 | AB24: 20 | AC24: 2 | AD24: 1 | AE24: 1 | AF24: 310 | AJ24: 1 | AK24: 1 | AL24: 20
A25: 21 | B25: 21 | C25: 1 | D25: 3 | E25: 1 | F25: 225;237;238 | G25: 练气期 | H25: 后 | I25: 1 | J25: 225 | K25: 237 | L25: 238 | M25: =[1]ResourceLevelConfig!$E25*10 -> 3000 | N25: -1 | O25: -1 | P25: -1 | Q25: -1 | R25: -1 | S25: -1 | T25: =IF(G25=G26,0,CONCATENATE(80*ROUND(VLOOKUP(B25,[2]MonsterPowerUpConfig!$A:$I,9,FALSE),0),";",120*ROUND(VLOOKUP(B25,[2]MonsterPowerUpConfig!$A:$I,9,FALSE),0))) -> 0 | U25: =[3]主表!K23 -> 18.58711549 | V25: =[3]主表!L23 -> 1.581882169 | W25: =[3]主表!M23 -> 1.581882169 | X25: =[3]主表!N23 -> 0 | Y25: =[3]主表!$G23 -> 444 | Z25: =[3]升级!$H23 -> 1000 | AA25: =MAX(1,ROUND(100/(24*3600)*VLOOKUP(B25,[1]ResourceLevelConfig!$A:$E,5,FALSE),2)) -> 1 | AB25: -1 | AC25: 3 | AD25: 1 | AE25: 1 | AF25: 320 | AJ25: 1 | AK25: 1 | AL25: 21
A26: 22 | B26: 22 | C26: 1 | D26: 3 | E26: 2 | F26: 225;237;239 | G26: 练气期 | H26: 后 | I26: 2 | J26: 225 | K26: 237 | L26: 239 | M26: =[1]ResourceLevelConfig!$E26*10 -> 3100 | N26: -1 | O26: -1 | P26: -1 | Q26: -1 | R26: -1 | S26: -1 | T26: =IF(G26=G27,0,CONCATENATE(80*ROUND(VLOOKUP(B26,[2]MonsterPowerUpConfig!$A:$I,9,FALSE),0),";",120*ROUND(VLOOKUP(B26,[2]MonsterPowerUpConfig!$A:$I,9,FALSE),0))) -> 0 | U26: =[3]主表!K24 -> 18.99972309 | V26: =[3]主表!L24 -> 1.605610402 | W26: =[3]主表!M24 -> 1.605610402 | X26: =[3]主表!N24 -> 0 | Y26: =[3]主表!$G24 -> 451 | Z26: =[3]升级!$H24 -> 1000 | AA26: =MAX(1,ROUND(100/(24*3600)*VLOOKUP(B26,[1]ResourceLevelConfig!$A:$E,5,FALSE),2)) -> 1 | AB26: -1 | AC26: =AC25 -> 3 | AD26: =AD25 -> 1 | AE26: =AE25 -> 1 | AF26: 330 | AJ26: 1 | AK26: 1 | AL26: 22
A27: 23 | B27: 23 | C27: 1 | D27: 3 | E27: 3 | F27: 225;237;240 | G27: 练气期 | H27: 后 | I27: 3 | J27: 225 | K27: 237 | L27: 240 | M27: =[1]ResourceLevelConfig!$E27*10 -> 3200 | N27: -1 | O27: -1 | P27: -1 | Q27: -1 | R27: -1 | S27: -1 | T27: =IF(G27=G28,0,CONCATENATE(80*ROUND(VLOOKUP(B27,[2]MonsterPowerUpConfig!$A:$I,9,FALSE),0),";",120*ROUND(VLOOKUP(B27,[2]MonsterPowerUpConfig!$A:$I,9,FALSE),0))) -> 0 | U27: =[3]主表!K25 -> 19.42052682 | V27: =[3]主表!L25 -> 1.629694558 | W27: =[3]主表!M25 -> 1.629694558 | X27: =[3]主表!N25 -> 0 | Y27: =[3]主表!$G25 -> 458 | Z27: =[3]升级!$H25 -> 1000 | AA27: =MAX(1,ROUND(100/(24*3600)*VLOOKUP(B27,[1]ResourceLevelConfig!$A:$E,5,FALSE),2)) -> 1 | AB27: -1 | AC27: =AC26 -> 3 | AD27: 1 | AE27: 1 | AF27: 340 | AJ27: 1 | AK27: 1 | AL27: 23
A28: 24 | B28: 24 | C28: 1 | D28: 3 | E28: 4 | F28: 225;237;241 | G28: 练气期 | H28: 后 | I28: 4 | J28: 225 | K28: 237 | L28: 241 | M28: =[1]ResourceLevelConfig!$E28*10 -> 3300 | N28: -1 | O28: -1 | P28: -1 | Q28: -1 | R28: -1 | S28: -1 | T28: =IF(G28=G29,0,CONCATENATE(80*ROUND(VLOOKUP(B28,[2]MonsterPowerUpConfig!$A:$I,9,FALSE),0),";",120*ROUND(VLOOKUP(B28,[2]MonsterPowerUpConfig!$A:$I,9,FALSE),0))) -> 0 | U28: =[3]主表!K26 -> 19.84967972 | V28: =[3]主表!L26 -> 1.654139976 | W28: =[3]主表!M26 -> 1.654139976 | X28: =[3]主表!N26 -> 0 | Y28: =[3]主表!$G26 -> 466 | Z28: =[3]升级!$H26 -> 1000 | AA28: =MAX(1,ROUND(100/(24*3600)*VLOOKUP(B28,[1]ResourceLevelConfig!$A:$E,5,FALSE),2)) -> 1 | AB28: -1 | AC28: 3 | AD28: 1 | AE28: 1 | AF28: 350 | AJ28: 1 | AK28: 1 | AL28: 24
A29: 25 | B29: 25 | C29: 1 | D29: 3 | E29: 5 | F29: 225;237;242 | G29: 练气期 | H29: 后 | I29: 5 | J29: 225 | K29: 237 | L29: 242 | M29: =[1]ResourceLevelConfig!$E29*10 -> 3400 | N29: -1 | O29: -1 | P29: -1 | Q29: -1 | R29: -1 | S29: -1 | T29: =IF(G29=G30,0,CONCATENATE(80*ROUND(VLOOKUP(B29,[2]MonsterPowerUpConfig!$A:$I,9,FALSE),0),";",120*ROUND(VLOOKUP(B29,[2]MonsterPowerUpConfig!$A:$I,9,FALSE),0))) -> 0 | U29: =[3]主表!K27 -> 20.28733758 | V29: =[3]主表!L27 -> 1.678952076 | W29: =[3]主表!M27 -> 1.678952076 | X29: =[3]主表!N27 -> 0 | Y29: =[3]主表!$G27 -> 473 | Z29: =[3]升级!$H27 -> 1000 | AA29: =MAX(1,ROUND(100/(24*3600)*VLOOKUP(B29,[1]ResourceLevelConfig!$A:$E,5,FALSE),2)) -> 1 | AB29: -1 | AC29: 3 | AD29: 1 | AE29: 1 | AF29: 360 | AJ29: 1 | AK29: 1 | AL29: 25
A30: 26 | B30: 26 | C30: 1 | D30: 3 | E30: 6 | F30: 225;237;243 | G30: 练气期 | H30: 后 | I30: 6 | J30: 225 | K30: 237 | L30: 243 | M30: =[1]ResourceLevelConfig!$E30*10 -> 3500 | N30: -1 | O30: -1 | P30: -1 | Q30: -1 | R30: -1 | S30: -1 | T30: =IF(G30=G31,0,CONCATENATE(80*ROUND(VLOOKUP(B30,[2]MonsterPowerUpConfig!$A:$I,9,FALSE),0),";",120*ROUND(VLOOKUP(B30,[2]MonsterPowerUpConfig!$A:$I,9,FALSE),0))) -> 0 | U30: =[3]主表!K28 -> 20.73365901 | V30: =[3]主表!L28 -> 1.704136357 | W30: =[3]主表!M28 -> 1.704136357 | X30: =[3]主表!N28 -> 0 | Y30: =[3]主表!$G28 -> 481 | Z30: =[3]升级!$H28 -> 1000 | AA30: =MAX(1,ROUND(100/(24*3600)*VLOOKUP(B30,[1]ResourceLevelConfig!$A:$E,5,FALSE),2)) -> 1 | AB30: -1 | AC30: 3 | AD30: 1 | AE30: 1 | AF30: 370 | AJ30: 1 | AK30: 1 | AL30: 26
A31: 27 | B31: 27 | C31: 1 | D31: 3 | E31: 7 | F31: 225;237;244 | G31: 练气期 | H31: 后 | I31: 7 | J31: 225 | K31: 237 | L31: 244 | M31: =[1]ResourceLevelConfig!$E31*10 -> 3600 | N31: -1 | O31: -1 | P31: -1 | Q31: -1 | R31: -1 | S31: -1 | T31: =IF(G31=G32,0,CONCATENATE(80*ROUND(VLOOKUP(B31,[2]MonsterPowerUpConfig!$A:$I,9,FALSE),0),";",120*ROUND(VLOOKUP(B31,[2]MonsterPowerUpConfig!$A:$I,9,FALSE),0))) -> 0 | U31: =[3]主表!K29 -> 21.18880543 | V31: =[3]主表!L29 -> 1.729698402 | W31: =[3]主表!M29 -> 1.729698402 | X31: =[3]主表!N29 -> 0 | Y31: =[3]主表!$G29 -> 489 | Z31: =[3]升级!$H29 -> 1000 | AA31: =MAX(1,ROUND(100/(24*3600)*VLOOKUP(B31,[1]ResourceLevelConfig!$A:$E,5,FALSE),2)) -> 1 | AB31: -1 | AC31: 3 | AD31: 1 | AE31: 1 | AF31: 380 | AJ31: 1 | AK31: 1 | AL31: 27
A32: 28 | B32: 28 | C32: 1 | D32: 3 | E32: 8 | F32: 225;237;245 | G32: 练气期 | H32: 后 | I32: 8 | J32: 225 | K32: 237 | L32: 245 | M32: =[1]ResourceLevelConfig!$E32*10 -> 3700 | N32: -1 | O32: -1 | P32: -1 | Q32: -1 | R32: -1 | S32: -1 | T32: =IF(G32=G33,0,CONCATENATE(80*ROUND(VLOOKUP(B32,[2]MonsterPowerUpConfig!$A:$I,9,FALSE),0),";",120*ROUND(VLOOKUP(B32,[2]MonsterPowerUpConfig!$A:$I,9,FALSE),0))) -> 0 | U32: =[3]主表!K30 -> 21.65294117 | V32: =[3]主表!L30 -> 1.755643878 | W32: =[3]主表!M30 -> 1.755643878 | X32: =[3]主表!N30 -> 0 | Y32: =[3]主表!$G30 -> 497 | Z32: =[3]升级!$H30 -> 1000 | AA32: =MAX(1,ROUND(100/(24*3600)*VLOOKUP(B32,[1]ResourceLevelConfig!$A:$E,5,FALSE),2)) -> 1 | AB32: -1 | AC32: 3 | AD32: 1 | AE32: 1 | AF32: 390 | AJ32: 1 | AK32: 1 | AL32: 28
A33: 29 | B33: 29 | C33: 1 | D33: 3 | E33: 9 | F33: 225;237;246 | G33: 练气期 | H33: 后 | I33: 9 | J33: 225 | K33: 237 | L33: 246 | M33: =[1]ResourceLevelConfig!$E33*10 -> 3800 | N33: -1 | O33: -1 | P33: -1 | Q33: -1 | R33: -1 | S33: -1 | T33: =IF(G33=G34,0,CONCATENATE(80*ROUND(VLOOKUP(B33,[2]MonsterPowerUpConfig!$A:$I,9,FALSE),0),";",120*ROUND(VLOOKUP(B33,[2]MonsterPowerUpConfig!$A:$I,9,FALSE),0))) -> 0 | U33: =[3]主表!K31 -> 22.1262335 | V33: =[3]主表!L31 -> 1.781978537 | W33: =[3]主表!M31 -> 1.781978537 | X33: =[3]主表!N31 -> 0 | Y33: =[3]主表!$G31 -> 506 | Z33: =[3]升级!$H31 -> 1000 | AA33: =MAX(1,ROUND(100/(24*3600)*VLOOKUP(B33,[1]ResourceLevelConfig!$A:$E,5,FALSE),2)) -> 1 | AB33: -1 | AC33: 3 | AD33: 1 | AE33: 1 | AF33: 400 | AJ33: 1 | AK33: 1 | AL33: 29
A34: 30 | B34: 30 | C34: 1 | D34: 3 | E34: 10 | F34: 225;237;247 | G34: 练气期 | H34: 后 | I34: 10 | J34: 225 | K34: 237 | L34: 247 | M34: =[1]ResourceLevelConfig!$E34*10 -> 3900 | N34: 100004 | O34: 20 | P34: 1301 | Q34: 1 | R34: 1301;1302;1303 | S34: 1;1;1 | T34: =IF(G34=G35,0,CONCATENATE("1;1")) -> 1;1 | U34: =[3]主表!K32 -> 22.60885268 | V34: =[3]主表!L32 -> 1.808708215 | W34: =[3]主表!M32 -> 1.808708215 | X34: =[3]主表!N32 -> 0 | Y34: =[3]主表!$G32 -> 514 | Z34: =[3]升级!$H32 -> 1000 | AA34: =MAX(1,ROUND(100/(24*3600)*VLOOKUP(B34,[1]ResourceLevelConfig!$A:$E,5,FALSE),2)) -> 1 | AB34: 50 | AC34: 3 | AD34: 1 | AE34: 1 | AF34: 410 | AJ34: 1 | AK34: 1 | AL34: 30
A35: 31 | B35: 31 | C35: 2 | D35: 4 | E35: 1 | F35: 226;235;238 | G35: 筑基期 | H35: 前 | I35: 1 | J35: 226 | K35: 235 | L35: 238 | M35: =[1]ResourceLevelConfig!$E35*10 -> 4000 | N35: -1 | O35: -1 | P35: -1 | Q35: -1 | R35: =IF(I35=10,"1001;1002;1004",-1) -> -1 | S35: =IF(R35=-1,-1,"100;200;300") -> -1 | T35: =IF(G35=G36,0,CONCATENATE("1;1")) -> 0 | U35: =[3]主表!K33 -> 34.13936755 | V35: =[3]主表!L33 -> 2.713062322 | W35: =[3]主表!M33 -> 2.713062322 | X35: =[3]主表!N33 -> 0 | Y35: =[3]主表!$G33 -> 783 | Z35: =[3]升级!$H33 -> 1100 | AA35: =MAX(1,ROUND(100/(24*3600)*VLOOKUP(B35,[1]ResourceLevelConfig!$A:$E,5,FALSE),2)) -> 1 | AB35: -1 | AC35: 3 | AD35: 2 | AE35: 1 | AF35: 420 | AJ35: 1 | AK35: 1 | AL35: 31
A36: 32 | B36: 32 | C36: 2 | D36: 4 | E36: 2 | F36: 226;235;239 | G36: 筑基期 | H36: 前 | I36: 2 | J36: 226 | K36: 235 | L36: 239 | M36: =[1]ResourceLevelConfig!$E36*10 -> 4100 | N36: -1 | O36: -1 | P36: -1 | Q36: -1 | R36: =IF(I36=10,"1001;1002;1004",-1) -> -1 | S36: -1 | T36: 0 | U36: =[3]主表!K34 -> 34.88093792 | V36: =[3]主表!L34 -> 2.753758257 | W36: =[3]主表!M34 -> 2.753758257 | X36: =[3]主表!N34 -> 0 | Y36: =[3]主表!$G34 -> 796 | Z36: =[3]升级!$H34 -> 1100 | AA36: =MAX(1,ROUND(100/(24*3600)*VLOOKUP(B36,[1]ResourceLevelConfig!$A:$E,5,FALSE),2)) -> 1 | AB36: -1 | AC36: =AC35 -> 3 | AD36: =AD35 -> 2 | AE36: =AE35 -> 1 | AF36: 430 | AJ36: 1 | AK36: 1 | AL36: 32
A37: 33 | B37: 33 | C37: 2 | D37: 4 | E37: 3 | F37: 226;235;240 | G37: 筑基期 | H37: 前 | I37: 3 | J37: 226 | K37: 235 | L37: 240 | M37: =[1]ResourceLevelConfig!$E37*10 -> 4200 | N37: -1 | O37: -1 | P37: -1 | Q37: -1 | R37: -1 | S37: -1 | T37: 0 | U37: =[3]主表!K35 -> 35.63707404 | V37: =[3]主表!L35 -> 2.795064631 | W37: =[3]主表!M35 -> 2.795064631 | X37: =[3]主表!N35 -> 0 | Y37: =[3]主表!$G35 -> 810 | Z37: =[3]升级!$H35 -> 1100 | AA37: =MAX(1,ROUND(100/(24*3600)*VLOOKUP(B37,[1]ResourceLevelConfig!$A:$E,5,FALSE),2)) -> 1 | AB37: -1 | AC37: =AC36 -> 3 | AD37: 2 | AE37: 1 | AF37: 440 | AJ37: 1 | AK37: 1 | AL37: 33
A38: 34 | B38: 34 | C38: 2 | D38: 4 | E38: 4 | F38: 226;235;241 | G38: 筑基期 | H38: 前 | I38: 4 | J38: 226 | K38: 235 | L38: 241 | M38: =[1]ResourceLevelConfig!$E38*10 -> 4300 | N38: -1 | O38: -1 | P38: -1 | Q38: -1 | R38: -1 | S38: -1 | T38: 0 | U38: =[3]主表!K36 -> 36.40804604 | V38: =[3]主表!L36 -> 2.8369906 | W38: =[3]主表!M36 -> 2.8369906 | X38: =[3]主表!N36 -> 0 | Y38: =[3]主表!$G36 -> 824 | Z38: =[3]升级!$H36 -> 1100 | AA38: =MAX(1,ROUND(100/(24*3600)*VLOOKUP(B38,[1]ResourceLevelConfig!$A:$E,5,FALSE),2)) -> 1 | AB38: -1 | AC38: 3 | AD38: 2 | AE38: 1 | AF38: 450 | AJ38: 1 | AK38: 1 | AL38: 34
A39: 35 | B39: 35 | C39: 2 | D39: 4 | E39: 5 | F39: 226;235;242 | G39: 筑基期 | H39: 前 | I39: 5 | J39: 226 | K39: 235 | L39: 242 | M39: =[1]ResourceLevelConfig!$E39*10 -> 4400 | N39: -1 | O39: -1 | P39: -1 | Q39: -1 | R39: -1 | S39: -1 | T39: 0 | U39: =[3]主表!K37 -> 37.19412885 | V39: =[3]主表!L37 -> 2.879545459 | W39: =[3]主表!M37 -> 2.879545459 | X39: =[3]主表!N37 -> 0 | Y39: =[3]主表!$G37 -> 838 | Z39: =[3]升级!$H37 -> 1100 | AA39: =MAX(1,ROUND(100/(24*3600)*VLOOKUP(B39,[1]ResourceLevelConfig!$A:$E,5,FALSE),2)) -> 1 | AB39: -1 | AC39: 3 | AD39: 2 | AE39: 1 | AF39: 460 | AJ39: 1 | AK39: 1 | AL39: 35
A40: 36 | B40: 36 | C40: 2 | D40: 4 | E40: 6 | F40: 226;235;243 | G40: 筑基期 | H40: 前 | I40: 6 | J40: 226 | K40: 235 | L40: 243 | M40: =[1]ResourceLevelConfig!$E40*10 -> 4500 | N40: -1 | O40: -1 | P40: -1 | Q40: -1 | R40: -1 | S40: -1 | T40: 0 | U40: =[3]主表!K38 -> 37.99560233 | V40: =[3]主表!L38 -> 2.922738641 | W40: =[3]主表!M38 -> 2.922738641 | X40: =[3]主表!N38 -> 0 | Y40: =[3]主表!$G38 -> 853 | Z40: =[3]升级!$H38 -> 1100 | AA40: =MAX(1,ROUND(100/(24*3600)*VLOOKUP(B40,[1]ResourceLevelConfig!$A:$E,5,FALSE),2)) -> 1 | AB40: -1 | AC40: 3 | AD40: 2 | AE40: 1 | AF40: 470 | AJ40: 1 | AK40: 1 | AL40: 36
A41: 37 | B41: 37 | C41: 2 | D41: 4 | E41: 7 | F41: 226;235;244 | G41: 筑基期 | H41: 前 | I41: 7 | J41: 226 | K41: 235 | L41: 244 | M41: =[1]ResourceLevelConfig!$E41*10 -> 4600 | N41: -1 | O41: -1 | P41: -1 | Q41: -1 | R41: -1 | S41: -1 | T41: 0 | U41: =[3]主表!K39 -> 38.81275135 | V41: =[3]主表!L39 -> 2.966579721 | W41: =[3]主表!M39 -> 2.966579721 | X41: =[3]主表!N39 -> 0 | Y41: =[3]主表!$G39 -> 868 | Z41: =[3]升级!$H39 -> 1100 | AA41: =MAX(1,ROUND(100/(24*3600)*VLOOKUP(B41,[1]ResourceLevelConfig!$A:$E,5,FALSE),2)) -> 1 | AB41: -1 | AC41: 3 | AD41: 2 | AE41: 1 | AF41: 480 | AJ41: 1 | AK41: 1 | AL41: 37
A42: 38 | B42: 38 | C42: 2 | D42: 4 | E42: 8 | F42: 226;235;245 | G42: 筑基期 | H42: 前 | I42: 8 | J42: 226 | K42: 235 | L42: 245 | M42: =[1]ResourceLevelConfig!$E42*10 -> 4700 | N42: -1 | O42: -1 | P42: -1 | Q42: -1 | R42: -1 | S42: -1 | T42: 0 | U42: =[3]主表!K40 -> 39.64586582 | V42: =[3]主表!L40 -> 3.011078417 | W42: =[3]主表!M40 -> 3.011078417 | X42: =[3]主表!N40 -> 0 | Y42: =[3]主表!$G40 -> 883 | Z42: =[3]升级!$H40 -> 1100 | AA42: =MAX(1,ROUND(100/(24*3600)*VLOOKUP(B42,[1]ResourceLevelConfig!$A:$E,5,FALSE),2)) -> 1 | AB42: -1 | AC42: 3 | AD42: 2 | AE42: 1 | AF42: 490 | AJ42: 1 | AK42: 1 | AL42: 38
A43: 39 | B43: 39 | C43: 2 | D43: 4 | E43: 9 | F43: 226;235;246 | G43: 筑基期 | H43: 前 | I43: 9 | J43: 226 | K43: 235 | L43: 246 | M43: =[1]ResourceLevelConfig!$E43*10 -> 4800 | N43: -1 | O43: -1 | P43: -1 | Q43: -1 | R43: -1 | S43: -1 | T43: 0 | U43: =[3]主表!K41 -> 40.49524085 | V43: =[3]主表!L41 -> 3.056244593 | W43: =[3]主表!M41 -> 3.056244593 | X43: =[3]主表!N41 -> 0 | Y43: =[3]主表!$G41 -> 899 | Z43: =[3]升级!$H41 -> 1100 | AA43: =MAX(1,ROUND(100/(24*3600)*VLOOKUP(B43,[1]ResourceLevelConfig!$A:$E,5,FALSE),2)) -> 1 | AB43: -1 | AC43: 3 | AD43: 2 | AE43: 1 | AF43: 500 | AJ43: 1 | AK43: 1 | AL43: 39
A44: 40 | B44: 40 | C44: 2 | D44: 4 | E44: 10 | F44: 226;235;247 | G44: 筑基期 | H44: 前 | I44: 10 | J44: 226 | K44: 235 | L44: 247 | M44: =[1]ResourceLevelConfig!$E44*10 -> 4900 | N44: 100004 | O44: 20 | P44: 1301 | Q44: 1 | R44: 1301 | S44: 1 | T44: 0 | U44: =[3]主表!K42 -> 41.36117682 | V44: =[3]主表!L42 -> 3.102088262 | W44: =[3]主表!M42 -> 3.102088262 | X44: =[3]主表!N42 -> 0 | Y44: =[3]主表!$G42 -> 915 | Z44: =[3]升级!$H42 -> 1100 | AA44: =MAX(1,ROUND(100/(24*3600)*VLOOKUP(B44,[1]ResourceLevelConfig!$A:$E,5,FALSE),2)) -> 1 | AB44: 20 | AC44: 3 | AD44: 2 | AE44: 1 | AF44: 510 | AJ44: 1 | AK44: 1 | AL44: 40
A45: 41 | B45: 41 | C45: 2 | D45: 5 | E45: 1 | F45: 226;236;238 | G45: 筑基期 | H45: 中 | I45: 1 | J45: 226 | K45: 236 | L45: 238 | M45: =[1]ResourceLevelConfig!$E45*10 -> 5000 | N45: -1 | O45: -1 | P45: -1 | Q45: -1 | R45: =IF(I45=10,"1001;1002;1004",-1) -> -1 | S45: -1 | T45: 0 | U45: =[3]主表!K43 -> 45.78165259 | V45: =[3]主表!L43 -> 3.412297088 | W45: =[3]主表!M43 -> 3.412297088 | X45: =[3]主表!N43 -> 0 | Y45: =[3]主表!$G43 -> 1022 | Z45: =[3]升级!$H43 -> 1100 | AA45: =MAX(1,ROUND(100/(24*3600)*VLOOKUP(B45,[1]ResourceLevelConfig!$A:$E,5,FALSE),2)) -> 1 | AB45: -1 | AC45: 3 | AD45: 2 | AE45: 2 | AF45: 520 | AJ45: 1 | AK45: 1 | AL45: 41
A46: 42 | B46: 42 | C46: 2 | D46: 5 | E46: 2 | F46: 226;236;239 | G46: 筑基期 | H46: 中 | I46: 2 | J46: 226 | K46: 236 | L46: 239 | M46: =[1]ResourceLevelConfig!$E46*10 -> 5100 | N46: -1 | O46: -1 | P46: -1 | Q46: -1 | R46: -1 | S46: -1 | T46: 0 | U46: =[3]主表!K44 -> 46.75700085 | V46: =[3]主表!L44 -> 3.463481544 | W46: =[3]主表!M44 -> 3.463481544 | X46: =[3]主表!N44 -> 0 | Y46: =[3]主表!$G44 -> 1041 | Z46: =[3]升级!$H44 -> 1100 | AA46: =MAX(1,ROUND(100/(24*3600)*VLOOKUP(B46,[1]ResourceLevelConfig!$A:$E,5,FALSE),2)) -> 1 | AB46: -1 | AC46: =AC45 -> 3 | AD46: =AD45 -> 2 | AE46: =AE45 -> 2 | AF46: 530 | AJ46: 1 | AK46: 1 | AL46: 42
A47: 43 | B47: 43 | C47: 2 | D47: 5 | E47: 3 | F47: 226;236;240 | G47: 筑基期 | H47: 中 | I47: 3 | J47: 226 | K47: 236 | L47: 240 | M47: =[1]ResourceLevelConfig!$E47*10 -> 5200 | N47: -1 | O47: -1 | P47: -1 | Q47: -1 | R47: -1 | S47: -1 | T47: 0 | U47: =[3]主表!K45 -> 47.75130867 | V47: =[3]主表!L45 -> 3.515433767 | W47: =[3]主表!M45 -> 3.515433767 | X47: =[3]主表!N45 -> 0 | Y47: =[3]主表!$G45 -> 1060 | Z47: =[3]升级!$H45 -> 1100 | AA47: =MAX(1,ROUND(100/(24*3600)*VLOOKUP(B47,[1]ResourceLevelConfig!$A:$E,5,FALSE),2)) -> 1 | AB47: -1 | AC47: =AC46 -> 3 | AD47: =AD46 -> 2 | AE47: =AE46 -> 2 | AF47: 540 | AJ47: 1 | AK47: 1 | AL47: 43
A48: 44 | B48: 44 | C48: 2 | D48: 5 | E48: 4 | F48: 226;236;241 | G48: 筑基期 | H48: 中 | I48: 4 | J48: 226 | K48: 236 | L48: 241 | M48: =[1]ResourceLevelConfig!$E48*10 -> 5300 | N48: -1 | O48: -1 | P48: -1 | Q48: -1 | R48: -1 | S48: -1 | T48: 0 | U48: =[3]主表!K46 -> 48.76492541 | V48: =[3]主表!L46 -> 3.568165274 | W48: =[3]主表!M46 -> 3.568165274 | X48: =[3]主表!N46 -> 0 | Y48: =[3]主表!$G46 -> 1079 | Z48: =[3]升级!$H46 -> 1100 | AA48: =MAX(1,ROUND(100/(24*3600)*VLOOKUP(B48,[1]ResourceLevelConfig!$A:$E,5,FALSE),2)) -> 1 | AB48: -1 | AC48: 3 | AD48: 2 | AE48: 2 | AF48: 550 | AJ48: 1 | AK48: 1 | AL48: 44
A49: 45 | B49: 45 | C49: 2 | D49: 5 | E49: 5 | F49: 226;236;242 | G49: 筑基期 | H49: 中 | I49: 5 | J49: 226 | K49: 236 | L49: 242 | M49: =[1]ResourceLevelConfig!$E49*10 -> 5410 | N49: -1 | O49: -1 | P49: -1 | Q49: -1 | R49: -1 | S49: -1 | T49: 0 | U49: =[3]主表!K47 -> 49.7982066 | V49: =[3]主表!L47 -> 3.621687753 | W49: =[3]主表!M47 -> 3.621687753 | X49: =[3]主表!N47 -> 0 | Y49: =[3]主表!$G47 -> 1099 | Z49: =[3]升级!$H47 -> 1100 | AA49: =MAX(1,ROUND(100/(24*3600)*VLOOKUP(B49,[1]ResourceLevelConfig!$A:$E,5,FALSE),2)) -> 1 | AB49: -1 | AC49: 3 | AD49: 2 | AE49: 2 | AF49: 560 | AJ49: 1 | AK49: 1 | AL49: 45
A50: 46 | B50: 46 | C50: 2 | D50: 5 | E50: 6 | F50: 226;236;243 | G50: 筑基期 | H50: 中 | I50: 6 | J50: 226 | K50: 236 | L50: 243 | M50: =[1]ResourceLevelConfig!$E50*10 -> 5520 | N50: -1 | O50: -1 | P50: -1 | Q50: -1 | R50: -1 | S50: -1 | T50: 0 | U50: =[3]主表!K48 -> 50.85151412 | V50: =[3]主表!L48 -> 3.676013069 | W50: =[3]主表!M48 -> 3.676013069 | X50: =[3]主表!N48 -> 0 | Y50: =[3]主表!$G48 -> 1119 | Z50: =[3]升级!$H48 -> 1100 | AA50: =MAX(1,ROUND(100/(24*3600)*VLOOKUP(B50,[1]ResourceLevelConfig!$A:$E,5,FALSE),2)) -> 1 | AB50: -1 | AC50: 3 | AD50: 2 | AE50: 2 | AF50: 570 | AJ50: 1 | AK50: 1 | AL50: 46
A51: 47 | B51: 47 | C51: 2 | D51: 5 | E51: 7 | F51: 226;236;244 | G51: 筑基期 | H51: 中 | I51: 7 | J51: 226 | K51: 236 | L51: 244 | M51: =[1]ResourceLevelConfig!$E51*10 -> 5630 | N51: -1 | O51: -1 | P51: -1 | Q51: -1 | R51: -1 | S51: -1 | T51: 0 | U51: =[3]主表!K49 -> 51.92521627 | V51: =[3]主表!L49 -> 3.731153265 | W51: =[3]主表!M49 -> 3.731153265 | X51: =[3]主表!N49 -> 0 | Y51: =[3]主表!$G49 -> 1140 | Z51: =[3]升级!$H49 -> 1100 | AA51: =MAX(1,ROUND(100/(24*3600)*VLOOKUP(B51,[1]ResourceLevelConfig!$A:$E,5,FALSE),2)) -> 1 | AB51: -1 | AC51: 3 | AD51: 2 | AE51: 2 | AF51: 580 | AJ51: 1 | AK51: 1 | AL51: 47
A52: 48 | B52: 48 | C52: 2 | D52: 5 | E52: 8 | F52: 226;236;245 | G52: 筑基期 | H52: 中 | I52: 8 | J52: 226 | K52: 236 | L52: 245 | M52: =[1]ResourceLevelConfig!$E52*10 -> 5740 | N52: -1 | O52: -1 | P52: -1 | Q52: -1 | R52: -1 | S52: -1 | T52: 0 | U52: =[3]主表!K50 -> 53.0196879 | V52: =[3]主表!L50 -> 3.787120564 | W52: =[3]主表!M50 -> 3.787120564 | X52: =[3]主表!N50 -> 0 | Y52: =[3]主表!$G50 -> 1161 | Z52: =[3]升级!$H50 -> 1100 | AA52: =MAX(1,ROUND(100/(24*3600)*VLOOKUP(B52,[1]ResourceLevelConfig!$A:$E,5,FALSE),2)) -> 1 | AB52: -1 | AC52: 3 | AD52: 2 | AE52: 2 | AF52: 590 | AJ52: 1 | AK52: 1 | AL52: 48
A53: 49 | B53: 49 | C53: 2 | D53: 5 | E53: 9 | F53: 226;236;246 | G53: 筑基期 | H53: 中 | I53: 9 | J53: 226 | K53: 236 | L53: 246 | M53: =[1]ResourceLevelConfig!$E53*10 -> 5850 | N53: -1 | O53: -1 | P53: -1 | Q53: -1 | R53: -1 | S53: -1 | T53: 0 | U53: =[3]主表!K51 -> 54.1353105 | V53: =[3]主表!L51 -> 3.843927373 | W53: =[3]主表!M51 -> 3.843927373 | X53: =[3]主表!N51 -> 0 | Y53: =[3]主表!$G51 -> 1183 | Z53: =[3]升级!$H51 -> 1100 | AA53: =MAX(1,ROUND(100/(24*3600)*VLOOKUP(B53,[1]ResourceLevelConfig!$A:$E,5,FALSE),2)) -> 1 | AB53: -1 | AC53: 3 | AD53: 2 | AE53: 2 | AF53: 600 | AJ53: 1 | AK53: 1 | AL53: 49
A54: 50 | B54: 50 | C54: 2 | D54: 5 | E54: 10 | F54: 226;236;247 | G54: 筑基期 | H54: 中 | I54: 10 | J54: 226 | K54: 236 | L54: 247 | M54: =[1]ResourceLevelConfig!$E54*10 -> 5970 | N54: 100004 | O54: 20 | P54: 1301 | Q54: 1 | R54: 1301;1302 | S54: 1;1 | T54: 0 | U54: =[3]主表!K52 -> 55.27247235 | V54: =[3]主表!L52 -> 3.901586283 | W54: =[3]主表!M52 -> 3.901586283 | X54: =[3]主表!N52 -> 0 | Y54: =[3]主表!$G52 -> 1205 | Z54: =[3]升级!$H52 -> 1100 | AA54: =MAX(1,ROUND(100/(24*3600)*VLOOKUP(B54,[1]ResourceLevelConfig!$A:$E,5,FALSE),2)) -> 1 | AB54: 20 | AC54: 3 | AD54: 2 | AE54: 2 | AF54: 610 | AJ54: 1 | AK54: 1 | AL54: 50
A55: 51 | B55: 51 | C55: 2 | D55: 6 | E55: 1 | F55: 226;237;238 | G55: 筑基期 | H55: 后 | I55: 1 | J55: 226 | K55: 237 | L55: 238 | M55: =[1]ResourceLevelConfig!$E55*10 -> 6090 | N55: -1 | O55: -1 | P55: -1 | Q55: -1 | R55: =IF(I55=10,"1001;1002;1004",-1) -> -1 | S55: -1 | T55: 0 | U55: =[3]主表!K53 -> 61.15736499 | V55: =[3]主表!L53 -> 4.291744912 | W55: =[3]主表!M53 -> 4.291744912 | X55: =[3]主表!N53 -> 0 | Y55: =[3]主表!$G53 -> 1409 | Z55: =[3]升级!$H53 -> 1100 | AA55: =MAX(1,ROUND(100/(24*3600)*VLOOKUP(B55,[1]ResourceLevelConfig!$A:$E,5,FALSE),2)) -> 1 | AB55: -1 | AC55: 4 | AD55: 2 | AE55: 2 | AF55: 620 | AJ55: 1 | AK55: 1 | AL55: 51
A56: 52 | B56: 52 | C56: 2 | D56: 6 | E56: 2 | F56: 226;237;239 | G56: 筑基期 | H56: 后 | I56: 2 | J56: 226 | K56: 237 | L56: 239 | M56: =[1]ResourceLevelConfig!$E56*10 -> 6210 | N56: -1 | O56: -1 | P56: -1 | Q56: -1 | R56: -1 | S56: -1 | T56: 0 | U56: =[3]主表!K54 -> 62.43773556 | V56: =[3]主表!L54 -> 4.356121085 | W56: =[3]主表!M54 -> 4.356121085 | X56: =[3]主表!N54 -> 0 | Y56: =[3]主表!$G54 -> 1435 | Z56: =[3]升级!$H54 -> 1100 | AA56: =MAX(1,ROUND(100/(24*3600)*VLOOKUP(B56,[1]ResourceLevelConfig!$A:$E,5,FALSE),2)) -> 1 | AB56: -1 | AC56: =AC55 -> 4 | AD56: =AD55 -> 2 | AE56: =AE55 -> 2 | AF56: 630 | AJ56: 1 | AK56: 1 | AL56: 52
A57: 53 | B57: 53 | C57: 2 | D57: 6 | E57: 3 | F57: 226;237;240 | G57: 筑基期 | H57: 后 | I57: 3 | J57: 226 | K57: 237 | L57: 240 | M57: =[1]ResourceLevelConfig!$E57*10 -> 6330 | N57: -1 | O57: -1 | P57: -1 | Q57: -1 | R57: -1 | S57: -1 | T57: 0 | U57: =[3]主表!K55 -> 63.74275683 | V57: =[3]主表!L55 -> 4.421462902 | W57: =[3]主表!M55 -> 4.421462902 | X57: =[3]主表!N55 -> 0 | Y57: =[3]主表!$G55 -> 1462 | Z57: =[3]升级!$H55 -> 1100 | AA57: =MAX(1,ROUND(100/(24*3600)*VLOOKUP(B57,[1]ResourceLevelConfig!$A:$E,5,FALSE),2)) -> 1 | AB57: -1 | AC57: 4 | AD57: 2 | AE57: 2 | AF57: 640 | AJ57: 1 | AK57: 1 | AL57: 53
A58: 54 | B58: 54 | C58: 2 | D58: 6 | E58: 4 | F58: 226;237;241 | G58: 筑基期 | H58: 后 | I58: 4 | J58: 226 | K58: 237 | L58: 241 | M58: =[1]ResourceLevelConfig!$E58*10 -> 6460 | N58: -1 | O58: -1 | P58: -1 | Q58: -1 | R58: -1 | S58: -1 | T58: 0 | U58: =[3]主表!K56 -> 65.07288025 | V58: =[3]主表!L56 -> 4.487784845 | W58: =[3]主表!M56 -> 4.487784845 | X58: =[3]主表!N56 -> 0 | Y58: =[3]主表!$G56 -> 1489 | Z58: =[3]升级!$H56 -> 1100 | AA58: =MAX(1,ROUND(100/(24*3600)*VLOOKUP(B58,[1]ResourceLevelConfig!$A:$E,5,FALSE),2)) -> 1 | AB58: -1 | AC58: 4 | AD58: 2 | AE58: 2 | AF58: 650 | AJ58: 1 | AK58: 1 | AL58: 54
A59: 55 | B59: 55 | C59: 2 | D59: 6 | E59: 5 | F59: 226;237;242 | G59: 筑基期 | H59: 后 | I59: 5 | J59: 226 | K59: 237 | L59: 242 | M59: =[1]ResourceLevelConfig!$E59*10 -> 6590 | N59: -1 | O59: -1 | P59: -1 | Q59: -1 | R59: -1 | S59: -1 | T59: 0 | U59: =[3]主表!K57 -> 66.42856526 | V59: =[3]主表!L57 -> 4.555101618 | W59: =[3]主表!M57 -> 4.555101618 | X59: =[3]主表!N57 -> 0 | Y59: =[3]主表!$G57 -> 1516 | Z59: =[3]升级!$H57 -> 1100 | AA59: =MAX(1,ROUND(100/(24*3600)*VLOOKUP(B59,[1]ResourceLevelConfig!$A:$E,5,FALSE),2)) -> 1 | AB59: -1 | AC59: 4 | AD59: 2 | AE59: 2 | AF59: 660 | AJ59: 1 | AK59: 1 | AL59: 55
A60: 56 | B60: 56 | C60: 2 | D60: 6 | E60: 6 | F60: 226;237;243 | G60: 筑基期 | H60: 后 | I60: 6 | J60: 226 | K60: 237 | L60: 243 | M60: =[1]ResourceLevelConfig!$E60*10 -> 6720 | N60: -1 | O60: -1 | P60: -1 | Q60: -1 | R60: -1 | S60: -1 | T60: 0 | U60: =[3]主表!K58 -> 67.81027942 | V60: =[3]主表!L58 -> 4.623428142 | W60: =[3]主表!M58 -> 4.623428142 | X60: =[3]主表!N58 -> 0 | Y60: =[3]主表!$G58 -> 1545 | Z60: =[3]升级!$H58 -> 1100 | AA60: =MAX(1,ROUND(100/(24*3600)*VLOOKUP(B60,[1]ResourceLevelConfig!$A:$E,5,FALSE),2)) -> 1 | AB60: -1 | AC60: 4 | AD60: 2 | AE60: 2 | AF60: 670 | AJ60: 1 | AK60: 1 | AL60: 56
A61: 57 | B61: 57 | C61: 2 | D61: 6 | E61: 7 | F61: 226;237;244 | G61: 筑基期 | H61: 后 | I61: 7 | J61: 226 | K61: 237 | L61: 244 | M61: =[1]ResourceLevelConfig!$E61*10 -> 6850 | N61: -1 | O61: -1 | P61: -1 | Q61: -1 | R61: -1 | S61: -1 | T61: 0 | U61: =[3]主表!K59 -> 69.21849857 | V61: =[3]主表!L59 -> 4.692779564 | W61: =[3]主表!M59 -> 4.692779564 | X61: =[3]主表!N59 -> 0 | Y61: =[3]主表!$G59 -> 1574 | Z61: =[3]升级!$H59 -> 1100 | AA61: =MAX(1,ROUND(100/(24*3600)*VLOOKUP(B61,[1]ResourceLevelConfig!$A:$E,5,FALSE),2)) -> 1 | AB61: -1 | AC61: 4 | AD61: 2 | AE61: 2 | AF61: 680 | AJ61: 1 | AK61: 1 | AL61: 57
A62: 58 | B62: 58 | C62: 2 | D62: 6 | E62: 8 | F62: 226;237;245 | G62: 筑基期 | H62: 后 | I62: 8 | J62: 226 | K62: 237 | L62: 245 | M62: =[1]ResourceLevelConfig!$E62*10 -> 6990 | N62: -1 | O62: -1 | P62: -1 | Q62: -1 | R62: -1 | S62: -1 | T62: 0 | U62: =[3]主表!K60 -> 70.65370699 | V62: =[3]主表!L60 -> 4.763171258 | W62: =[3]主表!M60 -> 4.763171258 | X62: =[3]主表!N60 -> 0 | Y62: =[3]主表!$G60 -> 1604 | Z62: =[3]升级!$H60 -> 1100 | AA62: =MAX(1,ROUND(100/(24*3600)*VLOOKUP(B62,[1]ResourceLevelConfig!$A:$E,5,FALSE),2)) -> 1 | AB62: -1 | AC62: 4 | AD62: 2 | AE62: 2 | AF62: 690 | AJ62: 1 | AK62: 1 | AL62: 58
A63: 59 | B63: 59 | C63: 2 | D63: 6 | E63: 9 | F63: 226;237;246 | G63: 筑基期 | H63: 后 | I63: 9 | J63: 226 | K63: 237 | L63: 246 | M63: =[1]ResourceLevelConfig!$E63*10 -> 7130 | N63: -1 | O63: -1 | P63: -1 | Q63: -1 | R63: -1 | S63: -1 | T63: 0 | U63: =[3]主表!K61 -> 72.11639749 | V63: =[3]主表!L61 -> 4.834618826 | W63: =[3]主表!M61 -> 4.834618826 | X63: =[3]主表!N61 -> 0 | Y63: =[3]主表!$G61 -> 1634 | Z63: =[3]升级!$H61 -> 1100 | AA63: =MAX(1,ROUND(100/(24*3600)*VLOOKUP(B63,[1]ResourceLevelConfig!$A:$E,5,FALSE),2)) -> 1 | AB63: -1 | AC63: 4 | AD63: 2 | AE63: 2 | AF63: 700 | AJ63: 1 | AK63: 1 | AL63: 59
A64: 60 | B64: 60 | C64: 2 | D64: 6 | E64: 10 | F64: 226;237;247 | G64: 筑基期 | H64: 后 | I64: 10 | J64: 226 | K64: 237 | L64: 247 | M64: =[1]ResourceLevelConfig!$E64*10 -> 7270 | N64: 100004 | O64: 20 | P64: 1301 | Q64: 1 | R64: 1301;1302;1303 | S64: 1;1;1 | T64: 1;1 | U64: =[3]主表!K62 -> 73.60707163 | V64: =[3]主表!L62 -> 4.907138109 | W64: =[3]主表!M62 -> 4.907138109 | X64: =[3]主表!N62 -> 0 | Y64: =[3]主表!$G62 -> 1665 | Z64: =[3]升级!$H62 -> 1100 | AA64: =MAX(1,ROUND(100/(24*3600)*VLOOKUP(B64,[1]ResourceLevelConfig!$A:$E,5,FALSE),2)) -> 1 | AB64: 50 | AC64: 4 | AD64: 2 | AE64: 2 | AF64: 710 | AJ64: 1 | AK64: 1 | AL64: 60
A65: 61 | B65: 61 | C65: 3 | D65: 7 | E65: 1 | F65: 227;235;238 | G65: 结丹期 | H65: 前 | I65: 1 | J65: 227 | K65: 235 | L65: 238 | M65: =[1]ResourceLevelConfig!$E65*10 -> 7420 | N65: -1 | O65: -1 | P65: -1 | Q65: -1 | R65: =IF(I65=10,"1001;1002;1004",-1) -> -1 | S65: =IF(R65=-1,-1,"100;200;300") -> -1 | T65: 0 | U65: =[3]主表!K63 -> 111.0239997 | V65: =[3]主表!L63 -> 7.360707163 | W65: =[3]主表!M63 -> 7.360707163 | X65: =[3]主表!N63 -> 0 | Y65: =[3]主表!$G63 -> 2556 | Z65: =[3]升级!$H63 -> 1200 | AA65: =MAX(1,ROUND(100/(24*3600)*VLOOKUP(B65,[1]ResourceLevelConfig!$A:$E,5,FALSE),2)) -> 1 | AB65: -1 | AC65: 4 | AD65: 3 | AE65: 2 | AF65: 720 | AJ65: 1 | AK65: 2 | AL65: 61
A66: 62 | B66: 62 | C66: 3 | D66: 7 | E66: 2 | F66: 227;235;239 | G66: 结丹期 | H66: 前 | I66: 2 | J66: 227 | K66: 235 | L66: 239 | M66: =[1]ResourceLevelConfig!$E66*10 -> 7570 | N66: -1 | O66: -1 | P66: -1 | Q66: -1 | R66: =IF(I66=10,"1001;1002;1004",-1) -> -1 | S66: -1 | T66: 0 | U66: =[3]主表!K64 -> 113.3119529 | V66: =[3]主表!L64 -> 7.471117771 | W66: =[3]主表!M64 -> 7.471117771 | X66: =[3]主表!N64 -> 0 | Y66: =[3]主表!$G64 -> 2606 | Z66: =[3]升级!$H64 -> 1200 | AA66: =MAX(1,ROUND(100/(24*3600)*VLOOKUP(B66,[1]ResourceLevelConfig!$A:$E,5,FALSE),2)) -> 1 | AB66: -1 | AC66: =AC65 -> 4 | AD66: =AD65 -> 3 | AE66: 2 | AF66: 730 | AJ66: 1 | AK66: 2 | AL66: 62
A67: 63 | B67: 63 | C67: 3 | D67: 7 | E67: 3 | F67: 227;235;240 | G67: 结丹期 | H67: 前 | I67: 3 | J67: 227 | K67: 235 | L67: 240 | M67: =[1]ResourceLevelConfig!$E67*10 -> 7720 | N67: -1 | O67: -1 | P67: -1 | Q67: -1 | R67: -1 | S67: -1 | T67: 0 | U67: =[3]主表!K65 -> 115.6435642 | V67: =[3]主表!L65 -> 7.583184537 | W67: =[3]主表!M65 -> 7.583184537 | X67: =[3]主表!N65 -> 0 | Y67: =[3]主表!$G65 -> 2657 | Z67: =[3]升级!$H65 -> 1200 | AA67: =MAX(1,ROUND(100/(24*3600)*VLOOKUP(B67,[1]ResourceLevelConfig!$A:$E,5,FALSE),2)) -> 1 | AB67: -1 | AC67: =AC66 -> 4 | AD67: =AD66 -> 3 | AE67: =AE66 -> 2 | AF67: 740 | AJ67: 1 | AK67: 2 | AL67: 63
A68: 64 | B68: 64 | C68: 3 | D68: 7 | E68: 4 | F68: 227;235;241 | G68: 结丹期 | H68: 前 | I68: 4 | J68: 227 | K68: 235 | L68: 241 | M68: =[1]ResourceLevelConfig!$E68*10 -> 7870 | N68: -1 | O68: -1 | P68: -1 | Q68: -1 | R68: -1 | S68: -1 | T68: 0 | U68: =[3]主表!K66 -> 118.0196287 | V68: =[3]主表!L66 -> 7.696932305 | W68: =[3]主表!M66 -> 7.696932305 | X68: =[3]主表!N66 -> 0 | Y68: =[3]主表!$G66 -> 2710 | Z68: =[3]升级!$H66 -> 1200 | AA68: =MAX(1,ROUND(100/(24*3600)*VLOOKUP(B68,[1]ResourceLevelConfig!$A:$E,5,FALSE),2)) -> 1 | AB68: -1 | AC68: 4 | AD68: 3 | AE68: 2 | AF68: 750 | AJ68: 1 | AK68: 2 | AL68: 64
A69: 65 | B69: 65 | C69: 3 | D69: 7 | E69: 5 | F69: 227;235;242 | G69: 结丹期 | H69: 前 | I69: 5 | J69: 227 | K69: 235 | L69: 242 | M69: =[1]ResourceLevelConfig!$E69*10 -> 8030 | N69: -1 | O69: -1 | P69: -1 | Q69: -1 | R69: -1 | S69: -1 | T69: 0 | U69: =[3]主表!K67 -> 120.4409553 | V69: =[3]主表!L67 -> 7.81238629 | W69: =[3]主表!M67 -> 7.81238629 | X69: =[3]主表!N67 -> 0 | Y69: =[3]主表!$G67 -> 2764 | Z69: =[3]升级!$H67 -> 1200 | AA69: =MAX(1,ROUND(100/(24*3600)*VLOOKUP(B69,[1]ResourceLevelConfig!$A:$E,5,FALSE),2)) -> 1 | AB69: -1 | AC69: 4 | AD69: 3 | AE69: 2 | AF69: 760 | AJ69: 1 | AK69: 2 | AL69: 65
A70: 66 | B70: 66 | C70: 3 | D70: 7 | E70: =I70 -> 6 | F70: =_xlfn.TEXTJOIN(";",1,J70:L70) -> 227;235;243 | G70: 结丹期 | H70: 前 | I70: 6 | J70: 227 | K70: 235 | L70: 243 | M70: =[1]ResourceLevelConfig!$E70*10 -> 8190 | N70: =IF(I70=10,100004,-1) -> -1 | O70: =IF(N70=-1,-1,20) -> -1 | P70: -1 | Q70: -1 | R70: -1 | S70: =IF(R70=-1,-1,"100;200;300") -> -1 | T70: 0 | U70: =[3]主表!K68 -> 122.9083673 | V70: =[3]主表!L68 -> 7.929572084 | W70: =[3]主表!M68 -> 7.929572084 | X70: =[3]主表!N68 -> 0 | Y70: =[3]主表!$G68 -> 2824 | Z70: =[3]升级!$H68 -> 1200 | AA70: =MAX(1,ROUND(100/(24*3600)*VLOOKUP(B70,[1]ResourceLevelConfig!$A:$E,5,FALSE),2)) -> 1 | AB70: -1 | AC70: 4 | AD70: 3 | AE70: 2 | AF70: =MAX(AF69+10,ROUND(10^(B70*0.01+1.405),0)) -> 770 | AJ70: 1 | AK70: 2 | AL70: 66
A71: 67 | B71: 67 | C71: 3 | D71: 7 | E71: 7 | F71: 227;235;244 | G71: 结丹期 | H71: 前 | I71: 7 | J71: 227 | K71: 235 | L71: 244 | M71: =[1]ResourceLevelConfig!$E71*10 -> 8350 | N71: -1 | O71: -1 | P71: -1 | Q71: -1 | R71: -1 | S71: -1 | T71: 0 | U71: =[3]主表!K69 -> 125.4227025 | V71: =[3]主表!L69 -> 8.048515666 | W71: =[3]主表!M69 -> 8.048515666 | X71: =[3]主表!N69 -> 0 | Y71: =[3]主表!$G69 -> 2887 | Z71: =[3]升级!$H69 -> 1200 | AA71: =MAX(1,ROUND(100/(24*3600)*VLOOKUP(B71,[1]ResourceLevelConfig!$A:$E,5,FALSE),2)) -> 1 | AB71: -1 | AC71: 4 | AD71: 3 | AE71: 2 | AF71: 780 | AJ71: 1 | AK71: 2 | AL71: 67
A72: 68 | B72: 68 | C72: 3 | D72: 7 | E72: 8 | F72: 227;235;245 | G72: 结丹期 | H72: 前 | I72: 8 | J72: 227 | K72: 235 | L72: 245 | M72: =[1]ResourceLevelConfig!$E72*10 -> 8520 | N72: -1 | O72: -1 | P72: -1 | Q72: -1 | R72: -1 | S72: -1 | T72: 0 | U72: =[3]主表!K70 -> 127.9848133 | V72: =[3]主表!L70 -> 8.169243401 | W72: =[3]主表!M70 -> 8.169243401 | X72: =[3]主表!N70 -> 0 | Y72: =[3]主表!$G70 -> 2950 | Z72: =[3]升级!$H70 -> 1200 | AA72: =MAX(1,ROUND(100/(24*3600)*VLOOKUP(B72,[1]ResourceLevelConfig!$A:$E,5,FALSE),2)) -> 1 | AB72: -1 | AC72: 4 | AD72: 3 | AE72: 2 | AF72: 790 | AJ72: 1 | AK72: 2 | AL72: 68
A73: 69 | B73: 69 | C73: 3 | D73: 7 | E73: 9 | F73: 227;235;246 | G73: 结丹期 | H73: 前 | I73: 9 | J73: 227 | K73: 235 | L73: 246 | M73: =[1]ResourceLevelConfig!$E73*10 -> 8690 | N73: -1 | O73: -1 | P73: -1 | Q73: -1 | R73: -1 | S73: -1 | T73: 0 | U73: =[3]主表!K71 -> 130.5955673 | V73: =[3]主表!L71 -> 8.291782052 | W73: =[3]主表!M71 -> 8.291782052 | X73: =[3]主表!N71 -> 0 | Y73: =[3]主表!$G71 -> 3016 | Z73: =[3]升级!$H71 -> 1200 | AA73: =MAX(1,ROUND(100/(24*3600)*VLOOKUP(B73,[1]ResourceLevelConfig!$A:$E,5,FALSE),2)) -> 1.01 | AB73: -1 | AC73: 4 | AD73: 3 | AE73: 2 | AF73: 800 | AJ73: 1 | AK73: 2 | AL73: 69
A74: 70 | B74: 70 | C74: 3 | D74: 7 | E74: 10 | F74: 227;235;247 | G74: 结丹期 | H74: 前 | I74: 10 | J74: 227 | K74: 235 | L74: 247 | M74: =[1]ResourceLevelConfig!$E74*10 -> 8860 | N74: 100004 | O74: 20 | P74: 1301 | Q74: 1 | R74: 1301 | S74: 1 | T74: 0 | U74: =[3]主表!K72 -> 133.2558474 | V74: =[3]主表!L72 -> 8.416158782 | W74: =[3]主表!M72 -> 8.416158782 | X74: =[3]主表!N72 -> 0 | Y74: =[3]主表!$G72 -> 3083 | Z74: =[3]升级!$H72 -> 1200 | AA74: =MAX(1,ROUND(100/(24*3600)*VLOOKUP(B74,[1]ResourceLevelConfig!$A:$E,5,FALSE),2)) -> 1.03 | AB74: 20 | AC74: 4 | AD74: 3 | AE74: 2 | AF74: 810 | AJ74: 1 | AK74: 2 | AL74: 70
A75: 71 | B75: 71 | C75: 3 | D75: 8 | E75: 1 | F75: 227;236;238 | G75: 结丹期 | H75: 中 | I75: 1 | J75: 227 | K75: 236 | L75: 238 | M75: =[1]ResourceLevelConfig!$E75*10 -> 9040 | N75: -1 | O75: -1 | P75: -1 | Q75: -1 | R75: =IF(I75=10,"1001;1002;1004",-1) -> -1 | S75: -1 | T75: 0 | U75: =[3]主表!K73 -> 147.3529133 | V75: =[3]主表!L73 -> 9.257774661 | W75: =[3]主表!M73 -> 9.257774661 | X75: =[3]主表!N73 -> 0 | Y75: =[3]主表!$G73 -> 3479 | Z75: =[3]升级!$H73 -> 1200 | AA75: =MAX(1,ROUND(100/(24*3600)*VLOOKUP(B75,[1]ResourceLevelConfig!$A:$E,5,FALSE),2)) -> 1.05 | AB75: -1 | AC75: 4 | AD75: 3 | AE75: 3 | AF75: 820 | AJ75: 1 | AK75: 2 | AL75: 71
A76: 72 | B76: 72 | C76: 3 | D76: 8 | E76: 2 | F76: 227;236;239 | G76: 结丹期 | H76: 中 | I76: 2 | J76: 227 | K76: 236 | L76: 239 | M76: =[1]ResourceLevelConfig!$E76*10 -> 9220 | N76: -1 | O76: -1 | P76: -1 | Q76: -1 | R76: -1 | S76: -1 | T76: 0 | U76: =[3]主表!K74 -> 150.3462605 | V76: =[3]主表!L74 -> 9.39664128 | W76: =[3]主表!M74 -> 9.39664128 | X76: =[3]主表!N74 -> 0 | Y76: =[3]主表!$G74 -> 3557 | Z76: =[3]升级!$H74 -> 1200 | AA76: =MAX(1,ROUND(100/(24*3600)*VLOOKUP(B76,[1]ResourceLevelConfig!$A:$E,5,FALSE),2)) -> 1.07 | AB76: -1 | AC76: 4 | AD76: 3 | AE76: 3 | AF76: 830 | AJ76: 1 | AK76: 2 | AL76: 72
A77: 73 | B77: 73 | C77: 3 | D77: 8 | E77: 3 | F77: 227;236;240 | G77: 结丹期 | H77: 中 | I77: 3 | J77: 227 | K77: 236 | L77: 240 | M77: =[1]ResourceLevelConfig!$E77*10 -> 9400 | N77: -1 | O77: -1 | P77: -1 | Q77: -1 | R77: -1 | S77: -1 | T77: 0 | U77: =[3]主表!K75 -> 153.3962536 | V77: =[3]主表!L75 -> 9.5375909 | W77: =[3]主表!M75 -> 9.5375909 | X77: =[3]主表!N75 -> 0 | Y77: =[3]主表!$G75 -> 3637 | Z77: =[3]升级!$H75 -> 1200 | AA77: =MAX(1,ROUND(100/(24*3600)*VLOOKUP(B77,[1]ResourceLevelConfig!$A:$E,5,FALSE),2)) -> 1.09 | AB77: -1 | AC77: 4 | AD77: 3 | AE77: 3 | AF77: 840 | AJ77: 1 | AK77: 2 | AL77: 73
A78: 74 | B78: 74 | C78: 3 | D78: 8 | E78: 4 | F78: 227;236;241 | G78: 结丹期 | H78: 中 | I78: 4 | J78: 227 | K78: 236 | L78: 241 | M78: =[1]ResourceLevelConfig!$E78*10 -> 9590 | N78: -1 | O78: -1 | P78: -1 | Q78: -1 | R78: -1 | S78: -1 | T78: 0 | U78: =[3]主表!K76 -> 156.5039187 | V78: =[3]主表!L76 -> 9.680654763 | W78: =[3]主表!M76 -> 9.680654763 | X78: =[3]主表!N76 -> 0 | Y78: =[3]主表!$G76 -> 3719 | Z78: =[3]升级!$H76 -> 1200 | AA78: =MAX(1,ROUND(100/(24*3600)*VLOOKUP(B78,[1]ResourceLevelConfig!$A:$E,5,FALSE),2)) -> 1.11 | AB78: -1 | AC78: 4 | AD78: 3 | AE78: 3 | AF78: 850 | AJ78: 1 | AK78: 2 | AL78: 74
A79: 75 | B79: 75 | C79: 3 | D79: 8 | E79: 5 | F79: 227;236;242 | G79: 结丹期 | H79: 中 | I79: 5 | J79: 227 | K79: 236 | L79: 242 | M79: =[1]ResourceLevelConfig!$E79*10 -> 9780 | N79: -1 | O79: -1 | P79: -1 | Q79: -1 | R79: -1 | S79: -1 | T79: 0 | U79: =[3]主表!K77 -> 159.6702995 | V79: =[3]主表!L77 -> 9.825864585 | W79: =[3]主表!M77 -> 9.825864585 | X79: =[3]主表!N77 -> 0 | Y79: =[3]主表!$G77 -> 3803 | Z79: =[3]升级!$H77 -> 1200 | AA79: =MAX(1,ROUND(100/(24*3600)*VLOOKUP(B79,[1]ResourceLevelConfig!$A:$E,5,FALSE),2)) -> 1.13 | AB79: -1 | AC79: 4 | AD79: 3 | AE79: 3 | AF79: 860 | AJ79: 1 | AK79: 2 | AL79: 75
A80: 76 | B80: 76 | C80: 3 | D80: 8 | E80: 6 | F80: 227;236;243 | G80: 结丹期 | H80: 中 | I80: 6 | J80: 227 | K80: 236 | L80: 243 | M80: =[1]ResourceLevelConfig!$E80*10 -> 9980 | N80: -1 | O80: -1 | P80: -1 | Q80: -1 | R80: -1 | S80: -1 | T80: 0 | U80: =[3]主表!K78 -> 162.8964584 | V80: =[3]主表!L78 -> 9.973252553 | W80: =[3]主表!M78 -> 9.973252553 | X80: =[3]主表!N78 -> 0 | Y80: =[3]主表!$G78 -> 3889 | Z80: =[3]升级!$H78 -> 1200 | AA80: =MAX(1,ROUND(100/(24*3600)*VLOOKUP(B80,[1]ResourceLevelConfig!$A:$E,5,FALSE),2)) -> 1.16 | AB80: -1 | AC80: 4 | AD80: 3 | AE80: 3 | AF80: 870 | AJ80: 1 | AK80: 2 | AL80: 76
A81: 77 | B81: 77 | C81: 3 | D81: 8 | E81: 7 | F81: 227;236;244 | G81: 结丹期 | H81: 中 | I81: 7 | J81: 227 | K81: 236 | L81: 244 | M81: =[1]ResourceLevelConfig!$E81*10 -> 10180 | N81: -1 | O81: -1 | P81: -1 | Q81: -1 | R81: -1 | S81: -1 | T81: 0 | U81: =[3]主表!K79 -> 166.1834762 | V81: =[3]主表!L79 -> 10.12285134 | W81: =[3]主表!M79 -> 10.12285134 | X81: =[3]主表!N79 -> 0 | Y81: =[3]主表!$G79 -> 3978 | Z81: =[3]升级!$H79 -> 1200 | AA81: =MAX(1,ROUND(100/(24*3600)*VLOOKUP(B81,[1]ResourceLevelConfig!$A:$E,5,FALSE),2)) -> 1.18 | AB81: -1 | AC81: 4 | AD81: 3 | AE81: 3 | AF81: 880 | AJ81: 1 | AK81: 2 | AL81: 77
A82: 78 | B82: 78 | C82: 3 | D82: 8 | E82: 8 | F82: 227;236;245 | G82: 结丹期 | H82: 中 | I82: 8 | J82: 227 | K82: 236 | L82: 245 | M82: =[1]ResourceLevelConfig!$E82*10 -> 10380 | N82: -1 | O82: -1 | P82: -1 | Q82: -1 | R82: -1 | S82: -1 | T82: 0 | U82: =[3]主表!K80 -> 169.5324528 | V82: =[3]主表!L80 -> 10.27469411 | W82: =[3]主表!M80 -> 10.27469411 | X82: =[3]主表!N80 -> 0 | Y82: =[3]主表!$G80 -> 4069 | Z82: =[3]升级!$H80 -> 1200 | AA82: =MAX(1,ROUND(100/(24*3600)*VLOOKUP(B82,[1]ResourceLevelConfig!$A:$E,5,FALSE),2)) -> 1.2 | AB82: -1 | AC82: 4 | AD82: 3 | AE82: 3 | AF82: 890 | AJ82: 1 | AK82: 2 | AL82: 78
A83: 79 | B83: 79 | C83: 3 | D83: 8 | E83: 9 | F83: 227;236;246 | G83: 结丹期 | H83: 中 | I83: 9 | J83: 227 | K83: 236 | L83: 246 | M83: =[1]ResourceLevelConfig!$E83*10 -> 10590 | N83: -1 | O83: -1 | P83: -1 | Q83: -1 | R83: -1 | S83: -1 | T83: 0 | U83: =[3]主表!K81 -> 172.9445075 | V83: =[3]主表!L81 -> 10.42881452 | W83: =[3]主表!M81 -> 10.42881452 | X83: =[3]主表!N81 -> 0 | Y83: =[3]主表!$G81 -> 4162 | Z83: =[3]升级!$H81 -> 1200 | AA83: =MAX(1,ROUND(100/(24*3600)*VLOOKUP(B83,[1]ResourceLevelConfig!$A:$E,5,FALSE),2)) -> 1.23 | AB83: -1 | AC83: 4 | AD83: 3 | AE83: 3 | AF83: 900 | AJ83: 1 | AK83: 2 | AL83: 79
A84: 80 | B84: 80 | C84: 3 | D84: 8 | E84: 10 | F84: 227;236;247 | G84: 结丹期 | H84: 中 | I84: 10 | J84: 227 | K84: 236 | L84: 247 | M84: =[1]ResourceLevelConfig!$E84*10 -> 10800 | N84: 100004 | O84: 20 | P84: 1301 | Q84: 1 | R84: 1301;1302 | S84: 1;1 | T84: 0 | U84: =[3]主表!K82 -> 176.420779 | V84: =[3]主表!L82 -> 10.58524674 | W84: =[3]主表!M82 -> 10.58524674 | X84: =[3]主表!N82 -> 0 | Y84: =[3]主表!$G82 -> 4258 | Z84: =[3]升级!$H82 -> 1200 | AA84: =MAX(1,ROUND(100/(24*3600)*VLOOKUP(B84,[1]ResourceLevelConfig!$A:$E,5,FALSE),2)) -> 1.25 | AB84: 20 | AC84: 4 | AD84: 3 | AE84: 3 | AF84: 910 | AJ84: 1 | AK84: 2 | AL84: 80
A85: 81 | B85: 81 | C85: 3 | D85: 9 | E85: 1 | F85: 227;237;238 | G85: 结丹期 | H85: 后 | I85: 1 | J85: 227 | K85: 237 | L85: 238 | M85: =[1]ResourceLevelConfig!$E85*10 -> 11020 | N85: -1 | O85: -1 | P85: -1 | Q85: -1 | R85: =IF(I85=10,"1001;1002;1004",-1) -> -1 | S85: -1 | T85: 0 | U85: =[3]主表!K83 -> 195.0331712 | V85: =[3]主表!L83 -> 11.64377142 | W85: =[3]主表!M83 -> 11.64377142 | X85: =[3]主表!N83 -> 0 | Y85: =[3]主表!$G83 -> 5017 | Z85: =[3]升级!$H83 -> 1200 | AA85: =MAX(1,ROUND(100/(24*3600)*VLOOKUP(B85,[1]ResourceLevelConfig!$A:$E,5,FALSE),2)) -> 1.28 | AB85: -1 | AC85: 4 | AD85: 4 | AE85: 3 | AF85: 920 | AJ85: 1 | AK85: 2 | AL85: 81
A86: 82 | B86: 82 | C86: 3 | D86: 9 | E86: 2 | F86: 227;237;239 | G86: 结丹期 | H86: 后 | I86: 2 | J86: 227 | K86: 237 | L86: 239 | M86: =[1]ResourceLevelConfig!$E86*10 -> 11240 | N86: -1 | O86: -1 | P86: -1 | Q86: -1 | R86: -1 | S86: -1 | T86: 0 | U86: =[3]主表!K84 -> 198.9435378 | V86: =[3]主表!L84 -> 11.81842799 | W86: =[3]主表!M84 -> 11.81842799 | X86: =[3]主表!N84 -> 0 | Y86: =[3]主表!$G84 -> 5130 | Z86: =[3]升级!$H84 -> 1200 | AA86: =MAX(1,ROUND(100/(24*3600)*VLOOKUP(B86,[1]ResourceLevelConfig!$A:$E,5,FALSE),2)) -> 1.3 | AB86: -1 | AC86: 4 | AD86: 4 | AE86: 3 | AF86: 930 | AJ86: 1 | AK86: 2 | AL86: 82
A87: 83 | B87: 83 | C87: 3 | D87: 9 | E87: 3 | F87: 227;237;240 | G87: 结丹期 | H87: 后 | I87: 3 | J87: 227 | K87: 237 | L87: 240 | M87: =[1]ResourceLevelConfig!$E87*10 -> 11460 | N87: -1 | O87: -1 | P87: -1 | Q87: -1 | R87: -1 | S87: -1 | T87: 0 | U87: =[3]主表!K85 -> 202.9273329 | V87: =[3]主表!L85 -> 11.99570441 | W87: =[3]主表!M85 -> 11.99570441 | X87: =[3]主表!N85 -> 0 | Y87: =[3]主表!$G85 -> 5245 | Z87: =[3]升级!$H85 -> 1200 | AA87: =MAX(1,ROUND(100/(24*3600)*VLOOKUP(B87,[1]ResourceLevelConfig!$A:$E,5,FALSE),2)) -> 1.33 | AB87: -1 | AC87: 4 | AD87: 4 | AE87: 3 | AF87: 940 | AJ87: 1 | AK87: 2 | AL87: 83
A88: 84 | B88: 84 | C88: 3 | D88: 9 | E88: 4 | F88: 227;237;241 | G88: 结丹期 | H88: 后 | I88: 4 | J88: 227 | K88: 237 | L88: 241 | M88: =[1]ResourceLevelConfig!$E88*10 -> 11690 | N88: -1 | O88: -1 | P88: -1 | Q88: -1 | R88: -1 | S88: -1 | T88: 0 | U88: =[3]主表!K86 -> 206.9858795 | V88: =[3]主表!L86 -> 12.17563997 | W88: =[3]主表!M86 -> 12.17563997 | X88: =[3]主表!N86 -> 0 | Y88: =[3]主表!$G86 -> 5364 | Z88: =[3]升级!$H86 -> 1200 | AA88: =MAX(1,ROUND(100/(24*3600)*VLOOKUP(B88,[1]ResourceLevelConfig!$A:$E,5,FALSE),2)) -> 1.35 | AB88: -1 | AC88: 4 | AD88: 4 | AE88: 3 | AF88: 950 | AJ88: 1 | AK88: 2 | AL88: 84
A89: 85 | B89: 85 | C89: 3 | D89: 9 | E89: 5 | F89: 227;237;242 | G89: 结丹期 | H89: 后 | I89: 5 | J89: 227 | K89: 237 | L89: 242 | M89: =[1]ResourceLevelConfig!$E89*10 -> 11920 | N89: -1 | O89: -1 | P89: -1 | Q89: -1 | R89: -1 | S89: -1 | T89: 0 | U89: =[3]主表!K87 -> 211.1205239 | V89: =[3]主表!L87 -> 12.35827457 | W89: =[3]主表!M87 -> 12.35827457 | X89: =[3]主表!N87 -> 0 | Y89: =[3]主表!$G87 -> 5485 | Z89: =[3]升级!$H87 -> 1200 | AA89: =MAX(1,ROUND(100/(24*3600)*VLOOKUP(B89,[1]ResourceLevelConfig!$A:$E,5,FALSE),2)) -> 1.38 | AB89: -1 | AC89: 4 | AD89: 4 | AE89: 3 | AF89: 960 | AJ89: 1 | AK89: 2 | AL89: 85
A90: 86 | B90: 86 | C90: 3 | D90: 9 | E90: 6 | F90: 227;237;243 | G90: 结丹期 | H90: 后 | I90: 6 | J90: 227 | K90: 237 | L90: 243 | M90: =[1]ResourceLevelConfig!$E90*10 -> 12160 | N90: -1 | O90: -1 | P90: -1 | Q90: -1 | R90: -1 | S90: -1 | T90: 0 | U90: =[3]主表!K88 -> 215.3326359 | V90: =[3]主表!L88 -> 12.54364869 | W90: =[3]主表!M88 -> 12.54364869 | X90: =[3]主表!N88 -> 0 | Y90: =[3]主表!$G88 -> 5610 | Z90: =[3]升级!$H88 -> 1200 | AA90: =MAX(1,ROUND(100/(24*3600)*VLOOKUP(B90,[1]ResourceLevelConfig!$A:$E,5,FALSE),2)) -> 1.41 | AB90: -1 | AC90: 4 | AD90: 4 | AE90: 3 | AF90: 970 | AJ90: 1 | AK90: 2 | AL90: 86
A91: 87 | B91: 87 | C91: 3 | D91: 9 | E91: 7 | F91: 227;237;244 | G91: 结丹期 | H91: 后 | I91: 7 | J91: 227 | K91: 237 | L91: 244 | M91: =[1]ResourceLevelConfig!$E91*10 -> 12400 | N91: -1 | O91: -1 | P91: -1 | Q91: -1 | R91: -1 | S91: -1 | T91: 0 | U91: =[3]主表!K89 -> 219.623609 | V91: =[3]主表!L89 -> 12.73180342 | W91: =[3]主表!M89 -> 12.73180342 | X91: =[3]主表!N89 -> 0 | Y91: =[3]主表!$G89 -> 5738 | Z91: =[3]升级!$H89 -> 1200 | AA91: =MAX(1,ROUND(100/(24*3600)*VLOOKUP(B91,[1]ResourceLevelConfig!$A:$E,5,FALSE),2)) -> 1.44 | AB91: -1 | AC91: 4 | AD91: 4 | AE91: 3 | AF91: 980 | AJ91: 1 | AK91: 2 | AL91: 87
A92: 88 | B92: 88 | C92: 3 | D92: 9 | E92: 8 | F92: 227;237;245 | G92: 结丹期 | H92: 后 | I92: 8 | J92: 227 | K92: 237 | L92: 245 | M92: =[1]ResourceLevelConfig!$E92*10 -> 12650 | N92: -1 | O92: -1 | P92: -1 | Q92: -1 | R92: -1 | S92: -1 | T92: 0 | U92: =[3]主表!K90 -> 223.9948615 | V92: =[3]主表!L90 -> 12.92278047 | W92: =[3]主表!M90 -> 12.92278047 | X92: =[3]主表!N90 -> 0 | Y92: =[3]主表!$G90 -> 5869 | Z92: =[3]升级!$H90 -> 1200 | AA92: =MAX(1,ROUND(100/(24*3600)*VLOOKUP(B92,[1]ResourceLevelConfig!$A:$E,5,FALSE),2)) -> 1.46 | AB92: -1 | AC92: 4 | AD92: 4 | AE92: 3 | AF92: 990 | AJ92: 1 | AK92: 2 | AL92: 88
A93: 89 | B93: 89 | C93: 3 | D93: 9 | E93: 9 | F93: 227;237;246 | G93: 结丹期 | H93: 后 | I93: 9 | J93: 227 | K93: 237 | L93: 246 | M93: =[1]ResourceLevelConfig!$E93*10 -> 12900 | N93: -1 | O93: -1 | P93: -1 | Q93: -1 | R93: -1 | S93: -1 | T93: 0 | U93: =[3]主表!K91 -> 228.4478363 | V93: =[3]主表!L91 -> 13.11662218 | W93: =[3]主表!M91 -> 13.11662218 | X93: =[3]主表!N91 -> 0 | Y93: =[3]主表!$G91 -> 6004 | Z93: =[3]升级!$H91 -> 1200 | AA93: =MAX(1,ROUND(100/(24*3600)*VLOOKUP(B93,[1]ResourceLevelConfig!$A:$E,5,FALSE),2)) -> 1.49 | AB93: -1 | AC93: 4 | AD93: 4 | AE93: 3 | AF93: 1000 | AJ93: 1 | AK93: 2 | AL93: 89
A94: 90 | B94: 90 | C94: 3 | D94: 9 | E94: 10 | F94: 227;237;247 | G94: 结丹期 | H94: 后 | I94: 10 | J94: 227 | K94: 237 | L94: 247 | M94: =[1]ResourceLevelConfig!$E94*10 -> 13160 | N94: 100004 | O94: 20 | P94: 1301 | Q94: 1 | R94: 1301;1302;1303 | S94: 1;1;1 | T94: 1;1 | U94: =[3]主表!K92 -> 232.9840015 | V94: =[3]主表!L92 -> 13.31337151 | W94: =[3]主表!M92 -> 13.31337151 | X94: =[3]主表!N92 -> 0 | Y94: =[3]主表!$G92 -> 6142 | Z94: =[3]升级!$H92 -> 1200 | AA94: =MAX(1,ROUND(100/(24*3600)*VLOOKUP(B94,[1]ResourceLevelConfig!$A:$E,5,FALSE),2)) -> 1.52 | AB94: 50 | AC94: 4 | AD94: 4 | AE94: 3 | AF94: 1010 | AJ94: 1 | AK94: 2 | AL94: 90
A95: 91 | B95: 91 | C95: 4 | D95: 10 | E95: 1 | F95: 228;235;238 | G95: 元婴期 | H95: 前 | I95: 1 | J95: 228 | K95: 235 | L95: 238 | M95: =[1]ResourceLevelConfig!$E95*10 -> 13420 | N95: -1 | O95: -1 | P95: -1 | Q95: -1 | R95: =IF(I95=10,"1001;1002;1004",-1) -> -1 | S95: =IF(R95=-1,-1,"100;200;300") -> -1 | T95: 0 | U95: =[3]主表!K93 -> 351.1401736 | V95: =[3]主表!L93 -> 19.97005727 | W95: =[3]主表!M93 -> 19.97005727 | X95: =[3]主表!N93 -> 0 | Y95: =[3]主表!$G93 -> 9506 | Z95: =[3]升级!$H93 -> 1300 | AA95: =MAX(1,ROUND(100/(24*3600)*VLOOKUP(B95,[1]ResourceLevelConfig!$A:$E,5,FALSE),2)) -> 1.55 | AB95: -1 | AC95: 4 | AD95: 4 | AE95: 4 | AF95: 1020 | AJ95: 1 | AK95: 2 | AL95: 91
A96: 92 | B96: 92 | C96: 4 | D96: 10 | E96: 2 | F96: 228;235;239 | G96: 元婴期 | H96: 前 | I96: 2 | J96: 228 | K96: 235 | L96: 239 | M96: =[1]ResourceLevelConfig!$E96*10 -> 13690 | N96: -1 | O96: -1 | P96: -1 | Q96: -1 | R96: =IF(I96=10,"1001;1002;1004",-1) -> -1 | S96: =IF(R96=-1,-1,"100;200;300") -> -1 | T96: 0 | U96: =[3]主表!K94 -> 358.0964103 | V96: =[3]主表!L94 -> 20.26960813 | W96: =[3]主表!M94 -> 20.26960813 | X96: =[3]主表!N94 -> 0 | Y96: =[3]主表!$G94 -> 9723 | Z96: =[3]升级!$H94 -> 1300 | AA96: =MAX(1,ROUND(100/(24*3600)*VLOOKUP(B96,[1]ResourceLevelConfig!$A:$E,5,FALSE),2)) -> 1.58 | AB96: -1 | AC96: 4 | AD96: 4 | AE96: 4 | AF96: 1030 | AJ96: 1 | AK96: 2 | AL96: 92
A97: 93 | B97: 93 | C97: 4 | D97: 10 | E97: 3 | F97: 228;235;240 | G97: 元婴期 | H97: 前 | I97: 3 | J97: 228 | K97: 235 | L97: 240 | M97: =[1]ResourceLevelConfig!$E97*10 -> 13960 | N97: -1 | O97: -1 | P97: -1 | Q97: -1 | R97: -1 | S97: -1 | T97: 0 | U97: =[3]主表!K95 -> 365.1823274 | V97: =[3]主表!L95 -> 20.57365225 | W97: =[3]主表!M95 -> 20.57365225 | X97: =[3]主表!N95 -> 0 | Y97: =[3]主表!$G95 -> 9945 | Z97: =[3]升级!$H95 -> 1300 | AA97: =MAX(1,ROUND(100/(24*3600)*VLOOKUP(B97,[1]ResourceLevelConfig!$A:$E,5,FALSE),2)) -> 1.62 | AB97: -1 | AC97: 4 | AD97: 4 | AE97: 4 | AF97: 1040 | AJ97: 1 | AK97: 2 | AL97: 93
A98: 94 | B98: 94 | C98: 4 | D98: 10 | E98: 4 | F98: 228;235;241 | G98: 元婴期 | H98: 前 | I98: 4 | J98: 228 | K98: 235 | L98: 241 | M98: =[1]ResourceLevelConfig!$E98*10 -> 14240 | N98: -1 | O98: -1 | P98: -1 | Q98: -1 | R98: -1 | S98: -1 | T98: 0 | U98: =[3]主表!K96 -> 372.4002504 | V98: =[3]主表!L96 -> 20.88225703 | W98: =[3]主表!M96 -> 20.88225703 | X98: =[3]主表!N96 -> 0 | Y98: =[3]主表!$G96 -> 10173 | Z98: =[3]升级!$H96 -> 1300 | AA98: =MAX(1,ROUND(100/(24*3600)*VLOOKUP(B98,[1]ResourceLevelConfig!$A:$E,5,FALSE),2)) -> 1.65 | AB98: -1 | AC98: 4 | AD98: 4 | AE98: 4 | AF98: 1050 | AJ98: 1 | AK98: 2 | AL98: 94
A99: 95 | B99: 95 | C99: 4 | D99: 10 | E99: 5 | F99: 228;235;242 | G99: 元婴期 | H99: 前 | I99: 5 | J99: 228 | K99: 235 | L99: 242 | M99: =[1]ResourceLevelConfig!$E99*10 -> 14520 | N99: -1 | O99: -1 | P99: -1 | Q99: -1 | R99: -1 | S99: -1 | T99: =IF(G99=G100,0,CONCATENATE("1;1")) -> 0 | U99: =[3]主表!K97 -> 379.7525451 | V99: =[3]主表!L97 -> 21.19549089 | W99: =[3]主表!M97 -> 21.19549089 | X99: =[3]主表!N97 -> 0 | Y99: =[3]主表!$G97 -> 10408 | Z99: =[3]升级!$H97 -> 1300 | AA99: =MAX(1,ROUND(100/(24*3600)*VLOOKUP(B99,[1]ResourceLevelConfig!$A:$E,5,FALSE),2)) -> 1.68 | AB99: -1 | AC99: 4 | AD99: 4 | AE99: 4 | AF99: 1060 | AJ99: 1 | AK99: 2 | AL99: 95
A100: 96 | B100: 96 | C100: 4 | D100: 10 | E100: 6 | F100: 228;235;243 | G100: 元婴期 | H100: 前 | I100: 6 | J100: 228 | K100: 235 | L100: 243 | M100: =[1]ResourceLevelConfig!$E100*10 -> 14810 | N100: -1 | O100: -1 | P100: -1 | Q100: -1 | R100: -1 | S100: -1 | T100: 0 | U100: =[3]主表!K98 -> 387.2416185 | V100: =[3]主表!L98 -> 21.51342325 | W100: =[3]主表!M98 -> 21.51342325 | X100: =[3]主表!N98 -> 0 | Y100: =[3]主表!$G98 -> 10648 | Z100: =[3]升级!$H98 -> 1300 | AA100: =MAX(1,ROUND(100/(24*3600)*VLOOKUP(B100,[1]ResourceLevelConfig!$A:$E,5,FALSE),2)) -> 1.71 | AB100: -1 | AC100: 4 | AD100: 4 | AE100: 4 | AF100: 1070 | AJ100: 1 | AK100: 2 | AL100: 96
A101: 97 | B101: 97 | C101: 4 | D101: 10 | E101: 7 | F101: 228;235;244 | G101: 元婴期 | H101: 前 | I101: 7 | J101: 228 | K101: 235 | L101: 244 | M101: =[1]ResourceLevelConfig!$E101*10 -> 15110 | N101: -1 | O101: -1 | P101: -1 | Q101: -1 | R101: -1 | S101: -1 | T101: 0 | U101: =[3]主表!K99 -> 394.8699199 | V101: =[3]主表!L99 -> 21.8361246 | W101: =[3]主表!M99 -> 21.8361246 | X101: =[3]主表!N99 -> 0 | Y101: =[3]主表!$G99 -> 10894 | Z101: =[3]升级!$H99 -> 1300 | AA101: =MAX(1,ROUND(100/(24*3600)*VLOOKUP(B101,[1]ResourceLevelConfig!$A:$E,5,FALSE),2)) -> 1.75 | AB101: -1 | AC101: 4 | AD101: 4 | AE101: 4 | AF101: 1080 | AJ101: 1 | AK101: 2 | AL101: 97
A102: 98 | B102: 98 | C102: 4 | D102: 10 | E102: 8 | F102: 228;235;245 | G102: 元婴期 | H102: 前 | I102: 8 | J102: 228 | K102: 235 | L102: 245 | M102: =[1]ResourceLevelConfig!$E102*10 -> 15410 | N102: -1 | O102: -1 | P102: -1 | Q102: -1 | R102: -1 | S102: -1 | T102: 0 | U102: =[3]主表!K100 -> 402.6399409 | V102: =[3]主表!L100 -> 22.16366647 | W102: =[3]主表!M100 -> 22.16366647 | X102: =[3]主表!N100 -> 0 | Y102: =[3]主表!$G100 -> 11146 | Z102: =[3]升级!$H100 -> 1300 | AA102: =MAX(1,ROUND(100/(24*3600)*VLOOKUP(B102,[1]ResourceLevelConfig!$A:$E,5,FALSE),2)) -> 1.78 | AB102: -1 | AC102: 4 | AD102: 4 | AE102: 4 | AF102: 1090 | AJ102: 1 | AK102: 2 | AL102: 98
A103: 99 | B103: 99 | C103: 4 | D103: 10 | E103: 9 | F103: 228;235;246 | G103: 元婴期 | H103: 前 | I103: 9 | J103: 228 | K103: 235 | L103: 246 | M103: =[1]ResourceLevelConfig!$E103*10 -> 15720 | N103: -1 | O103: -1 | P103: -1 | Q103: -1 | R103: -1 | S103: -1 | T103: 0 | U103: =[3]主表!K101 -> 410.5542168 | V103: =[3]主表!L101 -> 22.49612147 | W103: =[3]主表!M101 -> 22.49612147 | X103: =[3]主表!N101 -> 0 | Y103: =[3]主表!$G101 -> 11405 | Z103: =[3]升级!$H101 -> 1300 | AA103: =MAX(1,ROUND(100/(24*3600)*VLOOKUP(B103,[1]ResourceLevelConfig!$A:$E,5,FALSE),2)) -> 1.82 | AB103: -1 | AC103: 4 | AD103: 4 | AE103: 4 | AF103: 1100 | AJ103: 1 | AK103: 2 | AL103: 99
A104: 100 | B104: 100 | C104: 4 | D104: 10 | E104: 10 | F104: 228;235;247 | G104: 元婴期 | H104: 前 | I104: 10 | J104: 228 | K104: 235 | L104: 247 | M104: =[1]ResourceLevelConfig!$E104*10 -> 16030 | N104: 100004 | O104: 20 | P104: 1301 | Q104: 1 | R104: 1301 | S104: 1 | T104: 0 | U104: =[3]主表!K102 -> 418.615327 | V104: =[3]主表!L102 -> 22.83356329 | W104: =[3]主表!M102 -> 22.83356329 | X104: =[3]主表!N102 -> 0 | Y104: =[3]主表!$G102 -> 11670 | Z104: =[3]升级!$H102 -> 1300 | AA104: =MAX(1,ROUND(100/(24*3600)*VLOOKUP(B104,[1]ResourceLevelConfig!$A:$E,5,FALSE),2)) -> 1.86 | AB104: 20 | AC104: 4 | AD104: 4 | AE104: 4 | AF104: 1110 | AJ104: 1 | AK104: 2 | AL104: 100
A105: 101 | B105: 101 | C105: 4 | D105: 11 | E105: 1 | F105: 228;236;238 | G105: 元婴期 | H105: 中 | I105: 1 | J105: 228 | K105: 236 | L105: 238 | M105: =[1]ResourceLevelConfig!$E105*10 -> 16350 | N105: -1 | O105: -1 | P105: -1 | Q105: -1 | R105: =IF(I105=10,"1001;1002;1004",-1) -> -1 | S105: -1 | T105: 0 | U105: =[3]主表!K103 -> 462.5699363 | V105: =[3]主表!L103 -> 25.11691962 | W105: =[3]主表!M103 -> 25.11691962 | X105: =[3]主表!N103 -> 0 | Y105: =[3]主表!$G103 -> 13191 | Z105: =[3]升级!$H103 -> 1300 | AA105: =MAX(1,ROUND(100/(24*3600)*VLOOKUP(B105,[1]ResourceLevelConfig!$A:$E,5,FALSE),2)) -> 1.89 | AB105: -1 | AC105: 4 | AD105: 4 | AE105: 4 | AF105: 1120 | AJ105: 1 | AK105: 2 | AL105: 101
A106: 102 | B106: 102 | C106: 4 | D106: 11 | E106: 2 | F106: 228;236;239 | G106: 元婴期 | H106: 中 | I106: 2 | J106: 228 | K106: 236 | L106: 239 | M106: =[1]ResourceLevelConfig!$E106*10 -> 16680 | N106: -1 | O106: -1 | P106: -1 | Q106: -1 | R106: -1 | S106: -1 | T106: 0 | U106: =[3]主表!K104 -> 471.6329581 | V106: =[3]主表!L104 -> 25.49367341 | W106: =[3]主表!M104 -> 25.49367341 | X106: =[3]主表!N104 -> 0 | Y106: =[3]主表!$G104 -> 13437 | Z106: =[3]升级!$H104 -> 1300 | AA106: =MAX(1,ROUND(100/(24*3600)*VLOOKUP(B106,[1]ResourceLevelConfig!$A:$E,5,FALSE),2)) -> 1.93 | AB106: -1 | AC106: 4 | AD106: 4 | AE106: 4 | AF106: 1130 | AJ106: 1 | AK106: 2 | AL106: 102
A107: 103 | B107: 103 | C107: 4 | D107: 11 | E107: 3 | F107: 228;236;240 | G107: 元婴期 | H107: 中 | I107: 3 | J107: 228 | K107: 236 | L107: 240 | M107: =[1]ResourceLevelConfig!$E107*10 -> 17010 | N107: -1 | O107: -1 | P107: -1 | Q107: -1 | R107: -1 | S107: -1 | T107: 0 | U107: =[3]主表!K105 -> 480.8637924 | V107: =[3]主表!L105 -> 25.87607851 | W107: =[3]主表!M105 -> 25.87607851 | X107: =[3]主表!N105 -> 0 | Y107: =[3]主表!$G105 -> 13687 | Z107: =[3]升级!$H105 -> 1300 | AA107: =MAX(1,ROUND(100/(24*3600)*VLOOKUP(B107,[1]ResourceLevelConfig!$A:$E,5,FALSE),2)) -> 1.97 | AB107: -1 | AC107: 4 | AD107: 4 | AE107: 4 | AF107: 1140 | AJ107: 1 | AK107: 2 | AL107: 103
A108: 104 | B108: 104 | C108: 4 | D108: 11 | E108: 4 | F108: 228;236;241 | G108: 元婴期 | H108: 中 | I108: 4 | J108: 228 | K108: 236 | L108: 241 | M108: =[1]ResourceLevelConfig!$E108*10 -> 17350 | N108: -1 | O108: -1 | P108: -1 | Q108: -1 | R108: -1 | S108: -1 | T108: 0 | U108: =[3]主表!K106 -> 490.2654342 | V108: =[3]主表!L106 -> 26.26421969 | W108: =[3]主表!M106 -> 26.26421969 | X108: =[3]主表!N106 -> 0 | Y108: =[3]主表!$G106 -> 13942 | Z108: =[3]升级!$H106 -> 1300 | AA108: =MAX(1,ROUND(100/(24*3600)*VLOOKUP(B108,[1]ResourceLevelConfig!$A:$E,5,FALSE),2)) -> 2.01 | AB108: -1 | AC108: 4 | AD108: 4 | AE108: 4 | AF108: 1150 | AJ108: 1 | AK108: 2 | AL108: 104
A109: 105 | B109: 105 | C109: 4 | D109: 11 | E109: 5 | F109: 228;236;242 | G109: 元婴期 | H109: 中 | I109: 5 | J109: 228 | K109: 236 | L109: 242 | M109: =[1]ResourceLevelConfig!$E109*10 -> 17700 | N109: -1 | O109: -1 | P109: -1 | Q109: -1 | R109: -1 | S109: -1 | T109: 0 | U109: =[3]主表!K107 -> 499.840931 | V109: =[3]主表!L107 -> 26.65818299 | W109: =[3]主表!M107 -> 26.65818299 | X109: =[3]主表!N107 -> 0 | Y109: =[3]主表!$G107 -> 14201 | Z109: =[3]升级!$H107 -> 1300 | AA109: =MAX(1,ROUND(100/(24*3600)*VLOOKUP(B109,[1]ResourceLevelConfig!$A:$E,5,FALSE),2)) -> 2.05 | AB109: -1 | AC109: 4 | AD109: 4 | AE109: 4 | AF109: 1160 | AJ109: 1 | AK109: 2 | AL109: 105
A110: 106 | B110: 106 | C110: 4 | D110: 11 | E110: 6 | F110: 228;236;243 | G110: 元婴期 | H110: 中 | I110: 6 | J110: 228 | K110: 236 | L110: 243 | M110: =[1]ResourceLevelConfig!$E110*10 -> 18050 | N110: -1 | O110: -1 | P110: -1 | Q110: -1 | R110: -1 | S110: -1 | T110: 0 | U110: =[3]主表!K108 -> 509.5933829 | V110: =[3]主表!L108 -> 27.05805573 | W110: =[3]主表!M108 -> 27.05805573 | X110: =[3]主表!N108 -> 0 | Y110: =[3]主表!$G108 -> 14465 | Z110: =[3]升级!$H108 -> 1300 | AA110: =MAX(1,ROUND(100/(24*3600)*VLOOKUP(B110,[1]ResourceLevelConfig!$A:$E,5,FALSE),2)) -> 2.09 | AB110: -1 | AC110: 4 | AD110: 4 | AE110: 4 | AF110: 1170 | AJ110: 1 | AK110: 2 | AL110: 106
A111: 107 | B111: 107 | C111: 4 | D111: 11 | E111: 7 | F111: 228;236;244 | G111: 元婴期 | H111: 中 | I111: 7 | J111: 228 | K111: 236 | L111: 244 | M111: =[1]ResourceLevelConfig!$E111*10 -> 18410 | N111: -1 | O111: -1 | P111: -1 | Q111: -1 | R111: -1 | S111: -1 | T111: 0 | U111: =[3]主表!K109 -> 519.5259442 | V111: =[3]主表!L109 -> 27.46392657 | W111: =[3]主表!M109 -> 27.46392657 | X111: =[3]主表!N109 -> 0 | Y111: =[3]主表!$G109 -> 14735 | Z111: =[3]升级!$H109 -> 1300 | AA111: =MAX(1,ROUND(100/(24*3600)*VLOOKUP(B111,[1]ResourceLevelConfig!$A:$E,5,FALSE),2)) -> 2.13 | AB111: -1 | AC111: 4 | AD111: 4 | AE111: 4 | AF111: 1180 | AJ111: 1 | AK111: 2 | AL111: 107
A112: 108 | B112: 108 | C112: 4 | D112: 11 | E112: 8 | F112: 228;236;245 | G112: 元婴期 | H112: 中 | I112: 8 | J112: 228 | K112: 236 | L112: 245 | M112: =[1]ResourceLevelConfig!$E112*10 -> 18780 | N112: -1 | O112: -1 | P112: -1 | Q112: -1 | R112: -1 | S112: -1 | T112: 0 | U112: =[3]主表!K110 -> 529.6418238 | V112: =[3]主表!L110 -> 27.87588547 | W112: =[3]主表!M110 -> 27.87588547 | X112: =[3]主表!N110 -> 0 | Y112: =[3]主表!$G110 -> 15009 | Z112: =[3]升级!$H110 -> 1300 | AA112: =MAX(1,ROUND(100/(24*3600)*VLOOKUP(B112,[1]ResourceLevelConfig!$A:$E,5,FALSE),2)) -> 2.17 | AB112: -1 | AC112: 4 | AD112: 4 | AE112: 4 | AF112: 1190 | AJ112: 1 | AK112: 2 | AL112: 108
A113: 109 | B113: 109 | C113: 4 | D113: 11 | E113: 9 | F113: 228;236;246 | G113: 元婴期 | H113: 中 | I113: 9 | J113: 228 | K113: 236 | L113: 246 | M113: =[1]ResourceLevelConfig!$E113*10 -> 19160 | N113: -1 | O113: -1 | P113: -1 | Q113: -1 | R113: -1 | S113: -1 | T113: 0 | U113: =[3]主表!K111 -> 539.9442865 | V113: =[3]主表!L111 -> 28.29402375 | W113: =[3]主表!M111 -> 28.29402375 | X113: =[3]主表!N111 -> 0 | Y113: =[3]主表!$G111 -> 15288 | Z113: =[3]升级!$H111 -> 1300 | AA113: =MAX(1,ROUND(100/(24*3600)*VLOOKUP(B113,[1]ResourceLevelConfig!$A:$E,5,FALSE),2)) -> 2.22 | AB113: -1 | AC113: 4 | AD113: 4 | AE113: 4 | AF113: 1200 | AJ113: 1 | AK113: 2 | AL113: 109
A114: 110 | B114: 110 | C114: 4 | D114: 11 | E114: 10 | F114: 228;236;247 | G114: 元婴期 | H114: 中 | I114: 10 | J114: 228 | K114: 236 | L114: 247 | M114: =[1]ResourceLevelConfig!$E114*10 -> 19540 | N114: 100004 | O114: 20 | P114: 1301 | Q114: 1 | R114: 1301;1302 | S114: 1;1 | T114: 0 | U114: =[3]主表!K112 -> 550.4366537 | V114: =[3]主表!L112 -> 28.7184341 | W114: =[3]主表!M112 -> 28.7184341 | X114: =[3]主表!N112 -> 0 | Y114: =[3]主表!$G112 -> 15572 | Z114: =[3]升级!$H112 -> 1300 | AA114: =MAX(1,ROUND(100/(24*3600)*VLOOKUP(B114,[1]ResourceLevelConfig!$A:$E,5,FALSE),2)) -> 2.26 | AB114: 20 | AC114: 4 | AD114: 4 | AE114: 4 | AF114: 1210 | AJ114: 1 | AK114: 2 | AL114: 110
A115: 111 | B115: 111 | C115: 4 | D115: 12 | E115: 1 | F115: 228;237;238 | G115: 元婴期 | H115: 后 | I115: 1 | J115: 228 | K115: 237 | L115: 238 | M115: =[1]ResourceLevelConfig!$E115*10 -> 19930 | N115: -1 | O115: -1 | P115: -1 | Q115: -1 | R115: =IF(I115=10,"1001;1002;1004",-1) -> -1 | S115: -1 | T115: 0 | U115: =[3]主表!K113 -> 608.1128421 | V115: =[3]主表!L113 -> 31.59027751 | W115: =[3]主表!M113 -> 31.59027751 | X115: =[3]主表!N113 -> 0 | Y115: =[3]主表!$G113 -> 17595 | Z115: =[3]升级!$H113 -> 1300 | AA115: =MAX(1,ROUND(100/(24*3600)*VLOOKUP(B115,[1]ResourceLevelConfig!$A:$E,5,FALSE),2)) -> 2.31 | AB115: -1 | AC115: 4 | AD115: 4 | AE115: 4 | AF115: 1220 | AJ115: 1 | AK115: 2 | AL115: 111
A116: 112 | B116: 112 | C116: 4 | D116: 12 | E116: 2 | F116: 228;237;239 | G116: 元婴期 | H116: 后 | I116: 2 | J116: 228 | K116: 237 | L116: 239 | M116: =[1]ResourceLevelConfig!$E116*10 -> 20330 | N116: -1 | O116: -1 | P116: -1 | Q116: -1 | R116: -1 | S116: -1 | T116: 0 | U116: =[3]主表!K114 -> 619.9065457 | V116: =[3]主表!L114 -> 32.06413168 | W116: =[3]主表!M114 -> 32.06413168 | X116: =[3]主表!N114 -> 0 | Y116: =[3]主表!$G114 -> 17917 | Z116: =[3]升级!$H114 -> 1300 | AA116: =MAX(1,ROUND(100/(24*3600)*VLOOKUP(B116,[1]ResourceLevelConfig!$A:$E,5,FALSE),2)) -> 2.35 | AB116: -1 | AC116: 4 | AD116: 4 | AE116: 4 | AF116: 1230 | AJ116: 1 | AK116: 2 | AL116: 112
A117: 113 | B117: 113 | C117: 4 | D117: 12 | E117: 3 | F117: 228;237;240 | G117: 元婴期 | H117: 后 | I117: 3 | J117: 228 | K117: 237 | L117: 240 | M117: =[1]ResourceLevelConfig!$E117*10 -> 20740 | N117: -1 | O117: -1 | P117: -1 | Q117: -1 | R117: -1 | S117: -1 | T117: 0 | U117: =[3]主表!K115 -> 631.9172351 | V117: =[3]主表!L115 -> 32.54509365 | W117: =[3]主表!M115 -> 32.54509365 | X117: =[3]主表!N115 -> 0 | Y117: =[3]主表!$G115 -> 18244 | Z117: =[3]升级!$H115 -> 1300 | AA117: =MAX(1,ROUND(100/(24*3600)*VLOOKUP(B117,[1]ResourceLevelConfig!$A:$E,5,FALSE),2)) -> 2.4 | AB117: -1 | AC117: 4 | AD117: 4 | AE117: 4 | AF117: 1240 | AJ117: 1 | AK117: 2 | AL117: 113
A118: 114 | B118: 114 | C118: 4 | D118: 12 | E118: 4 | F118: 228;237;241 | G118: 元婴期 | H118: 后 | I118: 4 | J118: 228 | K118: 237 | L118: 241 | M118: =[1]ResourceLevelConfig!$E118*10 -> 21150 | N118: -1 | O118: -1 | P118: -1 | Q118: -1 | R118: -1 | S118: -1 | T118: 0 | U118: =[3]主表!K116 -> 644.1487661 | V118: =[3]主表!L116 -> 33.03327006 | W118: =[3]主表!M116 -> 33.03327006 | X118: =[3]主表!N116 -> 0 | Y118: =[3]主表!$G116 -> 18577 | Z118: =[3]升级!$H116 -> 1300 | AA118: =MAX(1,ROUND(100/(24*3600)*VLOOKUP(B118,[1]ResourceLevelConfig!$A:$E,5,FALSE),2)) -> 2.45 | AB118: -1 | AC118: 4 | AD118: 4 | AE118: 4 | AF118: 1250 | AJ118: 1 | AK118: 2 | AL118: 114
A119: 115 | B119: 115 | C119: 4 | D119: 12 | E119: 5 | F119: 228;237;242 | G119: 元婴期 | H119: 后 | I119: 5 | J119: 228 | K119: 237 | L119: 242 | M119: =[1]ResourceLevelConfig!$E119*10 -> 21570 | N119: -1 | O119: -1 | P119: -1 | Q119: -1 | R119: -1 | S119: -1 | T119: 0 | U119: =[3]主表!K117 -> 656.6050617 | V119: =[3]主表!L117 -> 33.52876911 | W119: =[3]主表!M117 -> 33.52876911 | X119: =[3]主表!N117 -> 0 | Y119: =[3]主表!$G117 -> 18917 | Z119: =[3]升级!$H117 -> 1300 | AA119: =MAX(1,ROUND(100/(24*3600)*VLOOKUP(B119,[1]ResourceLevelConfig!$A:$E,5,FALSE),2)) -> 2.5 | AB119: -1 | AC119: 4 | AD119: 4 | AE119: 4 | AF119: 1260 | AJ119: 1 | AK119: 2 | AL119: 115
A120: 116 | B120: 116 | C120: 4 | D120: 12 | E120: 6 | F120: 228;237;243 | G120: 元婴期 | H120: 后 | I120: 6 | J120: 228 | K120: 237 | L120: 243 | M120: =[1]ResourceLevelConfig!$E120*10 -> 22000 | N120: -1 | O120: -1 | P120: -1 | Q120: -1 | R120: -1 | S120: -1 | T120: 0 | U120: =[3]主表!K118 -> 669.2901127 | V120: =[3]主表!L118 -> 34.03170064 | W120: =[3]主表!M118 -> 34.03170064 | X120: =[3]主表!N118 -> 0 | Y120: =[3]主表!$G118 -> 19263 | Z120: =[3]升级!$H118 -> 1300 | AA120: =MAX(1,ROUND(100/(24*3600)*VLOOKUP(B120,[1]ResourceLevelConfig!$A:$E,5,FALSE),2)) -> 2.55 | AB120: -1 | AC120: 4 | AD120: 4 | AE120: 4 | AF120: 1270 | AJ120: 1 | AK120: 2 | AL120: 116
A121: 117 | B121: 117 | C121: 4 | D121: 12 | E121: 7 | F121: 228;237;244 | G121: 元婴期 | H121: 后 | I121: 7 | J121: 228 | K121: 237 | L121: 244 | M121: =[1]ResourceLevelConfig!$E121*10 -> 22440 | N121: -1 | O121: -1 | P121: -1 | Q121: -1 | R121: -1 | S121: -1 | T121: 0 | U121: =[3]主表!K119 -> 682.207979 | V121: =[3]主表!L119 -> 34.54217615 | W121: =[3]主表!M119 -> 34.54217615 | X121: =[3]主表!N119 -> 0 | Y121: =[3]主表!$G119 -> 19615 | Z121: =[3]升级!$H119 -> 1300 | AA121: =MAX(1,ROUND(100/(24*3600)*VLOOKUP(B121,[1]ResourceLevelConfig!$A:$E,5,FALSE),2)) -> 2.6 | AB121: -1 | AC121: 4 | AD121: 4 | AE121: 4 | AF121: 1280 | AJ121: 1 | AK121: 2 | AL121: 117
A122: 118 | B122: 118 | C122: 4 | D122: 12 | E122: 8 | F122: 228;237;245 | G122: 元婴期 | H122: 后 | I122: 8 | J122: 228 | K122: 237 | L122: 245 | M122: =[1]ResourceLevelConfig!$E122*10 -> 22890 | N122: -1 | O122: -1 | P122: -1 | Q122: -1 | R122: -1 | S122: -1 | T122: 0 | U122: =[3]主表!K120 -> 695.3627911 | V122: =[3]主表!L120 -> 35.0603088 | W122: =[3]主表!M120 -> 35.0603088 | X122: =[3]主表!N120 -> 0 | Y122: =[3]主表!$G120 -> 19973 | Z122: =[3]升级!$H120 -> 1300 | AA122: =MAX(1,ROUND(100/(24*3600)*VLOOKUP(B122,[1]ResourceLevelConfig!$A:$E,5,FALSE),2)) -> 2.65 | AB122: -1 | AC122: 4 | AD122: 4 | AE122: 4 | AF122: 1290 | AJ122: 1 | AK122: 2 | AL122: 118
A123: 119 | B123: 119 | C123: 4 | D123: 12 | E123: 9 | F123: 228;237;246 | G123: 元婴期 | H123: 后 | I123: 9 | J123: 228 | K123: 237 | L123: 246 | M123: =[1]ResourceLevelConfig!$E123*10 -> 23350 | N123: -1 | O123: -1 | P123: -1 | Q123: -1 | R123: -1 | S123: -1 | T123: 0 | U123: =[3]主表!K121 -> 708.7587508 | V123: =[3]主表!L121 -> 35.58621343 | W123: =[3]主表!M121 -> 35.58621343 | X123: =[3]主表!N121 -> 0 | Y123: =[3]主表!$G121 -> 20338 | Z123: =[3]升级!$H121 -> 1300 | AA123: =MAX(1,ROUND(100/(24*3600)*VLOOKUP(B123,[1]ResourceLevelConfig!$A:$E,5,FALSE),2)) -> 2.7 | AB123: -1 | AC123: 4 | AD123: 4 | AE123: 4 | AF123: 1300 | AJ123: 1 | AK123: 2 | AL123: 119
A124: 120 | B124: 120 | C124: 4 | D124: 12 | E124: 10 | F124: 228;237;247 | G124: 元婴期 | H124: 后 | I124: 10 | J124: 228 | K124: 237 | L124: 247 | M124: =[1]ResourceLevelConfig!$E124*10 -> 23820 | N124: 100004 | O124: 20 | P124: 1301 | Q124: 1 | R124: 1301;1302;1303 | S124: 1;1;1 | T124: 1;1 | U124: =[3]主表!K122 -> 722.4001326 | V124: =[3]主表!L122 -> 36.12000663 | W124: =[3]主表!M122 -> 36.12000663 | X124: =[3]主表!N122 -> 0 | Y124: =[3]主表!$G122 -> 20709 | Z124: =[3]升级!$H122 -> 1300 | AA124: =MAX(1,ROUND(100/(24*3600)*VLOOKUP(B124,[1]ResourceLevelConfig!$A:$E,5,FALSE),2)) -> 2.76 | AB124: 50 | AC124: 4 | AD124: 4 | AE124: 4 | AF124: 1310 | AJ124: 1 | AK124: 2 | AL124: 120
A125: 121 | B125: 121 | C125: 5 | D125: 13 | E125: 1 | F125: 229;235;238 | G125: 化神期 | H125: 前 | I125: 1 | J125: 229 | K125: 235 | L125: 238 | M125: =[1]ResourceLevelConfig!$E125*10 -> 24300 | N125: -1 | O125: -1 | P125: -1 | Q125: -1 | R125: =IF(I125=10,"1001;1002;1004",-1) -> -1 | S125: =IF(R125=-1,-1,"100;200;300") -> -1 | T125: 0 | U125: =[3]主表!K123 -> 1088.1152 | V125: =[3]主表!L123 -> 54.18000994 | W125: =[3]主表!M123 -> 54.18000994 | X125: =[3]主表!N123 -> 0 | Y125: =[3]主表!$G123 -> 31871 | Z125: =[3]升级!$H123 -> 1400 | AA125: =MAX(1,ROUND(100/(24*3600)*VLOOKUP(B125,[1]ResourceLevelConfig!$A:$E,5,FALSE),2)) -> 2.81 | AB125: -1 | AC125: 4 | AD125: 4 | AE125: 4 | AF125: 1320 | AJ125: 1 | AK125: 3 | AL125: 121
A126: 122 | B126: 122 | C126: 5 | D126: 13 | E126: 2 | F126: 229;235;239 | G126: 化神期 | H126: 前 | I126: 2 | J126: 229 | K126: 235 | L126: 239 | M126: =[1]ResourceLevelConfig!$E126*10 -> 24790 | N126: -1 | O126: -1 | P126: -1 | Q126: -1 | R126: =IF(I126=10,"1001;1002;1004",-1) -> -1 | S126: =IF(R126=-1,-1,"100;200;300") -> -1 | T126: 0 | U126: =[3]主表!K124 -> 1109.019654 | V126: =[3]主表!L124 -> 54.99271009 | W126: =[3]主表!M124 -> 54.99271009 | X126: =[3]主表!N124 -> 0 | Y126: =[3]主表!$G124 -> 32415 | Z126: =[3]升级!$H124 -> 1400 | AA126: =MAX(1,ROUND(100/(24*3600)*VLOOKUP(B126,[1]ResourceLevelConfig!$A:$E,5,FALSE),2)) -> 2.87 | AB126: -1 | AC126: 4 | AD126: 4 | AE126: 4 | AF126: 1330 | AJ126: 1 | AK126: 3 | AL126: 122
A127: 123 | B127: 123 | C127: 5 | D127: 13 | E127: 3 | F127: 229;235;240 | G127: 化神期 | H127: 前 | I127: 3 | J127: 229 | K127: 235 | L127: 240 | M127: =[1]ResourceLevelConfig!$E127*10 -> 25290 | N127: -1 | O127: -1 | P127: -1 | Q127: -1 | R127: -1 | S127: -1 | T127: 0 | U127: =[3]主表!K125 -> 1130.306415 | V127: =[3]主表!L125 -> 55.81760074 | W127: =[3]主表!M125 -> 55.81760074 | X127: =[3]主表!N125 -> 0 | Y127: =[3]主表!$G125 -> 32969 | Z127: =[3]升级!$H125 -> 1400 | AA127: =MAX(1,ROUND(100/(24*3600)*VLOOKUP(B127,[1]ResourceLevelConfig!$A:$E,5,FALSE),2)) -> 2.93 | AB127: -1 | AC127: 4 | AD127: 4 | AE127: 4 | AF127: 1340 | AJ127: 1 | AK127: 3 | AL127: 123
A128: 124 | B128: 124 | C128: 5 | D128: 13 | E128: 4 | F128: 229;235;241 | G128: 化神期 | H128: 前 | I128: 4 | J128: 229 | K128: 235 | L128: 241 | M128: =[1]ResourceLevelConfig!$E128*10 -> 25800 | N128: -1 | O128: -1 | P128: -1 | Q128: -1 | R128: -1 | S128: -1 | T128: 0 | U128: =[3]主表!K126 -> 1151.98225 | V128: =[3]主表!L126 -> 56.65486476 | W128: =[3]主表!M126 -> 56.65486476 | X128: =[3]主表!N126 -> 0 | Y128: =[3]主表!$G126 -> 33533 | Z128: =[3]升级!$H126 -> 1400 | AA128: =MAX(1,ROUND(100/(24*3600)*VLOOKUP(B128,[1]ResourceLevelConfig!$A:$E,5,FALSE),2)) -> 2.99 | AB128: -1 | AC128: 4 | AD128: 4 | AE128: 4 | AF128: 1350 | AJ128: 1 | AK128: 3 | AL128: 124
A129: 125 | B129: 125 | C129: 5 | D129: 13 | E129: 5 | F129: 229;235;242 | G129: 化神期 | H129: 前 | I129: 5 | J129: 229 | K129: 235 | L129: 242 | M129: =[1]ResourceLevelConfig!$E129*10 -> 26320 | N129: -1 | O129: -1 | P129: -1 | Q129: -1 | R129: -1 | S129: -1 | T129: 0 | U129: =[3]主表!K127 -> 1174.054041 | V129: =[3]主表!L127 -> 57.50468773 | W129: =[3]主表!M127 -> 57.50468773 | X129: =[3]主表!N127 -> 0 | Y129: =[3]主表!$G127 -> 34107 | Z129: =[3]升级!$H127 -> 1400 | AA129: =MAX(1,ROUND(100/(24*3600)*VLOOKUP(B129,[1]ResourceLevelConfig!$A:$E,5,FALSE),2)) -> 3.05 | AB129: -1 | AC129: 4 | AD129: 4 | AE129: 4 | AF129: 1360 | AJ129: 1 | AK129: 3 | AL129: 125
A130: 126 | B130: 126 | C130: 5 | D130: 13 | E130: 6 | F130: 229;235;243 | G130: 化神期 | H130: 前 | I130: 6 | J130: 229 | K130: 235 | L130: 243 | M130: =[1]ResourceLevelConfig!$E130*10 -> 26850 | N130: -1 | O130: -1 | P130: -1 | Q130: -1 | R130: -1 | S130: -1 | T130: 0 | U130: =[3]主表!K128 -> 1196.52879 | V130: =[3]主表!L128 -> 58.36725804 | W130: =[3]主表!M128 -> 58.36725804 | X130: =[3]主表!N128 -> 0 | Y130: =[3]主表!$G128 -> 34657 | Z130: =[3]升级!$H128 -> 1400 | AA130: =MAX(1,ROUND(100/(24*3600)*VLOOKUP(B130,[1]ResourceLevelConfig!$A:$E,5,FALSE),2)) -> 3.11 | AB130: -1 | AC130: 4 | AD130: 4 | AE130: 4 | AF130: 1370 | AJ130: 1 | AK130: 3 | AL130: 126
A131: 127 | B131: 127 | C131: 5 | D131: 13 | E131: 7 | F131: 229;235;244 | G131: 化神期 | H131: 前 | I131: 7 | J131: 229 | K131: 235 | L131: 244 | M131: =[1]ResourceLevelConfig!$E131*10 -> 27390 | N131: -1 | O131: -1 | P131: -1 | Q131: -1 | R131: -1 | S131: -1 | T131: 0 | U131: =[3]主表!K129 -> 1219.413619 | V131: =[3]主表!L129 -> 59.24276691 | W131: =[3]主表!M129 -> 59.24276691 | X131: =[3]主表!N129 -> 0 | Y131: =[3]主表!$G129 -> 35216 | Z131: =[3]升级!$H129 -> 1400 | AA131: =MAX(1,ROUND(100/(24*3600)*VLOOKUP(B131,[1]ResourceLevelConfig!$A:$E,5,FALSE),2)) -> 3.17 | AB131: -1 | AC131: =AC130 -> 4 | AD131: =AD130 -> 4 | AE131: =AE130 -> 4 | AF131: 1380 | AJ131: 1 | AK131: 3 | AL131: 127
A132: 128 | B132: 128 | C132: 5 | D132: 13 | E132: 8 | F132: 229;235;245 | G132: 化神期 | H132: 前 | I132: 8 | J132: 229 | K132: 235 | L132: 245 | M132: =[1]ResourceLevelConfig!$E132*10 -> 27940 | N132: -1 | O132: -1 | P132: -1 | Q132: -1 | R132: -1 | S132: -1 | T132: 0 | U132: =[3]主表!K130 -> 1242.715774 | V132: =[3]主表!L130 -> 60.13140842 | W132: =[3]主表!M130 -> 60.13140842 | X132: =[3]主表!N130 -> 0 | Y132: =[3]主表!$G130 -> 35785 | Z132: =[3]升级!$H130 -> 1400 | AA132: =MAX(1,ROUND(100/(24*3600)*VLOOKUP(B132,[1]ResourceLevelConfig!$A:$E,5,FALSE),2)) -> 3.23 | AB132: -1 | AC132: 4 | AD132: 4 | AE132: 4 | AF132: 1390 | AJ132: 1 | AK132: 3 | AL132: 128
A133: 129 | B133: 129 | C133: 5 | D133: 13 | E133: 9 | F133: 229;235;246 | G133: 化神期 | H133: 前 | I133: 9 | J133: 229 | K133: 235 | L133: 246 | M133: =[1]ResourceLevelConfig!$E133*10 -> 28500 | N133: -1 | O133: -1 | P133: -1 | Q133: -1 | R133: -1 | S133: -1 | T133: 0 | U133: =[3]主表!K131 -> 1266.442626 | V133: =[3]主表!L131 -> 61.03337954 | W133: =[3]主表!M131 -> 61.03337954 | X133: =[3]主表!N131 -> 0 | Y133: =[3]主表!$G131 -> 36364 | Z133: =[3]升级!$H131 -> 1400 | AA133: =MAX(1,ROUND(100/(24*3600)*VLOOKUP(B133,[1]ResourceLevelConfig!$A:$E,5,FALSE),2)) -> 3.3 | AB133: -1 | AC133: 4 | AD133: 4 | AE133: 4 | AF133: 1400 | AJ133: 1 | AK133: 3 | AL133: 129
A134: 130 | B134: 130 | C134: 5 | D134: 13 | E134: =I134 -> 10 | F134: =_xlfn.TEXTJOIN(";",1,J134:L134) -> 229;235;247 | G134: 化神期 | H134: 前 | I134: 10 | J134: 229 | K134: 235 | L134: 247 | M134: =[1]ResourceLevelConfig!$E134*10 -> 29070 | N134: =IF(I134=10,100004,-1) -> 100004 | O134: =IF(N134=-1,-1,20) -> 20 | P134: 1301 | Q134: 1 | R134: 1301 | S134: 1 | T134: 0 | U134: =[3]主表!K132 -> 1290.601672 | V134: =[3]主表!L132 -> 61.94888024 | W134: =[3]主表!M132 -> 61.94888024 | X134: =[3]主表!N132 -> 0 | Y134: =[3]主表!$G132 -> 36953 | Z134: =[3]升级!$H132 -> 1400 | AA134: =MAX(1,ROUND(100/(24*3600)*VLOOKUP(B134,[1]ResourceLevelConfig!$A:$E,5,FALSE),2)) -> 3.36 | AB134: 20 | AC134: 4 | AD134: 4 | AE134: 4 | AF134: =MAX(AF133+10,ROUND(10^(B134*0.01+1.405),0)) -> 1410 | AJ134: 1 | AK134: 3 | AL134: 130
A135: 131 | B135: 131 | C135: 5 | D135: 14 | E135: 1 | F135: 229;236;238 | G135: 化神期 | H135: 中 | I135: 1 | J135: 229 | K135: 236 | L135: 238 | M135: =[1]ResourceLevelConfig!$E135*10 -> 29650 | N135: -1 | O135: -1 | P135: -1 | Q135: -1 | R135: =IF(I135=10,"1001;1002;1004",-1) -> -1 | S135: -1 | T135: 0 | U135: =[3]主表!K133 -> 1425.340486 | V135: =[3]主表!L133 -> 68.14376826 | W135: =[3]主表!M133 -> 68.14376826 | X135: =[3]主表!N133 -> 0 | Y135: =[3]主表!$G133 -> 41658 | Z135: =[3]升级!$H133 -> 1400 | AA135: =MAX(1,ROUND(100/(24*3600)*VLOOKUP(B135,[1]ResourceLevelConfig!$A:$E,5,FALSE),2)) -> 3.43 | AB135: -1 | AC135: 4 | AD135: 4 | AE135: 4 | AF135: 1420 | AJ135: 1 | AK135: 3 | AL135: 131
A136: 132 | B136: 132 | C136: 5 | D136: 14 | E136: 2 | F136: 229;236;239 | G136: 化神期 | H136: 中 | I136: 2 | J136: 229 | K136: 236 | L136: 239 | M136: =[1]ResourceLevelConfig!$E136*10 -> 30240 | N136: -1 | O136: -1 | P136: -1 | Q136: -1 | R136: -1 | S136: -1 | T136: 0 | U136: =[3]主表!K134 -> 1452.48442 | V136: =[3]主表!L134 -> 69.16592478 | W136: =[3]主表!M134 -> 69.16592478 | X136: =[3]主表!N134 -> 0 | Y136: =[3]主表!$G134 -> 42322 | Z136: =[3]升级!$H134 -> 1400 | AA136: =MAX(1,ROUND(100/(24*3600)*VLOOKUP(B136,[1]ResourceLevelConfig!$A:$E,5,FALSE),2)) -> 3.5 | AB136: -1 | AC136: 4 | AD136: 4 | AE136: 4 | AF136: 1430 | AJ136: 1 | AK136: 3 | AL136: 132
A137: 133 | B137: 133 | C137: 5 | D137: 14 | E137: 3 | F137: 229;236;240 | G137: 化神期 | H137: 中 | I137: 3 | J137: 229 | K137: 236 | L137: 240 | M137: =[1]ResourceLevelConfig!$E137*10 -> 30840 | N137: -1 | O137: -1 | P137: -1 | Q137: -1 | R137: -1 | S137: -1 | T137: 0 | U137: =[3]主表!K135 -> 1480.121971 | V137: =[3]主表!L135 -> 70.20341366 | W137: =[3]主表!M135 -> 70.20341366 | X137: =[3]主表!N135 -> 0 | Y137: =[3]主表!$G135 -> 42997 | Z137: =[3]升级!$H135 -> 1400 | AA137: =MAX(1,ROUND(100/(24*3600)*VLOOKUP(B137,[1]ResourceLevelConfig!$A:$E,5,FALSE),2)) -> 3.57 | AB137: -1 | AC137: 4 | AD137: 4 | AE137: 4 | AF137: 1440 | AJ137: 1 | AK137: 3 | AL137: 133
A138: 134 | B138: 134 | C138: 5 | D138: 14 | E138: 4 | F138: 229;236;241 | G138: 化神期 | H138: 中 | I138: 4 | J138: 229 | K138: 236 | L138: 241 | M138: =[1]ResourceLevelConfig!$E138*10 -> 31460 | N138: -1 | O138: -1 | P138: -1 | Q138: -1 | R138: -1 | S138: -1 | T138: 0 | U138: =[3]主表!K136 -> 1508.26184 | V138: =[3]主表!L136 -> 71.25646486 | W138: =[3]主表!M136 -> 71.25646486 | X138: =[3]主表!N136 -> 0 | Y138: =[3]主表!$G136 -> 43684 | Z138: =[3]升级!$H136 -> 1400 | AA138: =MAX(1,ROUND(100/(24*3600)*VLOOKUP(B138,[1]ResourceLevelConfig!$A:$E,5,FALSE),2)) -> 3.64 | AB138: -1 | AC138: 4 | AD138: 4 | AE138: 4 | AF138: 1450 | AJ138: 1 | AK138: 3 | AL138: 134
A139: 135 | B139: 135 | C139: 5 | D139: 14 | E139: 5 | F139: 229;236;242 | G139: 化神期 | H139: 中 | I139: 5 | J139: 229 | K139: 236 | L139: 242 | M139: =[1]ResourceLevelConfig!$E139*10 -> 32090 | N139: -1 | O139: -1 | P139: -1 | Q139: -1 | R139: -1 | S139: -1 | T139: 0 | U139: =[3]主表!K137 -> 1536.912876 | V139: =[3]主表!L137 -> 72.32531183 | W139: =[3]主表!M137 -> 72.32531183 | X139: =[3]主表!N137 -> 0 | Y139: =[3]主表!$G137 -> 44382 | Z139: =[3]升级!$H137 -> 1400 | AA139: =MAX(1,ROUND(100/(24*3600)*VLOOKUP(B139,[1]ResourceLevelConfig!$A:$E,5,FALSE),2)) -> 3.71 | AB139: -1 | AC139: 4 | AD139: 4 | AE139: 4 | AF139: 1460 | AJ139: 1 | AK139: 3 | AL139: 135
A140: 136 | B140: 136 | C140: 5 | D140: 14 | E140: 6 | F140: 229;236;243 | G140: 化神期 | H140: 中 | I140: 6 | J140: 229 | K140: 236 | L140: 243 | M140: =[1]ResourceLevelConfig!$E140*10 -> 32730 | N140: -1 | O140: -1 | P140: -1 | Q140: -1 | R140: -1 | S140: -1 | T140: 0 | U140: =[3]主表!K138 -> 1566.084086 | V140: =[3]主表!L138 -> 73.41019151 | W140: =[3]主表!M138 -> 73.41019151 | X140: =[3]主表!N138 -> 0 | Y140: =[3]主表!$G138 -> 45093 | Z140: =[3]升级!$H138 -> 1400 | AA140: =MAX(1,ROUND(100/(24*3600)*VLOOKUP(B140,[1]ResourceLevelConfig!$A:$E,5,FALSE),2)) -> 3.79 | AB140: -1 | AC140: 4 | AD140: 4 | AE140: 4 | AF140: 1470 | AJ140: 1 | AK140: 3 | AL140: 136
A141: 137 | B141: 137 | C141: 5 | D141: 14 | E141: 7 | F141: 229;236;244 | G141: 化神期 | H141: 中 | I141: 7 | J141: 229 | K141: 236 | L141: 244 | M141: =[1]ResourceLevelConfig!$E141*10 -> 33380 | N141: -1 | O141: -1 | P141: -1 | Q141: -1 | R141: -1 | S141: -1 | T141: 0 | U141: =[3]主表!K139 -> 1595.784626 | V141: =[3]主表!L139 -> 74.51134438 | W141: =[3]主表!M139 -> 74.51134438 | X141: =[3]主表!N139 -> 0 | Y141: =[3]主表!$G139 -> 45816 | Z141: =[3]升级!$H139 -> 1400 | AA141: =MAX(1,ROUND(100/(24*3600)*VLOOKUP(B141,[1]ResourceLevelConfig!$A:$E,5,FALSE),2)) -> 3.86 | AB141: -1 | AC141: 4 | AD141: 4 | AE141: 4 | AF141: 1480 | AJ141: 1 | AK141: 3 | AL141: 137
A142: 138 | B142: 138 | C142: 5 | D142: 14 | E142: 8 | F142: 229;236;245 | G142: 化神期 | H142: 中 | I142: 8 | J142: 229 | K142: 236 | L142: 245 | M142: =[1]ResourceLevelConfig!$E142*10 -> 34050 | N142: -1 | O142: -1 | P142: -1 | Q142: -1 | R142: -1 | S142: -1 | T142: 0 | U142: =[3]主表!K140 -> 1626.023813 | V142: =[3]主表!L140 -> 75.62901455 | W142: =[3]主表!M140 -> 75.62901455 | X142: =[3]主表!N140 -> 0 | Y142: =[3]主表!$G140 -> 46551 | Z142: =[3]升级!$H140 -> 1400 | AA142: =MAX(1,ROUND(100/(24*3600)*VLOOKUP(B142,[1]ResourceLevelConfig!$A:$E,5,FALSE),2)) -> 3.94 | AB142: -1 | AC142: 4 | AD142: 4 | AE142: 4 | AF142: 1490 | AJ142: 1 | AK142: 3 | AL142: 138
A143: 139 | B143: 139 | C143: 5 | D143: 14 | E143: 9 | F143: 229;236;246 | G143: 化神期 | H143: 中 | I143: 9 | J143: 229 | K143: 236 | L143: 246 | M143: =[1]ResourceLevelConfig!$E143*10 -> 34730 | N143: -1 | O143: -1 | P143: -1 | Q143: -1 | R143: -1 | S143: -1 | T143: 0 | U143: =[3]主表!K141 -> 1656.811124 | V143: =[3]主表!L141 -> 76.76344977 | W143: =[3]主表!M141 -> 76.76344977 | X143: =[3]主表!N141 -> 0 | Y143: =[3]主表!$G141 -> 47299 | Z143: =[3]升级!$H141 -> 1400 | AA143: =MAX(1,ROUND(100/(24*3600)*VLOOKUP(B143,[1]ResourceLevelConfig!$A:$E,5,FALSE),2)) -> 4.02 | AB143: -1 | AC143: 4 | AD143: 4 | AE143: 4 | AF143: 1500 | AJ143: 1 | AK143: 3 | AL143: 139
A144: 140 | B144: 140 | C144: 5 | D144: 14 | E144: 10 | F144: 229;236;247 | G144: 化神期 | H144: 中 | I144: 10 | J144: 229 | K144: 236 | L144: 247 | M144: =[1]ResourceLevelConfig!$E144*10 -> 35420 | N144: 100004 | O144: 20 | P144: 1301 | Q144: 1 | R144: 1301;1302 | S144: 1;1 | T144: 0 | U144: =[3]主表!K142 -> 1688.156199 | V144: =[3]主表!L142 -> 77.91490151 | W144: =[3]主表!M142 -> 77.91490151 | X144: =[3]主表!N142 -> 0 | Y144: =[3]主表!$G142 -> 48060 | Z144: =[3]升级!$H142 -> 1400 | AA144: =MAX(1,ROUND(100/(24*3600)*VLOOKUP(B144,[1]ResourceLevelConfig!$A:$E,5,FALSE),2)) -> 4.1 | AB144: 20 | AC144: 4 | AD144: 4 | AE144: 4 | AF144: 1510 | AJ144: 1 | AK144: 3 | AL144: 140
A145: 141 | B145: 141 | C145: 5 | D145: 15 | E145: 1 | F145: 229;237;238 | G145: 化神期 | H145: 后 | I145: 1 | J145: 229 | K145: 237 | L145: 238 | M145: =[1]ResourceLevelConfig!$E145*10 -> 36130 | N145: -1 | O145: -1 | P145: -1 | Q145: -1 | R145: =IF(I145=10,"1001;1002;1004",-1) -> -1 | S145: -1 | T145: 0 | U145: =[3]主表!K143 -> 1864.114019 | V145: =[3]主表!L143 -> 85.70639167 | W145: =[3]主表!M143 -> 85.70639167 | X145: =[3]主表!N143 -> 0 | Y145: =[3]主表!$G143 -> 54172 | Z145: =[3]升级!$H143 -> 1400 | AA145: =MAX(1,ROUND(100/(24*3600)*VLOOKUP(B145,[1]ResourceLevelConfig!$A:$E,5,FALSE),2)) -> 4.18 | AB145: -1 | AC145: 4 | AD145: 4 | AE145: 4 | AF145: 1520 | AJ145: 1 | AK145: 3 | AL145: 141
A146: 142 | B146: 142 | C146: 5 | D146: 15 | E146: 2 | F146: 229;237;239 | G146: 化神期 | H146: 后 | I146: 2 | J146: 229 | K146: 237 | L146: 239 | M146: =[1]ResourceLevelConfig!$E146*10 -> 36850 | N146: -1 | O146: -1 | P146: -1 | Q146: -1 | R146: -1 | S146: -1 | T146: 0 | U146: =[3]主表!K144 -> 1899.325061 | V146: =[3]主表!L144 -> 86.99198754 | W146: =[3]主表!M144 -> 86.99198754 | X146: =[3]主表!N144 -> 0 | Y146: =[3]主表!$G144 -> 55029 | Z146: =[3]升级!$H144 -> 1400 | AA146: =MAX(1,ROUND(100/(24*3600)*VLOOKUP(B146,[1]ResourceLevelConfig!$A:$E,5,FALSE),2)) -> 4.27 | AB146: -1 | AC146: 4 | AD146: 4 | AE146: 4 | AF146: 1530 | AJ146: 1 | AK146: 3 | AL146: 142
A147: 143 | B147: 143 | C147: 5 | D147: 15 | E147: 3 | F147: 229;237;240 | G147: 化神期 | H147: 后 | I147: 3 | J147: 229 | K147: 237 | L147: 240 | M147: =[1]ResourceLevelConfig!$E147*10 -> 37590 | N147: -1 | O147: -1 | P147: -1 | Q147: -1 | R147: -1 | S147: -1 | T147: 0 | U147: =[3]主表!K145 -> 1935.17301 | V147: =[3]主表!L145 -> 88.29686735 | W147: =[3]主表!M145 -> 88.29686735 | X147: =[3]主表!N145 -> 0 | Y147: =[3]主表!$G145 -> 55901 | Z147: =[3]升级!$H145 -> 1400 | AA147: =MAX(1,ROUND(100/(24*3600)*VLOOKUP(B147,[1]ResourceLevelConfig!$A:$E,5,FALSE),2)) -> 4.35 | AB147: -1 | AC147: 4 | AD147: 4 | AE147: 4 | AF147: 1540 | AJ147: 1 | AK147: 3 | AL147: 143
A148: 144 | B148: 144 | C148: 5 | D148: 15 | E148: 4 | F148: 229;237;241 | G148: 化神期 | H148: 后 | I148: 4 | J148: 229 | K148: 237 | L148: 241 | M148: =[1]ResourceLevelConfig!$E148*10 -> 38340 | N148: -1 | O148: -1 | P148: -1 | Q148: -1 | R148: -1 | S148: -1 | T148: 0 | U148: =[3]主表!K146 -> 1971.669048 | V148: =[3]主表!L146 -> 89.62132036 | W148: =[3]主表!M146 -> 89.62132036 | X148: =[3]主表!N146 -> 0 | Y148: =[3]主表!$G146 -> 56788 | Z148: =[3]升级!$H146 -> 1400 | AA148: =MAX(1,ROUND(100/(24*3600)*VLOOKUP(B148,[1]ResourceLevelConfig!$A:$E,5,FALSE),2)) -> 4.44 | AB148: -1 | AC148: 4 | AD148: 4 | AE148: 4 | AF148: 1550 | AJ148: 1 | AK148: 3 | AL148: 144
A149: 145 | B149: 145 | C149: 5 | D149: 15 | E149: 5 | F149: 229;237;242 | G149: 化神期 | H149: 后 | I149: 5 | J149: 229 | K149: 237 | L149: 242 | M149: =[1]ResourceLevelConfig!$E149*10 -> 39110 | N149: -1 | O149: -1 | P149: -1 | Q149: -1 | R149: -1 | S149: -1 | T149: 0 | U149: =[3]主表!K147 -> 2008.824554 | V149: =[3]主表!L147 -> 90.96564017 | W149: =[3]主表!M147 -> 90.96564017 | X149: =[3]主表!N147 -> 0 | Y149: =[3]主表!$G147 -> 57689 | Z149: =[3]升级!$H147 -> 1400 | AA149: =MAX(1,ROUND(100/(24*3600)*VLOOKUP(B149,[1]ResourceLevelConfig!$A:$E,5,FALSE),2)) -> 4.53 | AB149: -1 | AC149: 4 | AD149: 4 | AE149: 4 | AF149: 1560 | AJ149: 1 | AK149: 3 | AL149: 145
A150: 146 | B150: 146 | C150: 5 | D150: 15 | E150: 6 | F150: 229;237;243 | G150: 化神期 | H150: 后 | I150: 6 | J150: 229 | K150: 237 | L150: 243 | M150: =[1]ResourceLevelConfig!$E150*10 -> 39890 | N150: -1 | O150: -1 | P150: -1 | Q150: -1 | R150: -1 | S150: -1 | T150: 0 | U150: =[3]主表!K148 -> 2046.651099 | V150: =[3]主表!L148 -> 92.33012477 | W150: =[3]主表!M148 -> 92.33012477 | X150: =[3]主表!N148 -> 0 | Y150: =[3]主表!$G148 -> 58607 | Z150: =[3]升级!$H148 -> 1400 | AA150: =MAX(1,ROUND(100/(24*3600)*VLOOKUP(B150,[1]ResourceLevelConfig!$A:$E,5,FALSE),2)) -> 4.62 | AB150: -1 | AC150: 4 | AD150: 4 | AE150: 4 | AF150: 1570 | AJ150: 1 | AK150: 3 | AL150: 146
A151: 147 | B151: 147 | C151: 5 | D151: 15 | E151: 7 | F151: 229;237;244 | G151: 化神期 | H151: 后 | I151: 7 | J151: 229 | K151: 237 | L151: 244 | M151: =[1]ResourceLevelConfig!$E151*10 -> 40690 | N151: -1 | O151: -1 | P151: -1 | Q151: -1 | R151: -1 | S151: -1 | T151: 0 | U151: =[3]主表!K149 -> 2085.160455 | V151: =[3]主表!L149 -> 93.71507664 | W151: =[3]主表!M149 -> 93.71507664 | X151: =[3]主表!N149 -> 0 | Y151: =[3]主表!$G149 -> 59540 | Z151: =[3]升级!$H149 -> 1400 | AA151: =MAX(1,ROUND(100/(24*3600)*VLOOKUP(B151,[1]ResourceLevelConfig!$A:$E,5,FALSE),2)) -> 4.71 | AB151: -1 | AC151: 4 | AD151: 4 | AE151: 4 | AF151: 1580 | AJ151: 1 | AK151: 3 | AL151: 147
A152: 148 | B152: 148 | C152: 5 | D152: 15 | E152: 8 | F152: 229;237;245 | G152: 化神期 | H152: 后 | I152: 8 | J152: 229 | K152: 237 | L152: 245 | M152: =[1]ResourceLevelConfig!$E152*10 -> 41500 | N152: -1 | O152: -1 | P152: -1 | Q152: -1 | R152: -1 | S152: -1 | T152: 0 | U152: =[3]主表!K150 -> 2124.364596 | V152: =[3]主表!L150 -> 95.12080279 | W152: =[3]主表!M150 -> 95.12080279 | X152: =[3]主表!N150 -> 0 | Y152: =[3]主表!$G150 -> 60489 | Z152: =[3]升级!$H150 -> 1400 | AA152: =MAX(1,ROUND(100/(24*3600)*VLOOKUP(B152,[1]ResourceLevelConfig!$A:$E,5,FALSE),2)) -> 4.8 | AB152: -1 | AC152: 4 | AD152: 4 | AE152: 4 | AF152: 1590 | AJ152: 1 | AK152: 3 | AL152: 148
A153: 149 | B153: 149 | C153: 5 | D153: 15 | E153: 9 | F153: 229;237;246 | G153: 化神期 | H153: 后 | I153: 9 | J153: 229 | K153: 237 | L153: 246 | M153: =[1]ResourceLevelConfig!$E153*10 -> 42330 | N153: -1 | O153: -1 | P153: -1 | Q153: -1 | R153: -1 | S153: -1 | T153: 0 | U153: =[3]主表!K151 -> 2164.275699 | V153: =[3]主表!L151 -> 96.54761484 | W153: =[3]主表!M151 -> 96.54761484 | X153: =[3]主表!N151 -> 0 | Y153: =[3]主表!$G151 -> 61454 | Z153: =[3]升级!$H151 -> 1400 | AA153: =MAX(1,ROUND(100/(24*3600)*VLOOKUP(B153,[1]ResourceLevelConfig!$A:$E,5,FALSE),2)) -> 4.9 | AB153: -1 | AC153: 4 | AD153: 4 | AE153: 4 | AF153: 1600 | AJ153: 1 | AK153: 3 | AL153: 149
A154: 150 | B154: 150 | C154: 5 | D154: 15 | E154: 10 | F154: 229;237;247 | G154: 化神期 | H154: 后 | I154: 10 | J154: 229 | K154: 237 | L154: 247 | M154: =[1]ResourceLevelConfig!$E154*10 -> 43180 | N154: 100004 | O154: 20 | P154: 1301 | Q154: 1 | R154: 1301;1302;1303 | S154: 1;1;1 | T154: 1;1 | U154: =[3]主表!K152 -> 2204.906154 | V154: =[3]主表!L152 -> 97.99582906 | W154: =[3]主表!M152 -> 97.99582906 | X154: =[3]主表!N152 -> 0 | Y154: =[3]主表!$G152 -> 62436 | Z154: =[3]升级!$H152 -> 1400 | AA154: =MAX(1,ROUND(100/(24*3600)*VLOOKUP(B154,[1]ResourceLevelConfig!$A:$E,5,FALSE),2)) -> 5 | AB154: 50 | AC154: 4 | AD154: 4 | AE154: 4 | AF154: 1610 | AJ154: 1 | AK154: 3 | AL154: 150 | AN154: =U154*201*1.98*1.2 -> 1053010.261
A155: 151 | B155: 151 | C155: 6 | D155: 16 | E155: 1 | F155: 230;235;238 | G155: 炼虚期 | H155: 前 | I155: 1 | J155: 230 | K155: 235 | L155: 238 | M155: =[1]ResourceLevelConfig!$E155*10 -> 44040 | N155: -1 | O155: -1 | P155: -1 | Q155: -1 | R155: =IF(I155=10,"1001;1002;1004",-1) -> -1 | S155: =IF(R155=-1,-1,"100;200;300") -> -1 | T155: 0 | U155: =[3]主表!K153 -> 3319.608709 | V155: =[3]主表!L153 -> 146.9937436 | W155: =[3]主表!M153 -> 146.9937436 | X155: =[3]主表!N153 -> 0 | Y155: =[3]主表!$G153 -> 95958 | Z155: =[3]升级!$H153 -> 1500 | AA155: =MAX(1,ROUND(100/(24*3600)*VLOOKUP(B155,[1]ResourceLevelConfig!$A:$E,5,FALSE),2)) -> 5.1 | AB155: -1 | AC155: 4 | AD155: 4 | AE155: 4 | AF155: 1620 | AJ155: 1 | AK155: 3 | AL155: 151
A156: 152 | B156: 152 | C156: 6 | D156: 16 | E156: 2 | F156: 230;235;239 | G156: 炼虚期 | H156: 前 | I156: 2 | J156: 230 | K156: 235 | L156: 239 | M156: =[1]ResourceLevelConfig!$E156*10 -> 44920 | N156: -1 | O156: -1 | P156: -1 | Q156: -1 | R156: =IF(I156=10,"1001;1002;1004",-1) -> -1 | S156: =IF(R156=-1,-1,"100;200;300") -> -1 | T156: 0 | U156: =[3]主表!K154 -> 3381.836061 | V156: =[3]主表!L154 -> 149.1986497 | W156: =[3]主表!M154 -> 149.1986497 | X156: =[3]主表!N154 -> 0 | Y156: =[3]主表!$G154 -> 97466 | Z156: =[3]升级!$H154 -> 1500 | AA156: =MAX(1,ROUND(100/(24*3600)*VLOOKUP(B156,[1]ResourceLevelConfig!$A:$E,5,FALSE),2)) -> 5.2 | AB156: -1 | AC156: 4 | AD156: 4 | AE156: 4 | AF156: 1630 | AJ156: 1 | AK156: 3 | AL156: 152
A157: 153 | B157: 153 | C157: 6 | D157: 16 | E157: 3 | F157: 230;235;240 | G157: 炼虚期 | H157: 前 | I157: 3 | J157: 230 | K157: 235 | L157: 240 | M157: =[1]ResourceLevelConfig!$E157*10 -> 45820 | N157: -1 | O157: -1 | P157: -1 | Q157: -1 | R157: -1 | S157: -1 | T157: 0 | U157: =[3]主表!K155 -> 3445.183321 | V157: =[3]主表!L155 -> 151.4366295 | W157: =[3]主表!M155 -> 151.4366295 | X157: =[3]主表!N155 -> 0 | Y157: =[3]主表!$G155 -> 99000 | Z157: =[3]升级!$H155 -> 1500 | AA157: =MAX(1,ROUND(100/(24*3600)*VLOOKUP(B157,[1]ResourceLevelConfig!$A:$E,5,FALSE),2)) -> 5.3 | AB157: -1 | AC157: 4 | AD157: 4 | AE157: 4 | AF157: 1640 | AJ157: 1 | AK157: 3 | AL157: 153
A158: 154 | B158: 154 | C158: 6 | D158: 16 | E158: 4 | F158: 230;235;241 | G158: 炼虚期 | H158: 前 | I158: 4 | J158: 230 | K158: 235 | L158: 241 | M158: =[1]ResourceLevelConfig!$E158*10 -> 46740 | N158: -1 | O158: -1 | P158: -1 | Q158: -1 | R158: -1 | S158: -1 | T158: 0 | U158: =[3]主表!K156 -> 3509.670086 | V158: =[3]主表!L156 -> 153.7081789 | W158: =[3]主表!M156 -> 153.7081789 | X158: =[3]主表!N156 -> 0 | Y158: =[3]主表!$G156 -> 100560 | Z158: =[3]升级!$H156 -> 1500 | AA158: =MAX(1,ROUND(100/(24*3600)*VLOOKUP(B158,[1]ResourceLevelConfig!$A:$E,5,FALSE),2)) -> 5.41 | AB158: -1 | AC158: 4 | AD158: 4 | AE158: 4 | AF158: 1650 | AJ158: 1 | AK158: 3 | AL158: 154
A159: 155 | B159: 155 | C159: 6 | D159: 16 | E159: 5 | F159: 230;235;242 | G159: 炼虚期 | H159: 前 | I159: 5 | J159: 230 | K159: 235 | L159: 242 | M159: =[1]ResourceLevelConfig!$E159*10 -> 47670 | N159: -1 | O159: -1 | P159: -1 | Q159: -1 | R159: -1 | S159: -1 | T159: 0 | U159: =[3]主表!K157 -> 3575.316287 | V159: =[3]主表!L157 -> 156.0138016 | W159: =[3]主表!M157 -> 156.0138016 | X159: =[3]主表!N157 -> 0 | Y159: =[3]主表!$G157 -> 102147 | Z159: =[3]升级!$H157 -> 1500 | AA159: =MAX(1,ROUND(100/(24*3600)*VLOOKUP(B159,[1]ResourceLevelConfig!$A:$E,5,FALSE),2)) -> 5.52 | AB159: -1 | AC159: 4 | AD159: 4 | AE159: 4 | AF159: 1660 | AJ159: 1 | AK159: 3 | AL159: 155
A160: 156 | B160: 156 | C160: 6 | D160: 16 | E160: 6 | F160: 230;235;243 | G160: 炼虚期 | H160: 前 | I160: 6 | J160: 230 | K160: 235 | L160: 243 | M160: =[1]ResourceLevelConfig!$E160*10 -> 48620 | N160: -1 | O160: -1 | P160: -1 | Q160: -1 | R160: -1 | S160: -1 | T160: 0 | U160: =[3]主表!K158 -> 3642.142199 | V160: =[3]主表!L158 -> 158.3540086 | W160: =[3]主表!M158 -> 158.3540086 | X160: =[3]主表!N158 -> 0 | Y160: =[3]主表!$G158 -> 103761 | Z160: =[3]升级!$H158 -> 1500 | AA160: =MAX(1,ROUND(100/(24*3600)*VLOOKUP(B160,[1]ResourceLevelConfig!$A:$E,5,FALSE),2)) -> 5.63 | AB160: -1 | AC160: 4 | AD160: 4 | AE160: 4 | AF160: 1670 | AJ160: 1 | AK160: 3 | AL160: 156
A161: 157 | B161: 157 | C161: 6 | D161: 16 | E161: 7 | F161: 230;235;244 | G161: 炼虚期 | H161: 前 | I161: 7 | J161: 230 | K161: 235 | L161: 244 | M161: =[1]ResourceLevelConfig!$E161*10 -> 49590 | N161: -1 | O161: -1 | P161: -1 | Q161: -1 | R161: -1 | S161: -1 | T161: 0 | U161: =[3]主表!K159 -> 3710.168442 | V161: =[3]主表!L159 -> 160.7293188 | W161: =[3]主表!M159 -> 160.7293188 | X161: =[3]主表!N159 -> 0 | Y161: =[3]主表!$G159 -> 105402 | Z161: =[3]升级!$H159 -> 1500 | AA161: =MAX(1,ROUND(100/(24*3600)*VLOOKUP(B161,[1]ResourceLevelConfig!$A:$E,5,FALSE),2)) -> 5.74 | AB161: -1 | AC161: 4 | AD161: 4 | AE161: 4 | AF161: 1680 | AJ161: 1 | AK161: 3 | AL161: 157
A162: 158 | B162: 158 | C162: 6 | D162: 16 | E162: 8 | F162: 230;235;245 | G162: 炼虚期 | H162: 前 | I162: 8 | J162: 230 | K162: 235 | L162: 245 | M162: =[1]ResourceLevelConfig!$E162*10 -> 50580 | N162: -1 | O162: -1 | P162: -1 | Q162: -1 | R162: -1 | S162: -1 | T162: 0 | U162: =[3]主表!K160 -> 3779.41599 | V162: =[3]主表!L160 -> 163.1402585 | W162: =[3]主表!M160 -> 163.1402585 | X162: =[3]主表!N160 -> 0 | Y162: =[3]主表!$G160 -> 107071 | Z162: =[3]升级!$H160 -> 1500 | AA162: =MAX(1,ROUND(100/(24*3600)*VLOOKUP(B162,[1]ResourceLevelConfig!$A:$E,5,FALSE),2)) -> 5.85 | AB162: -1 | AC162: 4 | AD162: 4 | AE162: 4 | AF162: 1690 | AJ162: 1 | AK162: 3 | AL162: 158
A163: 159 | B163: 159 | C163: 6 | D163: 16 | E163: 9 | F163: 230;235;246 | G163: 炼虚期 | H163: 前 | I163: 9 | J163: 230 | K163: 235 | L163: 246 | M163: =[1]ResourceLevelConfig!$E163*10 -> 51590 | N163: -1 | O163: -1 | P163: -1 | Q163: -1 | R163: -1 | S163: -1 | T163: =IF(G163=G164,0,CONCATENATE("1;1")) -> 0 | U163: =[3]主表!K161 -> 3849.906176 | V163: =[3]主表!L161 -> 165.5873624 | W163: =[3]主表!M161 -> 165.5873624 | X163: =[3]主表!N161 -> 0 | Y163: =[3]主表!$G161 -> 108769 | Z163: =[3]升级!$H161 -> 1500 | AA163: =MAX(1,ROUND(100/(24*3600)*VLOOKUP(B163,[1]ResourceLevelConfig!$A:$E,5,FALSE),2)) -> 5.97 | AB163: -1 | AC163: 4 | AD163: 4 | AE163: 4 | AF163: 1700 | AJ163: 1 | AK163: 3 | AL163: 159
A164: 160 | B164: 160 | C164: 6 | D164: 16 | E164: 10 | F164: 230;235;247 | G164: 炼虚期 | H164: 前 | I164: 10 | J164: 230 | K164: 235 | L164: 247 | M164: =[1]ResourceLevelConfig!$E164*10 -> 52620 | N164: 100004 | O164: 20 | P164: 1301 | Q164: 1 | R164: 1301 | S164: 1 | T164: 0 | U164: =[3]主表!K162 -> 3921.6607 | V164: =[3]主表!L162 -> 168.0711729 | W164: =[3]主表!M162 -> 168.0711729 | X164: =[3]主表!N162 -> 441.984 | Y164: =[3]主表!$G162 -> 110496 | Z164: =[3]升级!$H162 -> 1500 | AA164: =MAX(1,ROUND(100/(24*3600)*VLOOKUP(B164,[1]ResourceLevelConfig!$A:$E,5,FALSE),2)) -> 6.09 | AB164: 20 | AC164: 4 | AD164: 4 | AE164: 4 | AF164: 1710 | AJ164: 1 | AK164: 3 | AL164: 160
A165: 161 | B165: 161 | C165: 6 | D165: 17 | E165: 1 | F165: 230;236;238 | G165: 炼虚期 | H165: 中 | I165: 1 | J165: 230 | K165: 236 | L165: 238 | M165: =[1]ResourceLevelConfig!$E165*10 -> 53670 | N165: -1 | O165: -1 | P165: -1 | Q165: -1 | R165: =IF(I165=10,"1001;1002;1004",-1) -> -1 | S165: -1 | T165: 0 | U165: =[3]主表!K163 -> 4329.233294 | V165: =[3]主表!L163 -> 184.8782901 | W165: =[3]主表!M163 -> 184.8782901 | X165: =[3]主表!N163 -> 498.096 | Y165: =[3]主表!$G163 -> 124524 | Z165: =[3]升级!$H163 -> 1500 | AA165: =MAX(1,ROUND(100/(24*3600)*VLOOKUP(B165,[1]ResourceLevelConfig!$A:$E,5,FALSE),2)) -> 6.21 | AB165: -1 | AC165: 4 | AD165: 4 | AE165: 4 | AF165: 1720 | AJ165: 1 | AK165: 3 | AL165: 161
A166: 162 | B166: 162 | C166: 6 | D166: 17 | E166: 2 | F166: 230;236;239 | G166: 炼虚期 | H166: 中 | I166: 2 | J166: 230 | K166: 236 | L166: 239 | M166: =[1]ResourceLevelConfig!$E166*10 -> 54740 | N166: -1 | O166: -1 | P166: -1 | Q166: -1 | R166: -1 | S166: -1 | T166: 0 | U166: =[3]主表!K164 -> 4409.809416 | V166: =[3]主表!L164 -> 187.6514645 | W166: =[3]主表!M164 -> 187.6514645 | X166: =[3]主表!N164 -> 505.872 | Y166: =[3]主表!$G164 -> 126468 | Z166: =[3]升级!$H164 -> 1500 | AA166: =MAX(1,ROUND(100/(24*3600)*VLOOKUP(B166,[1]ResourceLevelConfig!$A:$E,5,FALSE),2)) -> 6.34 | AB166: -1 | AC166: 4 | AD166: 4 | AE166: 4 | AF166: 1730 | AJ166: 1 | AK166: 3 | AL166: 162
A167: 163 | B167: 163 | C167: 6 | D167: 17 | E167: 3 | F167: 230;236;240 | G167: 炼虚期 | H167: 中 | I167: 3 | J167: 230 | K167: 236 | L167: 240 | M167: =[1]ResourceLevelConfig!$E167*10 -> 55830 | N167: -1 | O167: -1 | P167: -1 | Q167: -1 | R167: -1 | S167: -1 | T167: 0 | U167: =[3]主表!K165 -> 4491.828743 | V167: =[3]主表!L165 -> 190.4662365 | W167: =[3]主表!M165 -> 190.4662365 | X167: =[3]主表!N165 -> 513.784 | Y167: =[3]主表!$G165 -> 128446 | Z167: =[3]升级!$H165 -> 1500 | AA167: =MAX(1,ROUND(100/(24*3600)*VLOOKUP(B167,[1]ResourceLevelConfig!$A:$E,5,FALSE),2)) -> 6.46 | AB167: -1 | AC167: 4 | AD167: 4 | AE167: 4 | AF167: 1740 | AJ167: 1 | AK167: 3 | AL167: 163
A168: 164 | B168: 164 | C168: 6 | D168: 17 | E168: 4 | F168: 230;236;241 | G168: 炼虚期 | H168: 中 | I168: 4 | J168: 230 | K168: 236 | L168: 241 | M168: =[1]ResourceLevelConfig!$E168*10 -> 56950 | N168: -1 | O168: -1 | P168: -1 | Q168: -1 | R168: -1 | S168: -1 | T168: 0 | U168: =[3]主表!K166 -> 4575.316444 | V168: =[3]主表!L166 -> 193.32323 | W168: =[3]主表!M166 -> 193.32323 | X168: =[3]主表!N166 -> 521.832 | Y168: =[3]主表!$G166 -> 130458 | Z168: =[3]升级!$H166 -> 1500 | AA168: =MAX(1,ROUND(100/(24*3600)*VLOOKUP(B168,[1]ResourceLevelConfig!$A:$E,5,FALSE),2)) -> 6.59 | AB168: -1 | AC168: 4 | AD168: 4 | AE168: 4 | AF168: 1750 | AJ168: 1 | AK168: 3 | AL168: 164
A169: 165 | B169: 165 | C169: 6 | D169: 17 | E169: 5 | F169: 230;236;242 | G169: 炼虚期 | H169: 中 | I169: 5 | J169: 230 | K169: 236 | L169: 242 | M169: =[1]ResourceLevelConfig!$E169*10 -> 58090 | N169: -1 | O169: -1 | P169: -1 | Q169: -1 | R169: -1 | S169: -1 | T169: 0 | U169: =[3]主表!K167 -> 4660.298114 | V169: =[3]主表!L167 -> 196.2230785 | W169: =[3]主表!M167 -> 196.2230785 | X169: =[3]主表!N167 -> 530.016 | Y169: =[3]主表!$G167 -> 132504 | Z169: =[3]升级!$H167 -> 1500 | AA169: =MAX(1,ROUND(100/(24*3600)*VLOOKUP(B169,[1]ResourceLevelConfig!$A:$E,5,FALSE),2)) -> 6.72 | AB169: -1 | AC169: 4 | AD169: 4 | AE169: 4 | AF169: 1760 | AJ169: 1 | AK169: 3 | AL169: 165
A170: 166 | B170: 166 | C170: 6 | D170: 17 | E170: 6 | F170: 230;236;243 | G170: 炼虚期 | H170: 中 | I170: 6 | J170: 230 | K170: 236 | L170: 243 | M170: =[1]ResourceLevelConfig!$E170*10 -> 59250 | N170: -1 | O170: -1 | P170: -1 | Q170: -1 | R170: -1 | S170: -1 | T170: 0 | U170: =[3]主表!K168 -> 4746.799787 | V170: =[3]主表!L168 -> 199.1664246 | W170: =[3]主表!M168 -> 199.1664246 | X170: =[3]主表!N168 -> 538.336 | Y170: =[3]主表!$G168 -> 134584 | Z170: =[3]升级!$H168 -> 1500 | AA170: =MAX(1,ROUND(100/(24*3600)*VLOOKUP(B170,[1]ResourceLevelConfig!$A:$E,5,FALSE),2)) -> 6.86 | AB170: -1 | AC170: 4 | AD170: 4 | AE170: 4 | AF170: 1770 | AJ170: 1 | AK170: 3 | AL170: 166
A171: 167 | B171: 167 | C171: 6 | D171: 17 | E171: 7 | F171: 230;236;244 | G171: 炼虚期 | H171: 中 | I171: 7 | J171: 230 | K171: 236 | L171: 244 | M171: =[1]ResourceLevelConfig!$E171*10 -> 60440 | N171: -1 | O171: -1 | P171: -1 | Q171: -1 | R171: -1 | S171: -1 | T171: 0 | U171: =[3]主表!K169 -> 4834.847944 | V171: =[3]主表!L169 -> 202.153921 | W171: =[3]主表!M169 -> 202.153921 | X171: =[3]主表!N169 -> 546.8 | Y171: =[3]主表!$G169 -> 136700 | Z171: =[3]升级!$H169 -> 1500 | AA171: =MAX(1,ROUND(100/(24*3600)*VLOOKUP(B171,[1]ResourceLevelConfig!$A:$E,5,FALSE),2)) -> 7 | AB171: -1 | AC171: 4 | AD171: 4 | AE171: 4 | AF171: 1780 | AJ171: 1 | AK171: 3 | AL171: 167
A172: 168 | B172: 168 | C172: 6 | D172: 17 | E172: 8 | F172: 230;236;245 | G172: 炼虚期 | H172: 中 | I172: 8 | J172: 230 | K172: 236 | L172: 245 | M172: =[1]ResourceLevelConfig!$E172*10 -> 61650 | N172: -1 | O172: -1 | P172: -1 | Q172: -1 | R172: -1 | S172: -1 | T172: 0 | U172: =[3]主表!K170 -> 4924.469516 | V172: =[3]主表!L170 -> 205.1862298 | W172: =[3]主表!M170 -> 205.1862298 | X172: =[3]主表!N170 -> 555.408 | Y172: =[3]主表!$G170 -> 138852 | Z172: =[3]升级!$H170 -> 1500 | AA172: =MAX(1,ROUND(100/(24*3600)*VLOOKUP(B172,[1]ResourceLevelConfig!$A:$E,5,FALSE),2)) -> 7.14 | AB172: -1 | AC172: 4 | AD172: 4 | AE172: 4 | AF172: 1790 | AJ172: 1 | AK172: 3 | AL172: 168
A173: 169 | B173: 169 | C173: 6 | D173: 17 | E173: 9 | F173: 230;236;246 | G173: 炼虚期 | H173: 中 | I173: 9 | J173: 230 | K173: 236 | L173: 246 | M173: =[1]ResourceLevelConfig!$E173*10 -> 62880 | N173: -1 | O173: -1 | P173: -1 | Q173: -1 | R173: -1 | S173: -1 | T173: 0 | U173: =[3]主表!K171 -> 5015.691894 | V173: =[3]主表!L171 -> 208.2640233 | W173: =[3]主表!M171 -> 208.2640233 | X173: =[3]主表!N171 -> 564.164 | Y173: =[3]主表!$G171 -> 141041 | Z173: =[3]升级!$H171 -> 1500 | AA173: =MAX(1,ROUND(100/(24*3600)*VLOOKUP(B173,[1]ResourceLevelConfig!$A:$E,5,FALSE),2)) -> 7.28 | AB173: -1 | AC173: 4 | AD173: 4 | AE173: 4 | AF173: 1800 | AJ173: 1 | AK173: 3 | AL173: 169
A174: 170 | B174: 170 | C174: 6 | D174: 17 | E174: 10 | F174: 230;236;247 | G174: 炼虚期 | H174: 中 | I174: 10 | J174: 230 | K174: 236 | L174: 247 | M174: =[1]ResourceLevelConfig!$E174*10 -> 64140 | N174: 100004 | O174: 20 | P174: 1301 | Q174: 1 | R174: 1301;1302 | S174: 1;1 | T174: 0 | U174: =[3]主表!K172 -> 5108.542938 | V174: =[3]主表!L172 -> 211.3879836 | W174: =[3]主表!M172 -> 211.3879836 | X174: =[3]主表!N172 -> 630.372 | Y174: =[3]主表!$G172 -> 143266 | Z174: =[3]升级!$H172 -> 1500 | AA174: =MAX(1,ROUND(100/(24*3600)*VLOOKUP(B174,[1]ResourceLevelConfig!$A:$E,5,FALSE),2)) -> 7.42 | AB174: 20 | AC174: 4 | AD174: 4 | AE174: 4 | AF174: 1810 | AJ174: 1 | AK174: 3 | AL174: 170
A175: 171 | B175: 171 | C175: 6 | D175: 18 | E175: 1 | F175: 230;237;238 | G175: 炼虚期 | H175: 后 | I175: 1 | J175: 230 | K175: 237 | L175: 238 | M175: =[1]ResourceLevelConfig!$E175*10 -> 65420 | N175: -1 | O175: -1 | P175: -1 | Q175: -1 | R175: =IF(I175=10,"1001;1002;1004",-1) -> -1 | S175: -1 | T175: 0 | U175: =[3]主表!K173 -> 5638.774463 | V175: =[3]主表!L173 -> 232.526782 | W175: =[3]主表!M173 -> 232.526782 | X175: =[3]主表!N173 -> 710.336 | Y175: =[3]主表!$G173 -> 161440 | Z175: =[3]升级!$H173 -> 1500 | AA175: =MAX(1,ROUND(100/(24*3600)*VLOOKUP(B175,[1]ResourceLevelConfig!$A:$E,5,FALSE),2)) -> 7.57 | AB175: -1 | AC175: 4 | AD175: 4 | AE175: 4 | AF175: 1820 | AJ175: 1 | AK175: 3 | AL175: 171
A176: 172 | B176: 172 | C176: 6 | D176: 18 | E176: 2 | F176: 230;237;239 | G176: 炼虚期 | H176: 后 | I176: 2 | J176: 230 | K176: 237 | L176: 239 | M176: =[1]ResourceLevelConfig!$E176*10 -> 66730 | N176: -1 | O176: -1 | P176: -1 | Q176: -1 | R176: -1 | S176: -1 | T176: 0 | U176: =[3]主表!K174 -> 5743.02397 | V176: =[3]主表!L174 -> 236.0146837 | W176: =[3]主表!M174 -> 236.0146837 | X176: =[3]主表!N174 -> 721.364 | Y176: =[3]主表!$G174 -> 163946 | Z176: =[3]升级!$H174 -> 1500 | AA176: =MAX(1,ROUND(100/(24*3600)*VLOOKUP(B176,[1]ResourceLevelConfig!$A:$E,5,FALSE),2)) -> 7.72 | AB176: -1 | AC176: 4 | AD176: 4 | AE176: 4 | AF176: 1830 | AJ176: 1 | AK176: 3 | AL176: 172
A177: 173 | B177: 173 | C177: 6 | D177: 18 | E177: 3 | F177: 230;237;240 | G177: 炼虚期 | H177: 后 | I177: 3 | J177: 230 | K177: 237 | L177: 240 | M177: =[1]ResourceLevelConfig!$E177*10 -> 68060 | N177: -1 | O177: -1 | P177: -1 | Q177: -1 | R177: -1 | S177: -1 | T177: 0 | U177: =[3]主表!K175 -> 5849.132239 | V177: =[3]主表!L175 -> 239.554904 | W177: =[3]主表!M175 -> 239.554904 | X177: =[3]主表!N175 -> 732.58 | Y177: =[3]主表!$G175 -> 166495 | Z177: =[3]升级!$H175 -> 1500 | AA177: =MAX(1,ROUND(100/(24*3600)*VLOOKUP(B177,[1]ResourceLevelConfig!$A:$E,5,FALSE),2)) -> 7.88 | AB177: -1 | AC177: 4 | AD177: 4 | AE177: 4 | AF177: 1840 | AJ177: 1 | AK177: 3 | AL177: 173
A178: 174 | B178: 174 | C178: 6 | D178: 18 | E178: 4 | F178: 230;237;241 | G178: 炼虚期 | H178: 后 | I178: 4 | J178: 230 | K178: 237 | L178: 241 | M178: =[1]ResourceLevelConfig!$E178*10 -> 69420 | N178: -1 | O178: -1 | P178: -1 | Q178: -1 | R178: -1 | S178: -1 | T178: 0 | U178: =[3]主表!K176 -> 5957.131575 | V178: =[3]主表!L176 -> 243.1482275 | W178: =[3]主表!M176 -> 243.1482275 | X178: =[3]主表!N176 -> 743.984 | Y178: =[3]主表!$G176 -> 169087 | Z178: =[3]升级!$H176 -> 1500 | AA178: =MAX(1,ROUND(100/(24*3600)*VLOOKUP(B178,[1]ResourceLevelConfig!$A:$E,5,FALSE),2)) -> 8.03 | AB178: -1 | AC178: 4 | AD178: 4 | AE178: 4 | AF178: 1850 | AJ178: 1 | AK178: 3 | AL178: 174
A179: 175 | B179: 175 | C179: 6 | D179: 18 | E179: 5 | F179: 230;237;242 | G179: 炼虚期 | H179: 后 | I179: 5 | J179: 230 | K179: 237 | L179: 242 | M179: =[1]ResourceLevelConfig!$E179*10 -> 70810 | N179: -1 | O179: -1 | P179: -1 | Q179: -1 | R179: -1 | S179: -1 | T179: 0 | U179: =[3]主表!K177 -> 6067.054836 | V179: =[3]主表!L177 -> 246.7954509 | W179: =[3]主表!M177 -> 246.7954509 | X179: =[3]主表!N177 -> 755.58 | Y179: =[3]主表!$G177 -> 171723 | Z179: =[3]升级!$H177 -> 1500 | AA179: =MAX(1,ROUND(100/(24*3600)*VLOOKUP(B179,[1]ResourceLevelConfig!$A:$E,5,FALSE),2)) -> 8.2 | AB179: -1 | AC179: 4 | AD179: 4 | AE179: 4 | AF179: 1860 | AJ179: 1 | AK179: 3 | AL179: 175
A180: 176 | B180: 176 | C180: 6 | D180: 18 | E180: 6 | F180: 230;237;243 | G180: 炼虚期 | H180: 后 | I180: 6 | J180: 230 | K180: 237 | L180: 243 | M180: =[1]ResourceLevelConfig!$E180*10 -> 72230 | N180: -1 | O180: -1 | P180: -1 | Q180: -1 | R180: -1 | S180: -1 | T180: 0 | U180: =[3]主表!K178 -> 6178.93544 | V180: =[3]主表!L178 -> 250.4973827 | W180: =[3]主表!M178 -> 250.4973827 | X180: =[3]主表!N178 -> 767.372 | Y180: =[3]主表!$G178 -> 174403 | Z180: =[3]升级!$H178 -> 1500 | AA180: =MAX(1,ROUND(100/(24*3600)*VLOOKUP(B180,[1]ResourceLevelConfig!$A:$E,5,FALSE),2)) -> 8.36 | AB180: -1 | AC180: 4 | AD180: 4 | AE180: 4 | AF180: 1870 | AJ180: 1 | AK180: 3 | AL180: 176
A181: 177 | B181: 177 | C181: 6 | D181: 18 | E181: 7 | F181: 230;237;244 | G181: 炼虚期 | H181: 后 | I181: 7 | J181: 230 | K181: 237 | L181: 244 | M181: =[1]ResourceLevelConfig!$E181*10 -> 73670 | N181: -1 | O181: -1 | P181: -1 | Q181: -1 | R181: -1 | S181: -1 | T181: 0 | U181: =[3]主表!K179 -> 6292.807375 | V181: =[3]主表!L179 -> 254.2548435 | W181: =[3]主表!M179 -> 254.2548435 | X181: =[3]主表!N179 -> 779.372 | Y181: =[3]主表!$G179 -> 177130 | Z181: =[3]升级!$H179 -> 1500 | AA181: =MAX(1,ROUND(100/(24*3600)*VLOOKUP(B181,[1]ResourceLevelConfig!$A:$E,5,FALSE),2)) -> 8.53 | AB181: -1 | AC181: 4 | AD181: 4 | AE181: 4 | AF181: 1880 | AJ181: 1 | AK181: 3 | AL181: 177
A182: 178 | B182: 178 | C182: 6 | D182: 18 | E182: 8 | F182: 230;237;245 | G182: 炼虚期 | H182: 后 | I182: 8 | J182: 230 | K182: 237 | L182: 245 | M182: =[1]ResourceLevelConfig!$E182*10 -> 75140 | N182: -1 | O182: -1 | P182: -1 | Q182: -1 | R182: -1 | S182: -1 | T182: 0 | U182: =[3]主表!K180 -> 6408.705208 | V182: =[3]主表!L180 -> 258.0686661 | W182: =[3]主表!M180 -> 258.0686661 | X182: =[3]主表!N180 -> 791.568 | Y182: =[3]主表!$G180 -> 179902 | Z182: =[3]升级!$H180 -> 1500 | AA182: =MAX(1,ROUND(100/(24*3600)*VLOOKUP(B182,[1]ResourceLevelConfig!$A:$E,5,FALSE),2)) -> 8.7 | AB182: -1 | AC182: 4 | AD182: 4 | AE182: 4 | AF182: 1890 | AJ182: 1 | AK182: 3 | AL182: 178
A183: 179 | B183: 179 | C183: 6 | D183: 18 | E183: 9 | F183: 230;237;246 | G183: 炼虚期 | H183: 后 | I183: 9 | J183: 230 | K183: 237 | L183: 246 | M183: =[1]ResourceLevelConfig!$E183*10 -> 76640 | N183: -1 | O183: -1 | P183: -1 | Q183: -1 | R183: -1 | S183: -1 | T183: 0 | U183: =[3]主表!K181 -> 6526.664094 | V183: =[3]主表!L181 -> 261.9396961 | W183: =[3]主表!M181 -> 261.9396961 | X183: =[3]主表!N181 -> 803.976 | Y183: =[3]主表!$G181 -> 182722 | Z183: =[3]升级!$H181 -> 1500 | AA183: =MAX(1,ROUND(100/(24*3600)*VLOOKUP(B183,[1]ResourceLevelConfig!$A:$E,5,FALSE),2)) -> 8.87 | AB183: -1 | AC183: 4 | AD183: 4 | AE183: 4 | AF183: 1900 | AJ183: 1 | AK183: 3 | AL183: 179
A184: 180 | B184: 180 | C184: 6 | D184: 18 | E184: 10 | F184: 230;237;247 | G184: 炼虚期 | H184: 后 | I184: 10 | J184: 230 | K184: 237 | L184: 247 | M184: =[1]ResourceLevelConfig!$E184*10 -> 78170 | N184: 100004 | O184: 20 | P184: 1301 | Q184: 1 | R184: 1301;1302;1303 | S184: 1;1;1 | T184: 1;1 | U184: =[3]主表!K182 -> 6646.719788 | V184: =[3]主表!L182 -> 265.8687915 | W184: =[3]主表!M182 -> 265.8687915 | X184: =[3]主表!N182 -> 890.828 | Y184: =[3]主表!$G182 -> 185589 | Z184: =[3]升级!$H182 -> 1500 | AA184: =MAX(1,ROUND(100/(24*3600)*VLOOKUP(B184,[1]ResourceLevelConfig!$A:$E,5,FALSE),2)) -> 9.05 | AB184: 50 | AC184: 4 | AD184: 4 | AE184: 4 | AF184: 1910 | AJ184: 1 | AK184: 3 | AL184: 180
A185: 181 | B185: 181 | C185: 7 | D185: 19 | E185: 1 | F185: 231;235;238 | G185: 大乘期 | H185: 前 | I185: 1 | J185: 231 | K185: 235 | L185: 238 | M185: =[1]ResourceLevelConfig!$E185*10 -> 79730 | N185: -1 | O185: -1 | P185: -1 | Q185: -1 | R185: =IF(I185=10,"1001;1002;1004",-1) -> -1 | S185: =IF(R185=-1,-1,"100;200;300") -> -1 | T185: 0 | U185: =[3]主表!K183 -> 10003.31328 | V185: =[3]主表!L183 -> 398.8031873 | W185: =[3]主表!M183 -> 398.8031873 | X185: =[3]主表!N183 -> 1370.116 | Y185: =[3]主表!$G183 -> 285441 | Z185: =[3]升级!$H183 -> 1600 | AA185: =MAX(1,ROUND(100/(24*3600)*VLOOKUP(B185,[1]ResourceLevelConfig!$A:$E,5,FALSE),2)) -> 9.23 | AB185: -1 | AC185: 4 | AD185: 4 | AE185: 4 | AF185: 1920 | AJ185: 1 | AK185: 4 | AL185: 181
A186: 182 | B186: 182 | C186: 7 | D186: 19 | E186: 2 | F186: 231;235;239 | G186: 大乘期 | H186: 前 | I186: 2 | J186: 231 | K186: 235 | L186: 239 | M186: =[1]ResourceLevelConfig!$E186*10 -> 81320 | N186: -1 | O186: -1 | P186: -1 | Q186: -1 | R186: =IF(I186=10,"1001;1002;1004",-1) -> -1 | S186: =IF(R186=-1,-1,"100;200;300") -> -1 | T186: 0 | U186: =[3]主表!K184 -> 10187.09508 | V186: =[3]主表!L184 -> 404.7852351 | W186: =[3]主表!M184 -> 404.7852351 | X186: =[3]主表!N184 -> 1392.656 | Y186: =[3]主表!$G184 -> 290137 | Z186: =[3]升级!$H184 -> 1600 | AA186: =MAX(1,ROUND(100/(24*3600)*VLOOKUP(B186,[1]ResourceLevelConfig!$A:$E,5,FALSE),2)) -> 9.41 | AB186: -1 | AC186: 4 | AD186: 4 | AE186: 4 | AF186: 1930 | AJ186: 1 | AK186: 4 | AL186: 182
A187: 183 | B187: 183 | C187: 7 | D187: 19 | E187: 3 | F187: 231;235;240 | G187: 大乘期 | H187: 前 | I187: 3 | J187: 231 | K187: 235 | L187: 240 | M187: =[1]ResourceLevelConfig!$E187*10 -> 82950 | N187: -1 | O187: -1 | P187: -1 | Q187: -1 | R187: -1 | S187: -1 | T187: 0 | U187: =[3]主表!K185 -> 10374.13959 | V187: =[3]主表!L185 -> 410.8570136 | W187: =[3]主表!M185 -> 410.8570136 | X187: =[3]主表!N185 -> 1415.592 | Y187: =[3]主表!$G185 -> 294915 | Z187: =[3]升级!$H185 -> 1600 | AA187: =MAX(1,ROUND(100/(24*3600)*VLOOKUP(B187,[1]ResourceLevelConfig!$A:$E,5,FALSE),2)) -> 9.6 | AB187: -1 | AC187: 4 | AD187: 4 | AE187: 4 | AF187: 1940 | AJ187: 1 | AK187: 4 | AL187: 183
A188: 184 | B188: 184 | C188: 7 | D188: 19 | E188: 4 | F188: 231;235;241 | G188: 大乘期 | H188: 前 | I188: 4 | J188: 231 | K188: 235 | L188: 241 | M188: =[1]ResourceLevelConfig!$E188*10 -> 84610 | N188: -1 | O188: -1 | P188: -1 | Q188: -1 | R188: -1 | S188: -1 | T188: 0 | U188: =[3]主表!K186 -> 10564.50334 | V188: =[3]主表!L186 -> 417.0198688 | W188: =[3]主表!M186 -> 417.0198688 | X188: =[3]主表!N186 -> 1438.924 | Y188: =[3]主表!$G186 -> 299776 | Z188: =[3]升级!$H186 -> 1600 | AA188: =MAX(1,ROUND(100/(24*3600)*VLOOKUP(B188,[1]ResourceLevelConfig!$A:$E,5,FALSE),2)) -> 9.79 | AB188: -1 | AC188: 4 | AD188: 4 | AE188: 4 | AF188: 1950 | AJ188: 1 | AK188: 4 | AL188: 184
A189: 185 | B189: 185 | C189: 7 | D189: 19 | E189: 5 | F189: 231;235;242 | G189: 大乘期 | H189: 前 | I189: 5 | J189: 231 | K189: 235 | L189: 242 | M189: =[1]ResourceLevelConfig!$E189*10 -> 86300 | N189: -1 | O189: -1 | P189: -1 | Q189: -1 | R189: -1 | S189: -1 | T189: 0 | U189: =[3]主表!K187 -> 10758.24382 | V189: =[3]主表!L187 -> 423.2751669 | W189: =[3]主表!M187 -> 423.2751669 | X189: =[3]主表!N187 -> 1462.664 | Y189: =[3]主表!$G187 -> 304722 | Z189: =[3]升级!$H187 -> 1600 | AA189: =MAX(1,ROUND(100/(24*3600)*VLOOKUP(B189,[1]ResourceLevelConfig!$A:$E,5,FALSE),2)) -> 9.99 | AB189: -1 | AC189: 4 | AD189: 4 | AE189: 4 | AF189: 1960 | AJ189: 1 | AK189: 4 | AL189: 185
A190: 186 | B190: 186 | C190: 7 | D190: 19 | E190: 6 | F190: 231;235;243 | G190: 大乘期 | H190: 前 | I190: 6 | J190: 231 | K190: 235 | L190: 243 | M190: =[1]ResourceLevelConfig!$E190*10 -> 88030 | N190: -1 | O190: -1 | P190: -1 | Q190: -1 | R190: -1 | S190: -1 | T190: 0 | U190: =[3]主表!K188 -> 10955.41951 | V190: =[3]主表!L188 -> 429.6242944 | W190: =[3]主表!M188 -> 429.6242944 | X190: =[3]主表!N188 -> 1487.432 | Y190: =[3]主表!$G188 -> 309882 | Z190: =[3]升级!$H188 -> 1600 | AA190: =MAX(1,ROUND(100/(24*3600)*VLOOKUP(B190,[1]ResourceLevelConfig!$A:$E,5,FALSE),2)) -> 10.19 | AB190: -1 | AC190: 4 | AD190: 4 | AE190: 4 | AF190: 1970 | AJ190: 1 | AK190: 4 | AL190: 186
A191: 187 | B191: 187 | C191: 7 | D191: 19 | E191: 7 | F191: 231;235;244 | G191: 大乘期 | H191: 前 | I191: 7 | J191: 231 | K191: 235 | L191: 244 | M191: =[1]ResourceLevelConfig!$E191*10 -> 89790 | N191: -1 | O191: -1 | P191: -1 | Q191: -1 | R191: -1 | S191: -1 | T191: 0 | U191: =[3]主表!K189 -> 11156.08985 | V191: =[3]主表!L189 -> 436.0686588 | W191: =[3]主表!M189 -> 436.0686588 | X191: =[3]主表!N189 -> 1512.632 | Y191: =[3]主表!$G189 -> 315132 | Z191: =[3]升级!$H189 -> 1600 | AA191: =MAX(1,ROUND(100/(24*3600)*VLOOKUP(B191,[1]ResourceLevelConfig!$A:$E,5,FALSE),2)) -> 10.39 | AB191: -1 | AC191: 4 | AD191: 4 | AE191: 4 | AF191: 1980 | AJ191: 1 | AK191: 4 | AL191: 187
A192: 188 | B192: 188 | C192: 7 | D192: 19 | E192: 8 | F192: 231;235;245 | G192: 大乘期 | H192: 前 | I192: 8 | J192: 231 | K192: 235 | L192: 245 | M192: =[1]ResourceLevelConfig!$E192*10 -> 91590 | N192: -1 | O192: -1 | P192: -1 | Q192: -1 | R192: -1 | S192: -1 | T192: 0 | U192: =[3]主表!K190 -> 11360.31534 | V192: =[3]主表!L190 -> 442.6096887 | W192: =[3]主表!M190 -> 442.6096887 | X192: =[3]主表!N190 -> 1538.28 | Y192: =[3]主表!$G190 -> 320475 | Z192: =[3]升级!$H190 -> 1600 | AA192: =MAX(1,ROUND(100/(24*3600)*VLOOKUP(B192,[1]ResourceLevelConfig!$A:$E,5,FALSE),2)) -> 10.6 | AB192: -1 | AC192: 4 | AD192: 4 | AE192: 4 | AF192: 1990 | AJ192: 1 | AK192: 4 | AL192: 188
A193: 189 | B193: 189 | C193: 7 | D193: 19 | E193: 9 | F193: 231;235;246 | G193: 大乘期 | H193: 前 | I193: 9 | J193: 231 | K193: 235 | L193: 246 | M193: =[1]ResourceLevelConfig!$E193*10 -> 93420 | N193: -1 | O193: -1 | P193: -1 | Q193: -1 | R193: -1 | S193: -1 | T193: 0 | U193: =[3]主表!K191 -> 11568.15748 | V193: =[3]主表!L191 -> 449.248834 | W193: =[3]主表!M191 -> 449.248834 | X193: =[3]主表!N191 -> 1564.376 | Y193: =[3]主表!$G191 -> 325912 | Z193: =[3]升级!$H191 -> 1600 | AA193: =MAX(1,ROUND(100/(24*3600)*VLOOKUP(B193,[1]ResourceLevelConfig!$A:$E,5,FALSE),2)) -> 10.81 | AB193: -1 | AC193: 4 | AD193: 4 | AE193: 4 | AF193: 2000 | AJ193: 1 | AK193: 4 | AL193: 189
A194: 190 | B194: 190 | C194: 7 | D194: 19 | E194: 10 | F194: 231;235;247 | G194: 大乘期 | H194: 前 | I194: 10 | J194: 231 | K194: 235 | L194: 247 | M194: =[1]ResourceLevelConfig!$E194*10 -> 95290 | N194: 100004 | O194: 20 | P194: 1301 | Q194: 1 | R194: 1301 | S194: 1 | T194: 0 | U194: =[3]主表!K192 -> 11779.6788 | V194: =[3]主表!L192 -> 455.9875665 | W194: =[3]主表!M192 -> 455.9875665 | X194: =[3]主表!N192 -> 1723.516 | Y194: =[3]主表!$G192 -> 331445 | Z194: =[3]升级!$H192 -> 1600 | AA194: =MAX(1,ROUND(100/(24*3600)*VLOOKUP(B194,[1]ResourceLevelConfig!$A:$E,5,FALSE),2)) -> 11.03 | AB194: 20 | AC194: 4 | AD194: 4 | AE194: 4 | AF194: 2018 | AJ194: 1 | AK194: 4 | AL194: 190
A195: 191 | B195: 191 | C195: 7 | D195: 20 | E195: 1 | F195: 231;236;238 | G195: 大乘期 | H195: 中 | I195: 1 | J195: 231 | K195: 236 | L195: 238 | M195: =[1]ResourceLevelConfig!$E195*10 -> 97200 | N195: -1 | O195: -1 | P195: -1 | Q195: -1 | R195: =IF(I195=10,"1001;1002;1004",-1) -> -1 | S195: -1 | T195: 0 | U195: =[3]主表!K193 -> 12999.44554 | V195: =[3]主表!L193 -> 501.5863232 | W195: =[3]主表!M193 -> 501.5863232 | X195: =[3]主表!N193 -> 1944.412 | Y195: =[3]主表!$G193 -> 373925 | Z195: =[3]升级!$H193 -> 1600 | AA195: =MAX(1,ROUND(100/(24*3600)*VLOOKUP(B195,[1]ResourceLevelConfig!$A:$E,5,FALSE),2)) -> 11.25 | AB195: -1 | AC195: =AC194 -> 4 | AD195: =AD194 -> 4 | AE195: =AE194 -> 4 | AF195: 2065 | AJ195: 1 | AK195: 4 | AL195: 191
A196: 192 | B196: 192 | C196: 7 | D196: 20 | E196: 2 | F196: 231;236;239 | G196: 大乘期 | H196: 中 | I196: 2 | J196: 231 | K196: 236 | L196: 239 | M196: =[1]ResourceLevelConfig!$E196*10 -> 99140 | N196: -1 | O196: -1 | P196: -1 | Q196: -1 | R196: -1 | S196: -1 | T196: 0 | U196: =[3]主表!K194 -> 13236.86307 | V196: =[3]主表!L194 -> 509.110118 | W196: =[3]主表!M194 -> 509.110118 | X196: =[3]主表!N194 -> 1976.884 | Y196: =[3]主表!$G194 -> 380170 | Z196: =[3]升级!$H194 -> 1600 | AA196: =MAX(1,ROUND(100/(24*3600)*VLOOKUP(B196,[1]ResourceLevelConfig!$A:$E,5,FALSE),2)) -> 11.47 | AB196: -1 | AC196: 4 | AD196: 4 | AE196: 4 | AF196: 2113 | AJ196: 1 | AK196: 4 | AL196: 192
A197: 193 | B197: 193 | C197: 7 | D197: 20 | E197: 3 | F197: 231;236;240 | G197: 大乘期 | H197: 中 | I197: 3 | J197: 231 | K197: 236 | L197: 240 | M197: =[1]ResourceLevelConfig!$E197*10 -> 101120 | N197: -1 | O197: -1 | P197: -1 | Q197: -1 | R197: -1 | S197: -1 | T197: 0 | U197: =[3]主表!K195 -> 13478.47825 | V197: =[3]主表!L195 -> 516.7467698 | W197: =[3]主表!M195 -> 516.7467698 | X197: =[3]主表!N195 -> 2009.932 | Y197: =[3]主表!$G195 -> 386525 | Z197: =[3]升级!$H195 -> 1600 | AA197: =MAX(1,ROUND(100/(24*3600)*VLOOKUP(B197,[1]ResourceLevelConfig!$A:$E,5,FALSE),2)) -> 11.7 | AB197: -1 | AC197: 4 | AD197: 4 | AE197: 4 | AF197: 2163 | AJ197: 1 | AK197: 4 | AL197: 193
A198: 194 | B198: 194 | C198: 7 | D198: 20 | E198: =I198 -> 4 | F198: =_xlfn.TEXTJOIN(";",1,J198:L198) -> 231;236;241 | G198: 大乘期 | H198: 中 | I198: 4 | J198: 231 | K198: 236 | L198: 241 | M198: =[1]ResourceLevelConfig!$E198*10 -> 103140 | N198: =IF(I198=10,100004,-1) -> -1 | O198: =IF(N198=-1,-1,20) -> -1 | P198: -1 | Q198: -1 | R198: -1 | S198: -1 | T198: 0 | U198: =[3]主表!K196 -> 13724.36358 | V198: =[3]主表!L196 -> 524.4979713 | W198: =[3]主表!M196 -> 524.4979713 | X198: =[3]主表!N196 -> 2043.552 | Y198: =[3]主表!$G196 -> 392991 | Z198: =[3]升级!$H196 -> 1600 | AA198: =MAX(1,ROUND(100/(24*3600)*VLOOKUP(B198,[1]ResourceLevelConfig!$A:$E,5,FALSE),2)) -> 11.94 | AB198: -1 | AC198: 4 | AD198: 4 | AE198: 4 | AF198: =MAX(AF197+10,ROUND(10^(B198*0.01+1.405),0)) -> 2213 | AJ198: 1 | AK198: 4 | AL198: 194
A199: 195 | B199: 195 | C199: 7 | D199: 20 | E199: 5 | F199: 231;236;242 | G199: 大乘期 | H199: 中 | I199: 5 | J199: 231 | K199: 236 | L199: 242 | M199: =[1]ResourceLevelConfig!$E199*10 -> 105200 | N199: -1 | O199: -1 | P199: -1 | Q199: -1 | R199: -1 | S199: -1 | T199: 0 | U199: =[3]主表!K197 -> 13974.59282 | V199: =[3]主表!L197 -> 532.3654409 | W199: =[3]主表!M197 -> 532.3654409 | X199: =[3]主表!N197 -> 2077.768 | Y199: =[3]主表!$G197 -> 399571 | Z199: =[3]升级!$H197 -> 1600 | AA199: =MAX(1,ROUND(100/(24*3600)*VLOOKUP(B199,[1]ResourceLevelConfig!$A:$E,5,FALSE),2)) -> 12.18 | AB199: -1 | AC199: 4 | AD199: 4 | AE199: 4 | AF199: 2265 | AJ199: 1 | AK199: 4 | AL199: 195
A200: 196 | B200: 196 | C200: 7 | D200: 20 | E200: 6 | F200: 231;236;243 | G200: 大乘期 | H200: 中 | I200: 6 | J200: 231 | K200: 236 | L200: 243 | M200: =[1]ResourceLevelConfig!$E200*10 -> 107300 | N200: -1 | O200: -1 | P200: -1 | Q200: -1 | R200: -1 | S200: -1 | T200: 0 | U200: =[3]主表!K198 -> 14229.24096 | V200: =[3]主表!L198 -> 540.3509225 | W200: =[3]主表!M198 -> 540.3509225 | X200: =[3]主表!N198 -> 2112.584 | Y200: =[3]主表!$G198 -> 406266 | Z200: =[3]升级!$H198 -> 1600 | AA200: =MAX(1,ROUND(100/(24*3600)*VLOOKUP(B200,[1]ResourceLevelConfig!$A:$E,5,FALSE),2)) -> 12.42 | AB200: -1 | AC200: 4 | AD200: 4 | AE200: 4 | AF200: 2317 | AJ200: 1 | AK200: 4 | AL200: 196
... 104 more rows

Sheet HeroQiangDuAddConfig
A1: ID | B1: qiangDuZhi
A2: int | B2: float
A4: ID | B4: 玩家修为境界（等级）
A5: 1 | B5: 1
A6: 2 | B6: 1.085
A7: 3 | B7: 1.17
A8: 4 | B8: 1.255
A9: 5 | B9: 1.34
A10: 6 | B10: 1.425
A11: 7 | B11: 1.51
A12: 8 | B12: 1.595
A13: 9 | B13: 1.68
A14: 10 | B14: 1.765
A15: 11 | B15: 1.85
A16: 12 | B16: 1.935
A17: 13 | B17: 2.02
A18: 14 | B18: 2.105
A19: 15 | B19: 2.19
A20: 16 | B20: 2.275
A21: 17 | B21: 2.36
A22: 18 | B22: 2.445
A23: 19 | B23: 2.53
A24: 20 | B24: 2.615
A25: 21 | B25: 2.7
A26: 22 | B26: 2.785
A27: 23 | B27: 2.87
A28: 24 | B28: 2.955
A29: 25 | B29: 3.04
A30: 26 | B30: 3.125
A31: 27 | B31: 3.21
A32: 28 | B32: 3.295
A33: 29 | B33: 3.38
A34: 30 | B34: 3.465
A35: 31 | B35: 3.55
A36: 32 | B36: 3.635
A37: 33 | B37: 3.72
A38: 34 | B38: 3.805
A39: 35 | B39: 3.89
A40: 36 | B40: 3.975
A41: 37 | B41: 4.06
A42: 38 | B42: 4.145
A43: 39 | B43: 4.23
A44: 40 | B44: 4.315
A45: 41 | B45: 4.4
A46: 42 | B46: 4.485
A47: 43 | B47: 4.57
A48: 44 | B48: 4.655
A49: 45 | B49: 4.74
A50: 46 | B50: 4.825
A51: 47 | B51: 4.91
A52: 48 | B52: 4.995
A53: 49 | B53: 5.08
A54: 50 | B54: 5.165
A55: 51 | B55: 5.25
A56: 52 | B56: 5.335
A57: 53 | B57: 5.42
A58: 54 | B58: 5.505
A59: 55 | B59: 5.59
A60: 56 | B60: 5.675
A61: 57 | B61: 5.76
A62: 58 | B62: 5.845
A63: 59 | B63: 5.93
A64: 60 | B64: 6
